Department Family,Entity,Date of Payment,Expense Type,Expense Area,Supplier,Voluntary & Community Sector,SME Class,Sole Trader,D-U-N-S Number,Transaction number,PSPES Level 2,Narrative,Postal Code,Amount in Sterling,Grant?
Communities & Local Government,DCLG,01/03/2016,Current (non AEF) Grants to Local Authorities,Housing & Planning,BARKING & DAGENHAM LB (HSG),,,,217142293,5000325794,,Preventing Homelessness Grant (LAs),RM10 7BY,"200,000.00",Yes
Communities & Local Government,DCLG,01/03/2016,Current (non AEF) Grants to Local Authorities,Housing & Planning,BIRMINGHAM CITY CNCL,,,,213780559,5000325799,,Preventing Homelessness Grant (LAs),B2 2AJ,"200,000.00",Yes
Communities & Local Government,DCLG,01/03/2016,Current (non AEF) Grants to Local Authorities,Housing & Planning,BRENT LB (HSG),,,,,5000325795,,Preventing Homelessness Grant (LAs),HA9 9HD,"200,000.00",Yes
Communities & Local Government,DCLG,01/03/2016,Current (non AEF) Grants to Local Authorities,Housing & Planning,BRIGHTON & HOVE CITY COUNCIL,,Large,,228455218,5000325800,,Preventing Homelessness Grant (LAs),BN3 2LS,"200,000.00",Yes
Communities & Local Government,DCLG,01/03/2016,Current (non AEF) Grants to Local Authorities,Housing & Planning,BROMLEY LB,,,,211331954,5000325801,,Preventing Homelessness Grant (LAs),BR1 3UH,"200,000.00",Yes
Communities & Local Government,DCLG,01/03/2016,Current (non AEF) Grants to Local Authorities,Housing & Planning,CROYDON LB,,,,212419973,5000325802,,Preventing Homelessness Grant (LAs),CR9 3JS,"200,000.00",Yes
Communities & Local Government,DCLG,01/03/2016,Current (non AEF) Grants to Local Authorities,Housing & Planning,EALING LB,,,,,5000325803,,Preventing Homelessness Grant (LAs),W5 2HL,"200,000.00",Yes
Communities & Local Government,DCLG,01/03/2016,Current (non AEF) Grants to Local Authorities,Housing & Planning,ENFIELD LB,,,,,5000325804,,Preventing Homelessness Grant (LAs),EN1 3XF,"200,000.00",Yes
Communities & Local Government,DCLG,01/03/2016,Current (non AEF) Grants to Local Authorities,Housing & Planning,HAMMERSMITH & FULHAM LB,,,,216929489,5000325806,,Preventing Homelessness Grant (LAs),W6 9JU,"200,000.00",Yes
Communities & Local Government,DCLG,01/03/2016,Current (non AEF) Grants to Local Authorities,Housing & Planning,HARINGEY LB,,,,217471767,5000325807,,Preventing Homelessness Grant (LAs),N22 4TR,"200,000.00",Yes
Communities & Local Government,DCLG,01/03/2016,Current (non AEF) Grants to Local Authorities,Housing & Planning,HOUNSLOW LB,,Public Bodies,,210388999,5000325808,,Preventing Homelessness Grant (LAs),TW3 4DN,"200,000.00",Yes
Communities & Local Government,DCLG,01/03/2016,Current (non AEF) Grants to Local Authorities,Housing & Planning,ISLINGTON LB,,,,225716729,5000325809,,Preventing Homelessness Grant (LAs),N1 1XR,"200,000.00",Yes
Communities & Local Government,DCLG,01/03/2016,Current (non AEF) Grants to Local Authorities,Housing & Planning,LEWISHAM LB (HSG),,Large,,235653300,5000325796,,Preventing Homelessness Grant (LAs),SE6 4RU,"200,000.00",Yes
Communities & Local Government,DCLG,01/03/2016,Current (non AEF) Grants to Local Authorities,Housing & Planning,LONDON BOROUGH OF BARNET,,,,211049507,5000325798,,Preventing Homelessness Grant (LAs),NN1 1NP,"200,000.00",Yes
Communities & Local Government,DCLG,01/03/2016,Current (non AEF) Grants to Local Authorities,Housing & Planning,LONDON BOROUGH OF HACKNEY,,,,225221597,5000325805,,Preventing Homelessness Grant (LAs),E8 4RU,"200,000.00",Yes
Communities & Local Government,DCLG,01/03/2016,Current (non AEF) Grants to Local Authorities,Housing & Planning,LONDON BOROUGH OF LAMBETH,,,,228216479,5000325811,,Preventing Homelessness Grant (LAs),SW2 1RL,"200,000.00",Yes
Communities & Local Government,DCLG,01/03/2016,Current (non AEF) Grants to Local Authorities,Housing & Planning,LONDON BOROUGH OF NEWHAM,,,,211381004,5000325813,,Preventing Homelessness Grant (LAs),E16 2QU,"200,000.00",Yes
Communities & Local Government,DCLG,01/03/2016,Current (non AEF) Grants to Local Authorities,Housing & Planning,LONDON BOROUGH OF REDBRIDGE,,,,211341417,5000325814,,Preventing Homelessness Grant (LAs),IG1 1NN,"200,000.00",Yes
Communities & Local Government,DCLG,01/03/2016,Current (non AEF) Grants to Local Authorities,Housing & Planning,LUTON BC,,,,365112155,5000325812,,Preventing Homelessness Grant (LAs),LU1 2BQ,"200,000.00",Yes
Communities & Local Government,DCLG,01/03/2016,Current (non AEF) Grants to Local Authorities,Housing & Planning,ROYAL BOROUGH OF KENSINGTON & CHELS,,,,211124466,5000325810,,Preventing Homelessness Grant (LAs),W8 7NX,"200,000.00",Yes
Communities & Local Government,DCLG,01/03/2016,Current (non AEF) Grants to Local Authorities,Housing & Planning,SOUTHWARK LB,,,,,5000325815,,Preventing Homelessness Grant (LAs),SE1 2QH,"200,000.00",Yes
Communities & Local Government,DCLG,01/03/2016,Current (non AEF) Grants to Local Authorities,Housing & Planning,TOWER HAMLETS LB (HSG),,,,231315144,5000325797,,Preventing Homelessness Grant (LAs),E14 2BG,"200,000.00",Yes
Communities & Local Government,DCLG,01/03/2016,Current (non AEF) Grants to Local Authorities,Housing & Planning,WALTHAM FOREST LB,,,,,5000325816,,Preventing Homelessness Grant (LAs),E17 4JA,"200,000.00",Yes
Communities & Local Government,DCLG,01/03/2016,Current (non AEF) Grants to Local Authorities,Housing & Planning,WANDSWORTH LB,,,,,5000325817,,Preventing Homelessness Grant (LAs),SW18 2PU,"200,000.00",Yes
Communities & Local Government,DCLG,01/03/2016,Current (non AEF) Grants to Local Authorities,Housing & Planning,WESTMINSTER CITY CNCL,,,,229845706,5000325818,,Preventing Homelessness Grant (LAs),SW1E 6QP,"200,000.00",Yes
Communities & Local Government,DCLG,01/03/2016,Current Grants to Non Profit Bodies,Housing & Planning,SHELTER NAT CAMPAIGN HOMELESS PEOPL,,Large,,,5000325819,,Preventing Homelessness Grant (VOL),EC1V 9HU,"685,214.00",Yes
Communities & Local Government,DCLG,01/03/2016,Current Grants to Non Profit Bodies,Housing & Planning,SOUTH DOWNS NATIONAL PARK AUTHORITY,,,,,2100261934,,Neighbourhood Planning,GU29 9DH,"30,000.00",Yes
Communities & Local Government,DCLG,02/03/2016,Current (non AEF) Grants to Local Authorities,Housing & Planning,LONDON BOROUGH OF CAMDEN,,Public Bodies,,211651836,2100262469,,Legal Advice,WC1H 8NG,"8,184.50",Yes
Communities & Local Government,DCLG,02/03/2016,Current Grants to Non Profit Bodies,Housing & Planning,CRISIS UK,Yes,Medium,,,5000325820,,Preventing Homelessness Grant (VOL),E1 6LT,"54,374.00",Yes
Communities & Local Government,DCLG,02/03/2016,Current Grants to Non Profit Bodies,Housing & Planning,HOMELESS LINK,Yes,,,,5000325821,,Preventing Homelessness Grant (VOL),SE11 4AP,"75,000.00",Yes
Communities & Local Government,DCLG,02/03/2016,Current Grants to Non Profit Bodies,Housing & Planning,MENCAP,,Large,,290382183,2100262434,,Replacement for Changing Places Toilet Map,EC1Y 0RT,"7,500.00",Yes
Communities & Local Government,DCLG,02/03/2016,Current Grants to Non Profit Bodies,Housing & Planning,ST BASILS CENTRE,,,,,5000325822,,Preventing Homelessness Grant (VOL),B9 4AX,"56,250.00",Yes
Communities & Local Government,DCLG,02/03/2016,Current Grants to Non Profit Bodies,Local Government & Public Services,NAT ASSOC LOCAL COUNCILS,,,,580214963,2100262471,,Transparency Funds - parishes,WC1B 3LD,"220,000.00",Yes
Communities & Local Government,DCLG,02/03/2016,Mobile phone costs,Finance,ORANGE (AIRTIME/LINE RENTAL),,Large,,210707540,2100262489,Telecoms,Monthly Consolidated Costs Feb 2016,S98 1DX,394.85,
Communities & Local Government,DCLG,03/03/2016,Current (non AEF) Grants to Local Authorities,Housing & Planning,NORTH EAST DERBYSHIRE DC,,Large,,,2100262532,,HRA Stock data collection exercise,S41 1LF,"5,000.00",Yes
Communities & Local Government,DCLG,03/03/2016,Current Grants to Non Profit Bodies,Housing & Planning,HOMELESS LINK,Yes,,,,5000325823,,Preventing Homelessness Grant (VOL),SE11 4AP,"312,423.00",Yes
Communities & Local Government,DCLG,03/03/2016,Current Grants to Non Profit Bodies,Housing & Planning,WOMEN'S AID FEDERATION,Yes,,,,5000325824,,Preventing Homelessness Grant (VOL),BS2 2EH,"34,309.00",Yes
Communities & Local Government,DCLG,03/03/2016,ERDF Match current  grant (NPISH),Decentralisation and Local Growth,CORNWALL DEVELOPMENT COMPANY,,,,,2100262529,,SW GDT ERDF Match Funding Payment  - 203906,TR15 3QG,"18,718.00",Yes
Communities & Local Government,DCLG,03/03/2016,Repayments of LA Grant (Cap),Decentralisation and Local Growth,LEEDS CITY COUNCIL,,Large,,211170311,2300002391,,1778C Clawback of Regional Growth Fund. Please sen,LS1 1UR,"-764,618.37",Yes
Communities & Local Government,DCLG,03/03/2016,Repayments of LA Grant (Cap),Decentralisation and Local Growth,LEEDS CITY COUNCIL,,Large,,211170311,2300002391,,1962C Clawback of Regional Growth Fund. Please sen,LS1 1UR,"-1,416,841.28",Yes
Communities & Local Government,DCLG,03/03/2016,Work In Progress Pre-Cert 40373 Spend,Decentralisation and Local Growth,NORTH WEST AEROSPACE ALLIANCE,,,,,7600015167,,Revenue Grant Clawback Offset,PR5 6BL,"-2,984.10",Yes
Communities & Local Government,DCLG,03/03/2016,Work In Progress Pre-Cert 40373 Spend,Decentralisation and Local Growth,NORTH WEST AEROSPACE ALLIANCE,,,,,7600015167,,Revenue Grant To Be Paid,PR5 6BL,"9,214.71",Yes
Communities & Local Government,DCLG,03/03/2016,Work In Progress Pre-Cert 40467 Spend,Decentralisation and Local Growth,BLACKBURN WITH DARWEN BC,,,,,7600015169,,Capital Grant To Be Paid,BB1 7DY,"55,692.91",Yes
Communities & Local Government,DCLG,03/03/2016,Work In Progress Pre-Cert 40467 Spend,Decentralisation and Local Growth,FLORENCE INSTITUTE TRUST LTD,,,,,7600015151,,Capital Grant Clawback Offset,L8 4RF,-47.93,Yes
Communities & Local Government,DCLG,03/03/2016,Work In Progress Pre-Cert 40467 Spend,Decentralisation and Local Growth,FLORENCE INSTITUTE TRUST LTD,,,,,7600015151,,Capital Grant To Be Paid,L8 4RF,"47,329.83",Yes
Communities & Local Government,DCLG,03/03/2016,Work In Progress Pre-Cert 40467 Spend,Decentralisation and Local Growth,LIVERPOOL CITY COUNCIL,,,,,7600015171,,Capital Grant Clawback Offset,L2 2DH,-26.25,Yes
Communities & Local Government,DCLG,03/03/2016,Work In Progress Pre-Cert 40467 Spend,Decentralisation and Local Growth,LIVERPOOL CITY COUNCIL,,,,,7600015171,,Capital Grant To Be Paid,L2 2DH,"117,000.00",Yes
Communities & Local Government,DCLG,03/03/2016,Work In Progress Pre-Cert 40467 Spend,Decentralisation and Local Growth,MERSEYTRAVEL,,,,,7600015142,,Capital Grant Clawback Offset,L69 3HN,"-1,775.44",Yes
Communities & Local Government,DCLG,03/03/2016,Work In Progress Pre-Cert 40467 Spend,Decentralisation and Local Growth,MERSEYTRAVEL,,,,,7600015142,,Capital Grant To Be Paid,L69 3HN,"14,153.70",Yes
Communities & Local Government,DCLG,04/03/2016,Cap Grants to Local Authorities (DEL),Decentralisation and Local Growth,LUTON BOROUGH COUNCIL,,Public Bodies,,,2100262490,,Luton Borough Council - SEMLEP Broadband,LU1 2RD,"2,000,000.00",Yes
Communities & Local Government,DCLG,04/03/2016,Cap Grants to Local Authorities (DEL),Decentralisation and Local Growth,NORTHAMPTONSHIRE CC,,Public Bodies,,211786269,2100262491,,Northamptonshire County Council  NEP LEP Broadband,CB3 0AP,"2,000,000.00",Yes
Communities & Local Government,DCLG,04/03/2016,Catering,Decentralisation and Local Growth,BOUYGUES E&S FM UK LTD (CATERING),,Large,,,2100262575,Business Support,Consolidated monthly catering Jan 2016,SE1 7NQ,35.1,
Communities & Local Government,DCLG,04/03/2016,Catering,Decentralisation and Local Growth,BOUYGUES E&S FM UK LTD (CATERING),,Large,,,2100262575,Business Support,Consolidated monthly catering Jan 2016,SE1 7NQ,212,
Communities & Local Government,DCLG,04/03/2016,Catering,Finance,BOUYGUES E&S FM UK LTD (CATERING),,Large,,,2100262575,Business Support,Consolidated monthly catering Jan 2016,SE1 7NQ,85.9,
Communities & Local Government,DCLG,04/03/2016,Catering,Housing & Planning,BOUYGUES E&S FM UK LTD (CATERING),,Large,,,2100262575,Business Support,Building Regulations Advisory Committee Meeting ,SE1 7NQ,17,
Communities & Local Government,DCLG,04/03/2016,Catering,Housing & Planning,BOUYGUES E&S FM UK LTD (CATERING),,Large,,,2100262575,Business Support,Building Regulations Advisory Committee Meeting ,SE1 7NQ,17,
Communities & Local Government,DCLG,04/03/2016,Catering,Local Government & Public Services,BOUYGUES E&S FM UK LTD (CATERING),,Large,,,2100262575,Business Support,Consolidated monthly catering Jan 2016,SE1 7NQ,24.85,
Communities & Local Government,DCLG,04/03/2016,Catering,Local Government & Public Services,BOUYGUES E&S FM UK LTD (CATERING),,Large,,,2100262575,Business Support,Consolidated monthly catering Jan 2016,SE1 7NQ,396.65,
Communities & Local Government,DCLG,04/03/2016,Catering,Local Government & Public Services,BOUYGUES E&S FM UK LTD (CATERING),,Large,,,2100262575,Business Support,Consolidated monthly catering Jan 2016,SE1 7NQ,43.55,
Communities & Local Government,DCLG,04/03/2016,Catering,Local Government & Public Services,BOUYGUES E&S FM UK LTD (CATERING),,Large,,,2100262575,Business Support,Consolidated monthly catering Jan 2016,SE1 7NQ,32.8,
Communities & Local Government,DCLG,04/03/2016,Catering,Local Government & Public Services,BOUYGUES E&S FM UK LTD (CATERING),,Large,,,2100262575,Business Support,Consolidated monthly catering Jan 2016,SE1 7NQ,10.5,
Communities & Local Government,DCLG,04/03/2016,Catering,"Strategy, Communications and Private Office",BOUYGUES E&S FM UK LTD (CATERING),,Large,,,2100262575,Business Support,Consolidated monthly catering Jan 2016,SE1 7NQ,132.7,
Communities & Local Government,DCLG,04/03/2016,Current (non AEF) Grants to Local Authorities,Housing & Planning,CHERWELL DC,,,,211168208,2100262473,,Brownfields Register Pilots Fund,OX15 4AA,"10,000.00",Yes
Communities & Local Government,DCLG,04/03/2016,Current (non AEF) Grants to Local Authorities,Housing & Planning,DURHAM COUNTY COUNCIL,,,,228453601,2100262474,,Brownfields Register Pilots Fund,DL16 6JQ,"10,000.00",Yes
Communities & Local Government,DCLG,04/03/2016,Current (non AEF) Grants to Local Authorities,Housing & Planning,HUNTINGDONSHIRE DC,,,,235999216,2100262475,,Brownfields Register Pilots Fund,PE29 3TN,"10,000.00",Yes
Communities & Local Government,DCLG,04/03/2016,Current (non AEF) Grants to Local Authorities,Housing & Planning,LEEDS CITY COUNCIL,,Public Bodies,,,2100262476,,Brownfields Register Pilots Fund,LS1 3AD,"10,000.00",Yes
Communities & Local Government,DCLG,04/03/2016,Current (non AEF) Grants to Local Authorities,Housing & Planning,LIVERPOOL CITY COUNCIL,,Public Bodies,,228646113,2100262477,,Brownfields Register Pilots Fund,L2 2DH,"10,000.00",Yes
Communities & Local Government,DCLG,04/03/2016,Current (non AEF) Grants to Local Authorities,Housing & Planning,MANCHESTER CITY COUNCIL,,Large,,238004407,2100262478,,Brownfields Register Pilots Fund,M60 2LA,"10,000.00",Yes
Communities & Local Government,DCLG,04/03/2016,Current (non AEF) Grants to Local Authorities,Housing & Planning,MEDWAY COUNCIL,,,,,2100262479,,Brownfields Register Pilots Fund,ME4 4RT,"10,000.00",Yes
Communities & Local Government,DCLG,04/03/2016,Current (non AEF) Grants to Local Authorities,Housing & Planning,NEWCASTLE CITY COUNCIL,,,,210061649,2100262480,,Brownfields Register Pilots Fund,NE1 8QN,"10,000.00",Yes
Communities & Local Government,DCLG,04/03/2016,Current (non AEF) Grants to Local Authorities,Housing & Planning,PETERBOROUGH CITY COUNCIL,,,,,2100262481,,Brownfields Register Pilots Fund,PE1 1FF,"10,000.00",Yes
Communities & Local Government,DCLG,04/03/2016,Current (non AEF) Grants to Local Authorities,Housing & Planning,SELBY DC,,,,239816721,2100262482,,Brownfields Register Pilots Fund,YO8 0SB,"10,000.00",Yes
Communities & Local Government,DCLG,04/03/2016,Current (non AEF) Grants to Local Authorities,Housing & Planning,SHEFFIELD CITY COUNCIL,,Large,,228153011,2100262483,,Brownfields Register Pilots Fund,S1 1UL,"10,000.00",Yes
Communities & Local Government,DCLG,04/03/2016,Current (non AEF) Grants to Local Authorities,Housing & Planning,SOUTH CAMBRIDGESHIRE DC,,Public Bodies,,236369484,2100262484,,Brownfields Register Pilots Fund,CB23 6EA,"10,000.00",Yes
Communities & Local Government,DCLG,04/03/2016,Current (non AEF) Grants to Local Authorities,Housing & Planning,SUNDERLAND CITY COUNCIL,,,,215599312,2100262485,,Brownfields Register Pilots Fund,SR2 7DN,"10,000.00",Yes
Communities & Local Government,DCLG,04/03/2016,Current (non AEF) Grants to Local Authorities,Housing & Planning,TONBRIDGE & MALLING BC,,,,,2100262486,,Brownfields Register Pilots Fund,ME19 4LZ,"10,000.00",Yes
Communities & Local Government,DCLG,04/03/2016,Current (non AEF) Grants to Local Authorities,Housing & Planning,WIGAN MBC,,Large,,548815976,2100262487,,Brownfields Register Pilots Fund,WN1 3DS,"10,000.00",Yes
Communities & Local Government,DCLG,04/03/2016,Work In Progress Pre-Cert 40373 Spend,Decentralisation and Local Growth,ASTON UNIVERSITY,,Large,,,7600015152,,Revenue Grant Clawback Offset,B4 7ET,"-7,491.07",Yes
Communities & Local Government,DCLG,04/03/2016,Work In Progress Pre-Cert 40373 Spend,Decentralisation and Local Growth,ASTON UNIVERSITY,,Large,,,7600015152,,Revenue Grant To Be Paid,B4 7ET,"110,582.34",Yes
Communities & Local Government,DCLG,04/03/2016,Work In Progress Pre-Cert 40373 Spend,Decentralisation and Local Growth,BRAUNSTONE FOUNDATION,,Small,,,7600015149,,Revenue Grant Clawback Offset,LE3 1HR,"-1,362.70",Yes
Communities & Local Government,DCLG,04/03/2016,Work In Progress Pre-Cert 40373 Spend,Decentralisation and Local Growth,BRAUNSTONE FOUNDATION,,Small,,,7600015149,,Revenue Grant To Be Paid,LE3 1HR,"63,850.46",Yes
Communities & Local Government,DCLG,04/03/2016,Work In Progress Pre-Cert 40373 Spend,Decentralisation and Local Growth,CORNWALL COUNCIL,,,,,7600015153,,Revenue Grant Clawback Offset,TR1 3AY,"-116,466.77",Yes
Communities & Local Government,DCLG,04/03/2016,Work In Progress Pre-Cert 40373 Spend,Decentralisation and Local Growth,CORNWALL COUNCIL,,,,,7600015153,,Revenue Grant To Be Paid,TR1 3AY,"459,457.43",Yes
Communities & Local Government,DCLG,04/03/2016,Work In Progress Pre-Cert 40373 Spend,Decentralisation and Local Growth,CORNWALL COUNCIL,,,,,7600015178,,Revenue Grant Clawback Offset,TR1 3AY,"-2,580.05",Yes
Communities & Local Government,DCLG,04/03/2016,Work In Progress Pre-Cert 40373 Spend,Decentralisation and Local Growth,CORNWALL COUNCIL,,,,,7600015178,,Revenue Grant To Be Paid,TR1 3AY,"883,223.37",Yes
Communities & Local Government,DCLG,04/03/2016,Work In Progress Pre-Cert 40373 Spend,Decentralisation and Local Growth,CORNWALL COUNCIL,,,,,7600015198,,Revenue Grant To Be Paid,TR1 3AY,"511,905.50",Yes
Communities & Local Government,DCLG,04/03/2016,Work In Progress Pre-Cert 40373 Spend,Decentralisation and Local Growth,CORNWALL DEVELOPMENT COMPANY,,,,,7600015158,,Revenue Grant Clawback Offset,TR15 3QG,"-19,224.91",Yes
Communities & Local Government,DCLG,04/03/2016,Work In Progress Pre-Cert 40373 Spend,Decentralisation and Local Growth,CORNWALL DEVELOPMENT COMPANY,,,,,7600015158,,Revenue Grant To Be Paid,TR15 3QG,"211,888.38",Yes
Communities & Local Government,DCLG,04/03/2016,Work In Progress Pre-Cert 40373 Spend,Decentralisation and Local Growth,COVENTRY UNIVERSITY ENTERPRISES LTD,,Medium,,,7600015168,,Revenue Grant To Be Paid,CV1 2TT,"69,330.70",Yes
Communities & Local Government,DCLG,04/03/2016,Work In Progress Pre-Cert 40373 Spend,Decentralisation and Local Growth,COVENTRY UNIVERSITY ENTERPRISES LTD,,Medium,,,7600015172,,Revenue Grant To Be Paid,CV1 2TT,"96,050.69",Yes
Communities & Local Government,DCLG,04/03/2016,Work In Progress Pre-Cert 40373 Spend,Decentralisation and Local Growth,CREATIVE ENGLAND LIMITED,,Medium,,,7600015163,,Revenue Grant Clawback Offset,BS1 5SP,-419.38,Yes
Communities & Local Government,DCLG,04/03/2016,Work In Progress Pre-Cert 40373 Spend,Decentralisation and Local Growth,CREATIVE ENGLAND LIMITED,,Medium,,,7600015163,,Revenue Grant To Be Paid,BS1 5SP,"9,987.93",Yes
Communities & Local Government,DCLG,04/03/2016,Work In Progress Pre-Cert 40373 Spend,Decentralisation and Local Growth,GENERATOR,,Micro,,,7600015179,,Revenue Grant To Be Paid,NE1 2PQ,"41,469.48",Yes
Communities & Local Government,DCLG,04/03/2016,Work In Progress Pre-Cert 40373 Spend,Decentralisation and Local Growth,HISTORIC BUILDINGS AND MONUMENTS,,,,,7600015184,,Revenue Grant To Be Paid,SN2 2EH,"23,515.08",Yes
Communities & Local Government,DCLG,04/03/2016,Work In Progress Pre-Cert 40373 Spend,Decentralisation and Local Growth,INTERNATIONAL SYNERGIES LTD,,Small,,,7600015190,,Revenue Grant To Be Paid,B30 3ES,"137,153.03",Yes
Communities & Local Government,DCLG,04/03/2016,Work In Progress Pre-Cert 40373 Spend,Decentralisation and Local Growth,LANCASTER UNIVERISTY,,,,,7600015154,,Revenue Grant To Be Paid,LA1 4YW,"11,170.26",Yes
Communities & Local Government,DCLG,04/03/2016,Work In Progress Pre-Cert 40373 Spend,Decentralisation and Local Growth,LANCASTER UNIVERISTY,,,,,7600015173,,Revenue Grant Clawback Offset,LA1 4YW,"-42,948.64",Yes
Communities & Local Government,DCLG,04/03/2016,Work In Progress Pre-Cert 40373 Spend,Decentralisation and Local Growth,LANCASTER UNIVERISTY,,,,,7600015173,,Revenue Grant To Be Paid,LA1 4YW,"81,884.59",Yes
Communities & Local Government,DCLG,04/03/2016,Work In Progress Pre-Cert 40373 Spend,Decentralisation and Local Growth,LANCASTER UNIVERISTY,,,,,7600015174,,Revenue Grant Clawback Offset,LA1 4YW,"-38,584.53",Yes
Communities & Local Government,DCLG,04/03/2016,Work In Progress Pre-Cert 40373 Spend,Decentralisation and Local Growth,LANCASTER UNIVERISTY,,,,,7600015174,,Revenue Grant To Be Paid,LA1 4YW,"305,181.19",Yes
Communities & Local Government,DCLG,04/03/2016,Work In Progress Pre-Cert 40373 Spend,Decentralisation and Local Growth,LANGTREE DARESBURY LIMITED,,Medium,,,7600015186,,Revenue Grant To Be Paid,WA4 6PS,102.66,Yes
Communities & Local Government,DCLG,04/03/2016,Work In Progress Pre-Cert 40373 Spend,Decentralisation and Local Growth,LINCONSHIRE COUNTY COUNCIL,,Large,,,7600015196,,Revenue Grant To Be Paid,LN1 1YT,"13,317.18",Yes
Communities & Local Government,DCLG,04/03/2016,Work In Progress Pre-Cert 40373 Spend,Decentralisation and Local Growth,LINCONSHIRE COUNTY COUNCIL,,Large,,,7600015197,,Revenue Grant Clawback Offset,LN1 1YT,-3.25,Yes
Communities & Local Government,DCLG,04/03/2016,Work In Progress Pre-Cert 40373 Spend,Decentralisation and Local Growth,LINCONSHIRE COUNTY COUNCIL,,Large,,,7600015197,,Revenue Grant To Be Paid,LN1 1YT,"329,574.93",Yes
Communities & Local Government,DCLG,04/03/2016,Work In Progress Pre-Cert 40373 Spend,Decentralisation and Local Growth,LINCONSHIRE COUNTY COUNCIL,,Large,,,7600015208,,Revenue Grant To Be Paid,LN1 1YT,"31,756.88",Yes
Communities & Local Government,DCLG,04/03/2016,Work In Progress Pre-Cert 40373 Spend,Decentralisation and Local Growth,LIVERPOOL CITY REG LOCAL ENT PARTNE,,,,,7600015143,,Revenue Grant Clawback Offset,L3 1BG,"-199,486.76",Yes
Communities & Local Government,DCLG,04/03/2016,Work In Progress Pre-Cert 40373 Spend,Decentralisation and Local Growth,LIVERPOOL CITY REG LOCAL ENT PARTNE,,,,,7600015143,,Revenue Grant To Be Paid,L3 1BG,"309,486.19",Yes
Communities & Local Government,DCLG,04/03/2016,Work In Progress Pre-Cert 40373 Spend,Decentralisation and Local Growth,NEW COLLEGE NOTTINGHAM CORPORATION,,Large,,,7600015205,,Revenue Grant To Be Paid,NG1 1PR,"8,064.04",Yes
Communities & Local Government,DCLG,04/03/2016,Work In Progress Pre-Cert 40373 Spend,Decentralisation and Local Growth,NEWCASTLE CITY COUNCIL,,,,,7600015161,,Revenue Grant Clawback Offset,NE1 8QN,"-1,903.60",Yes
Communities & Local Government,DCLG,04/03/2016,Work In Progress Pre-Cert 40373 Spend,Decentralisation and Local Growth,NEWCASTLE CITY COUNCIL,,,,,7600015161,,Revenue Grant To Be Paid,NE1 8QN,"55,988.33",Yes
Communities & Local Government,DCLG,04/03/2016,Work In Progress Pre-Cert 40373 Spend,Decentralisation and Local Growth,NORTHWEST AUTOMOTIVE ALLIANCE,,,,,7600015157,,Revenue Grant Clawback Offset,L24 9PZ,-864.55,Yes
Communities & Local Government,DCLG,04/03/2016,Work In Progress Pre-Cert 40373 Spend,Decentralisation and Local Growth,NORTHWEST AUTOMOTIVE ALLIANCE,,,,,7600015157,,Revenue Grant To Be Paid,L24 9PZ,"72,243.76",Yes
Communities & Local Government,DCLG,04/03/2016,Work In Progress Pre-Cert 40373 Spend,Decentralisation and Local Growth,NORTHWEST AUTOMOTIVE ALLIANCE,,,,,7600015188,,Revenue Grant Clawback Offset,L24 9PZ,-456.81,Yes
Communities & Local Government,DCLG,04/03/2016,Work In Progress Pre-Cert 40373 Spend,Decentralisation and Local Growth,NORTHWEST AUTOMOTIVE ALLIANCE,,,,,7600015188,,Revenue Grant To Be Paid,L24 9PZ,"11,649.92",Yes
Communities & Local Government,DCLG,04/03/2016,Work In Progress Pre-Cert 40373 Spend,Decentralisation and Local Growth,NOTTINGHAM CITY COUNCIL,,Large,,,7600015160,,Revenue Grant To Be Paid,NG2 3NG,"200,642.75",Yes
Communities & Local Government,DCLG,04/03/2016,Work In Progress Pre-Cert 40373 Spend,Decentralisation and Local Growth,NOTTINGHAM CITY COUNCIL,,Large,,,7600015194,,Revenue Grant To Be Paid,NG2 3NG,"69,696.57",Yes
Communities & Local Government,DCLG,04/03/2016,Work In Progress Pre-Cert 40373 Spend,Decentralisation and Local Growth,NOTTINGHAM TRENT UNIVERSITY,,Large,,,7600015146,,Revenue Grant To Be Paid,NG1 4FZ,"16,381.32",Yes
Communities & Local Government,DCLG,04/03/2016,Work In Progress Pre-Cert 40373 Spend,Decentralisation and Local Growth,OCEAN STUDIOS,,,,,7600015145,,Revenue Grant To Be Paid,PL1 3RP,"3,735.72",Yes
Communities & Local Government,DCLG,04/03/2016,Work In Progress Pre-Cert 40373 Spend,Decentralisation and Local Growth,OCEAN STUDIOS,,,,,7600015199,,Revenue Grant To Be Paid,PL1 3RP,"30,897.52",Yes
Communities & Local Government,DCLG,04/03/2016,Work In Progress Pre-Cert 40373 Spend,Decentralisation and Local Growth,SOLIHULL METROPOLITAN BC,,Large,,,7600015191,,Revenue Grant Clawback Offset,B91 3QS,-6,Yes
Communities & Local Government,DCLG,04/03/2016,Work In Progress Pre-Cert 40373 Spend,Decentralisation and Local Growth,SOLIHULL METROPOLITAN BC,,Large,,,7600015191,,Revenue Grant To Be Paid,B91 3QS,"54,432.64",Yes
Communities & Local Government,DCLG,04/03/2016,Work In Progress Pre-Cert 40373 Spend,Decentralisation and Local Growth,UNIVERSITY OF WOLVERHAMPTON,,Large,,,7600015175,,Revenue Grant To Be Paid,WV1 1SB,"91,718.03",Yes
Communities & Local Government,DCLG,04/03/2016,Work In Progress Pre-Cert 40373 Spend,Decentralisation and Local Growth,WALSALL METROPOLITAN BC,,Large,,,7600015166,,Revenue Grant To Be Paid,WS1 1TW,-0.31,Yes
Communities & Local Government,DCLG,04/03/2016,Work In Progress Pre-Cert 40373 Spend,Decentralisation and Local Growth,WORCESTERSHIRE COUNTY COUNCIL,,Public Bodies,,,7600015170,,Revenue Grant To Be Paid,WR5 2NP,"47,828.36",Yes
Communities & Local Government,DCLG,04/03/2016,Work In Progress Pre-Cert 40467 Spend,Decentralisation and Local Growth,ARKWRIGHT SOCIETY LTD,,Small,,,7600015156,,Capital Grant To Be Paid,DE4 3RQ,"105,944.43",Yes
Communities & Local Government,DCLG,04/03/2016,Work In Progress Pre-Cert 40467 Spend,Decentralisation and Local Growth,ASTON UNIVERSITY,,Large,,,7600015152,,Capital Grant Clawback Offset,B4 7ET,"-49,727.04",Yes
Communities & Local Government,DCLG,04/03/2016,Work In Progress Pre-Cert 40467 Spend,Decentralisation and Local Growth,ASTON UNIVERSITY,,Large,,,7600015152,,Capital Grant To Be Paid,B4 7ET,"166,047.20",Yes
Communities & Local Government,DCLG,04/03/2016,Work In Progress Pre-Cert 40467 Spend,Decentralisation and Local Growth,BLACKBURN WITH DARWEN BC,,,,,7600015150,,Capital Grant To Be Paid,BB1 7DY,"244,526.82",Yes
Communities & Local Government,DCLG,04/03/2016,Work In Progress Pre-Cert 40467 Spend,Decentralisation and Local Growth,BLACKBURN WITH DARWEN BC,,,,,7600015195,,Capital Grant To Be Paid,BB1 7DY,"348,110.20",Yes
Communities & Local Government,DCLG,04/03/2016,Work In Progress Pre-Cert 40467 Spend,Decentralisation and Local Growth,BROWNFIELD INVESTMENTS LTD HEADWRKS,,Micro,,,7600015200,,Capital Grant To Be Paid,TR3 6EE,"474,772.41",Yes
Communities & Local Government,DCLG,04/03/2016,Work In Progress Pre-Cert 40467 Spend,Decentralisation and Local Growth,BROWNFIELD INVESTMENTS LTD HEADWRKS,,Micro,,,7600015202,,Capital Grant To Be Paid,TR3 6EE,"446,543.52",Yes
Communities & Local Government,DCLG,04/03/2016,Work In Progress Pre-Cert 40467 Spend,Decentralisation and Local Growth,CLARENCE ARCADE DEVELOPMENTS LTD,,Micro,,,7600015155,,Capital Grant To Be Paid,M4 6JW,460.34,Yes
Communities & Local Government,DCLG,04/03/2016,Work In Progress Pre-Cert 40467 Spend,Decentralisation and Local Growth,CLARENCE ARCADE DEVELOPMENTS LTD,,Micro,,,7600015201,,Capital Grant To Be Paid,M4 6JW,"98,660.00",Yes
Communities & Local Government,DCLG,04/03/2016,Work In Progress Pre-Cert 40467 Spend,Decentralisation and Local Growth,CORNWALL COUNCIL,,,,,7600015153,,Capital Grant To Be Paid,TR1 3AY,"244,595.51",Yes
Communities & Local Government,DCLG,04/03/2016,Work In Progress Pre-Cert 40467 Spend,Decentralisation and Local Growth,CORNWALL COUNCIL,,,,,7600015178,,Capital Grant To Be Paid,TR1 3AY,0.04,Yes
Communities & Local Government,DCLG,04/03/2016,Work In Progress Pre-Cert 40467 Spend,Decentralisation and Local Growth,CORNWALL COUNCIL,,,,,7600015187,,Capital Grant To Be Paid,TR1 3AY,"298,210.86",Yes
Communities & Local Government,DCLG,04/03/2016,Work In Progress Pre-Cert 40467 Spend,Decentralisation and Local Growth,CORNWALL COUNCIL,,,,,7600015198,,Capital Grant Clawback Offset,TR1 3AY,"-5,362.26",Yes
Communities & Local Government,DCLG,04/03/2016,Work In Progress Pre-Cert 40467 Spend,Decentralisation and Local Growth,CORNWALL COUNCIL,,,,,7600015198,,Capital Grant To Be Paid,TR1 3AY,"319,849.30",Yes
Communities & Local Government,DCLG,04/03/2016,Work In Progress Pre-Cert 40467 Spend,Decentralisation and Local Growth,CORNWALL DEVELOPMENT COMPANY,,,,,7600015158,,Capital Grant To Be Paid,TR15 3QG,"289,247.11",Yes
Communities & Local Government,DCLG,04/03/2016,Work In Progress Pre-Cert 40467 Spend,Decentralisation and Local Growth,CREATIVE ENGLAND LIMITED,,Medium,,,7600015163,,Capital Grant To Be Paid,BS1 5SP,"990,001.00",Yes
Communities & Local Government,DCLG,04/03/2016,Work In Progress Pre-Cert 40467 Spend,Decentralisation and Local Growth,FINANCE YORKSHIRE LIMITED,,,,,7600015176,,Capital Grant To Be Paid,S75 3TZ,"28,633.01",Yes
Communities & Local Government,DCLG,04/03/2016,Work In Progress Pre-Cert 40467 Spend,Decentralisation and Local Growth,FINANCE YORKSHIRE LIMITED,,,,,7600015177,,Capital Grant To Be Paid,S75 3TZ,"47,935.60",Yes
Communities & Local Government,DCLG,04/03/2016,Work In Progress Pre-Cert 40467 Spend,Decentralisation and Local Growth,HISTORIC BUILDINGS AND MONUMENTS,,,,,7600015184,,Capital Grant To Be Paid,SN2 2EH,"281,717.34",Yes
Communities & Local Government,DCLG,04/03/2016,Work In Progress Pre-Cert 40467 Spend,Decentralisation and Local Growth,HOMES & COMMUNITIES AGENCY,,Large,,,7600015164,,Capital Grant Clawback Offset,NE11 0NA,"14,727.67",Yes
Communities & Local Government,DCLG,04/03/2016,Work In Progress Pre-Cert 40467 Spend,Decentralisation and Local Growth,HOMES & COMMUNITIES AGENCY,,Large,,,7600015164,,Capital Grant To Be Paid,NE11 0NA,"785,239.46",Yes
Communities & Local Government,DCLG,04/03/2016,Work In Progress Pre-Cert 40467 Spend,Decentralisation and Local Growth,KERNOW COATINGS LTD,,Medium,,,7600015203,,Capital Grant To Be Paid,TR10 9DQ,"188,700.40",Yes
Communities & Local Government,DCLG,04/03/2016,Work In Progress Pre-Cert 40467 Spend,Decentralisation and Local Growth,LANCASTER UNIVERISTY,,,,,7600015154,,Capital Grant To Be Paid,LA1 4YW,"656,385.71",Yes
Communities & Local Government,DCLG,04/03/2016,Work In Progress Pre-Cert 40467 Spend,Decentralisation and Local Growth,LANGTREE DARESBURY LIMITED,,Medium,,,7600015186,,Capital Grant To Be Paid,WA4 6PS,"58,887.32",Yes
Communities & Local Government,DCLG,04/03/2016,Work In Progress Pre-Cert 40467 Spend,Decentralisation and Local Growth,LEICESTER CITY COUNCIL,,Large,,,7600015181,,Capital Grant To Be Paid,LE1 6ZG,"61,484.81",Yes
Communities & Local Government,DCLG,04/03/2016,Work In Progress Pre-Cert 40467 Spend,Decentralisation and Local Growth,LEICESTER CITY COUNCIL,,Large,,,7600015204,,Capital Grant Clawback Offset,LE1 6ZG,"-292,605.40",Yes
Communities & Local Government,DCLG,04/03/2016,Work In Progress Pre-Cert 40467 Spend,Decentralisation and Local Growth,LEICESTER CITY COUNCIL,,Large,,,7600015204,,Capital Grant To Be Paid,LE1 6ZG,"502,218.55",Yes
Communities & Local Government,DCLG,04/03/2016,Work In Progress Pre-Cert 40467 Spend,Decentralisation and Local Growth,LINCONSHIRE COUNTY COUNCIL,,Large,,,7600015197,,Capital Grant To Be Paid,LN1 1YT,"422,899.07",Yes
Communities & Local Government,DCLG,04/03/2016,Work In Progress Pre-Cert 40467 Spend,Decentralisation and Local Growth,MANCHESTER CITY COUNCIL,,,,,7600015141,,Capital Grant Clawback Offset,M60 2JR,"-130,161.61",Yes
Communities & Local Government,DCLG,04/03/2016,Work In Progress Pre-Cert 40467 Spend,Decentralisation and Local Growth,MANCHESTER CITY COUNCIL,,,,,7600015141,,Capital Grant To Be Paid,M60 2JR,"363,051.18",Yes
Communities & Local Government,DCLG,04/03/2016,Work In Progress Pre-Cert 40467 Spend,Decentralisation and Local Growth,MARSHALL CONSTRUCTION (WEST YORKS),,Large,,,7600015207,,Capital Grant To Be Paid,HX5 9BW,"144,969.35",Yes
Communities & Local Government,DCLG,04/03/2016,Work In Progress Pre-Cert 40467 Spend,Decentralisation and Local Growth,MARSHALL CONSTRUCTION (WEST YORKS),,Large,,,7600015209,,Capital Grant To Be Paid,HX5 9BW,"237,631.72",Yes
Communities & Local Government,DCLG,04/03/2016,Work In Progress Pre-Cert 40467 Spend,Decentralisation and Local Growth,NEW COLLEGE NOTTINGHAM CORPORATION,,Large,,,7600015205,,Capital Grant Clawback Offset,NG1 1PR,"-7,617.80",Yes
Communities & Local Government,DCLG,04/03/2016,Work In Progress Pre-Cert 40467 Spend,Decentralisation and Local Growth,NEW COLLEGE NOTTINGHAM CORPORATION,,Large,,,7600015205,,Capital Grant To Be Paid,NG1 1PR,"47,530.74",Yes
Communities & Local Government,DCLG,04/03/2016,Work In Progress Pre-Cert 40467 Spend,Decentralisation and Local Growth,NOTTINGHAM CITY COUNCIL,,Large,,,7600015160,,Capital Grant To Be Paid,NG2 3NG,"282,047.79",Yes
Communities & Local Government,DCLG,04/03/2016,Work In Progress Pre-Cert 40467 Spend,Decentralisation and Local Growth,NOTTINGHAM TRENT UNIVERSITY,,Large,,,7600015146,,Capital Grant To Be Paid,NG1 4FZ,-2.47,Yes
Communities & Local Government,DCLG,04/03/2016,Work In Progress Pre-Cert 40467 Spend,Decentralisation and Local Growth,OCEAN STUDIOS,,,,,7600015145,,Capital Grant To Be Paid,PL1 3RP,"48,776.52",Yes
Communities & Local Government,DCLG,04/03/2016,Work In Progress Pre-Cert 40467 Spend,Decentralisation and Local Growth,OCEAN STUDIOS,,,,,7600015199,,Capital Grant To Be Paid,PL1 3RP,"29,892.14",Yes
Communities & Local Government,DCLG,04/03/2016,Work In Progress Pre-Cert 40467 Spend,Decentralisation and Local Growth,SHEFFIELD  CC,,,,,7600015180,,Capital Grant Clawback Offset,S1 2SH,-80.94,Yes
Communities & Local Government,DCLG,04/03/2016,Work In Progress Pre-Cert 40467 Spend,Decentralisation and Local Growth,SHEFFIELD  CC,,,,,7600015180,,Capital Grant To Be Paid,S1 2SH,"415,239.24",Yes
Communities & Local Government,DCLG,04/03/2016,Work In Progress Pre-Cert 40467 Spend,Decentralisation and Local Growth,SOUTH YORKS PASSENGER TRANS EXEC,,,,,7600015162,,Capital Grant Clawback Offset,S1 2BQ,"-2,386.64",Yes
Communities & Local Government,DCLG,04/03/2016,Work In Progress Pre-Cert 40467 Spend,Decentralisation and Local Growth,SOUTH YORKS PASSENGER TRANS EXEC,,,,,7600015162,,Capital Grant To Be Paid,S1 2BQ,"909,777.13",Yes
Communities & Local Government,DCLG,04/03/2016,Work In Progress Pre-Cert 40467 Spend,Decentralisation and Local Growth,STOCKSBRIDGE REGENERATION CO LTD,,,,,7600015165,,Capital Grant Clawback Offset,S36 6DT,"-45,260.95",Yes
Communities & Local Government,DCLG,04/03/2016,Work In Progress Pre-Cert 40467 Spend,Decentralisation and Local Growth,STOCKSBRIDGE REGENERATION CO LTD,,,,,7600015165,,Capital Grant To Be Paid,S36 6DT,"1,124,918.82",Yes
Communities & Local Government,DCLG,04/03/2016,Work In Progress Pre-Cert 40467 Spend,Decentralisation and Local Growth,TRIUMPH T P DEVELOPMENTS LTD,,,,,7600015189,,Capital Grant To Be Paid,L24 9GQ,"6,403.37",Yes
Communities & Local Government,DCLG,04/03/2016,Work In Progress Pre-Cert 40467 Spend,Decentralisation and Local Growth,WALSALL METROPOLITAN BC,,Large,,,7600015166,,Capital Grant To Be Paid,WS1 1TW,"41,384.24",Yes
Communities & Local Government,DCLG,04/03/2016,Work In Progress Pre-Cert 40467 Spend,Decentralisation and Local Growth,WHEAL HARMONY LTD,,,,,7600015159,,Capital Grant To Be Paid,TR1 1HT,"38,475.00",Yes
Communities & Local Government,DCLG,04/03/2016,Work In Progress Pre-Cert 40467 Spend,Local Government & Public Services,LINCONSHIRE COUNTY COUNCIL,,Large,,,2300002407,,DG Regio Audit Findings,LN1 1YT,"-21,719.98",Yes
Communities & Local Government,DCLG,04/03/2016,Work In Progress Pre-Cert 40467 Spend,Local Government & Public Services,LINCONSHIRE COUNTY COUNCIL,,Large,,,2300002407,,DGRegio Audit Fiindings,LN1 1YT,"-44,266.23",Yes
Communities & Local Government,DCLG,07/03/2016,Grant in Aid to NDPBs (non budget),Finance,VALUATION TRIBUNAL SERVICE,,,,211218366,2100262618,,Grant in Aid to VTS - Non Domestic Rates Appeals,E1 8EU,"1,161,222.00",Yes
Communities & Local Government,DCLG,07/03/2016,Work In Progress Pre-Cert 40373 Spend,Decentralisation and Local Growth,ASTON UNIVERSITY,,Large,,,7600015222,,Revenue Grant To Be Paid,B4 7ET,"92,235.59",Yes
Communities & Local Government,DCLG,07/03/2016,Work In Progress Pre-Cert 40373 Spend,Decentralisation and Local Growth,BIRMINGHAM CITY COUNCIL (NOT RATES),,Large,,,7600015217,,Revenue Grant To Be Paid,B1 1BB,"29,223.90",Yes
Communities & Local Government,DCLG,07/03/2016,Work In Progress Pre-Cert 40373 Spend,Decentralisation and Local Growth,BIRMINGHAM CITY COUNCIL (NOT RATES),,Large,,,7600015229,,Revenue Grant To Be Paid,B1 1BB,"98,203.09",Yes
Communities & Local Government,DCLG,07/03/2016,Work In Progress Pre-Cert 40373 Spend,Decentralisation and Local Growth,CAMBRIDGESHIRE COUNTY COUNCIL,,,,,7600015238,,Revenue Grant Clawback Offset,CB3 0AP,"-1,262.94",Yes
Communities & Local Government,DCLG,07/03/2016,Work In Progress Pre-Cert 40373 Spend,Decentralisation and Local Growth,CAMBRIDGESHIRE COUNTY COUNCIL,,,,,7600015238,,Revenue Grant To Be Paid,CB3 0AP,"35,064.94",Yes
Communities & Local Government,DCLG,07/03/2016,Work In Progress Pre-Cert 40373 Spend,Decentralisation and Local Growth,COVENTRY & WARKS CO-OP DEVEL AGENCY,,Small,,,7600015226,,Revenue Grant To Be Paid,CV1 5EA,"34,968.56",Yes
Communities & Local Government,DCLG,07/03/2016,Work In Progress Pre-Cert 40373 Spend,Decentralisation and Local Growth,COVENTRY UNIVERSITY ENTERPRISES LTD,,Medium,,,7600015220,,Revenue Grant To Be Paid,CV1 2TT,"121,816.38",Yes
Communities & Local Government,DCLG,07/03/2016,Work In Progress Pre-Cert 40373 Spend,Decentralisation and Local Growth,COVENTRY UNIVERSITY ENTERPRISES LTD,,Medium,,,7600015224,,Revenue Grant To Be Paid,CV1 2TT,"69,645.43",Yes
Communities & Local Government,DCLG,07/03/2016,Work In Progress Pre-Cert 40373 Spend,Decentralisation and Local Growth,COVENTRY UNIVERSITY ENTERPRISES LTD,,Medium,,,7600015225,,Revenue Grant Clawback Offset,CV1 2TT,"-7,900.92",Yes
Communities & Local Government,DCLG,07/03/2016,Work In Progress Pre-Cert 40373 Spend,Decentralisation and Local Growth,COVENTRY UNIVERSITY ENTERPRISES LTD,,Medium,,,7600015225,,Revenue Grant To Be Paid,CV1 2TT,"88,907.25",Yes
Communities & Local Government,DCLG,07/03/2016,Work In Progress Pre-Cert 40373 Spend,Decentralisation and Local Growth,CREATIVE ENGLAND LTD,,Medium,,,7600015218,,Revenue Grant Clawback Offset,BS1 5SP,"-2,030.00",Yes
Communities & Local Government,DCLG,07/03/2016,Work In Progress Pre-Cert 40373 Spend,Decentralisation and Local Growth,CREATIVE ENGLAND LTD,,Medium,,,7600015218,,Revenue Grant To Be Paid,BS1 5SP,"63,784.43",Yes
Communities & Local Government,DCLG,07/03/2016,Work In Progress Pre-Cert 40373 Spend,Decentralisation and Local Growth,JACTIN HOUSE LIMITED,,Small,,,7600015214,,Revenue Grant To Be Paid,M4 6AD,0.02,Yes
Communities & Local Government,DCLG,07/03/2016,Work In Progress Pre-Cert 40373 Spend,Decentralisation and Local Growth,LANGTREE DARESBURY LIMITED,,Medium,,,7600015235,,Revenue Grant To Be Paid,WA4 6PS,637.26,Yes
Communities & Local Government,DCLG,07/03/2016,Work In Progress Pre-Cert 40373 Spend,Decentralisation and Local Growth,LIGHTHOUSE GROUP UK LTD,Yes,Small,,,7600015215,,Revenue Grant To Be Paid,BD5 8HH,"28,836.71",Yes
Communities & Local Government,DCLG,07/03/2016,Work In Progress Pre-Cert 40373 Spend,Decentralisation and Local Growth,LIVERPOOL CITY REG LOCAL ENT PARTNE,,,,,7600015210,,Revenue Grant Clawback Offset,L3 1BG,"-3,006.41",Yes
Communities & Local Government,DCLG,07/03/2016,Work In Progress Pre-Cert 40373 Spend,Decentralisation and Local Growth,LIVERPOOL CITY REG LOCAL ENT PARTNE,,,,,7600015210,,Revenue Grant To Be Paid,L3 1BG,"14,682.31",Yes
Communities & Local Government,DCLG,07/03/2016,Work In Progress Pre-Cert 40373 Spend,Decentralisation and Local Growth,LIVERPOOL CITY REG LOCAL ENT PARTNE,,,,,7600015211,,Revenue Grant Clawback Offset,L3 1BG,"-5,190.40",Yes
Communities & Local Government,DCLG,07/03/2016,Work In Progress Pre-Cert 40373 Spend,Decentralisation and Local Growth,LIVERPOOL CITY REG LOCAL ENT PARTNE,,,,,7600015211,,Revenue Grant To Be Paid,L3 1BG,"225,148.53",Yes
Communities & Local Government,DCLG,07/03/2016,Work In Progress Pre-Cert 40373 Spend,Decentralisation and Local Growth,LIVERPOOL CITY REG LOCAL ENT PARTNE,,,,,7600015213,,Revenue Grant Clawback Offset,L3 1BG,"-31,798.29",Yes
Communities & Local Government,DCLG,07/03/2016,Work In Progress Pre-Cert 40373 Spend,Decentralisation and Local Growth,LIVERPOOL CITY REG LOCAL ENT PARTNE,,,,,7600015213,,Revenue Grant To Be Paid,L3 1BG,"215,616.60",Yes
Communities & Local Government,DCLG,07/03/2016,Work In Progress Pre-Cert 40373 Spend,Decentralisation and Local Growth,NORFOLK COUNTY COUNCIL,,,,,7600015227,,Revenue Grant To Be Paid,NR1 2SG,"12,607.16",Yes
Communities & Local Government,DCLG,07/03/2016,Work In Progress Pre-Cert 40373 Spend,Decentralisation and Local Growth,NORFOLK COUNTY COUNCIL,,,,,7600015228,,Revenue Grant To Be Paid,NR1 2SG,"42,675.85",Yes
Communities & Local Government,DCLG,07/03/2016,Work In Progress Pre-Cert 40373 Spend,Decentralisation and Local Growth,NORFOLK COUNTY COUNCIL,,,,,7600015230,,Revenue Grant To Be Paid,NR1 2SG,"48,187.95",Yes
Communities & Local Government,DCLG,07/03/2016,Work In Progress Pre-Cert 40373 Spend,Decentralisation and Local Growth,NORFOLK COUNTY COUNCIL,,,,,7600015231,,Revenue Grant Clawback Offset,NR1 2SG,-134.12,Yes
Communities & Local Government,DCLG,07/03/2016,Work In Progress Pre-Cert 40373 Spend,Decentralisation and Local Growth,NORFOLK COUNTY COUNCIL,,,,,7600015231,,Revenue Grant To Be Paid,NR1 2SG,"53,084.71",Yes
Communities & Local Government,DCLG,07/03/2016,Work In Progress Pre-Cert 40373 Spend,Decentralisation and Local Growth,UNIVERSITY OF BIRMINGHAM,,Large,,,7600015221,,Revenue Grant Clawback Offset,B15 2TT,"-17,733.24",Yes
Communities & Local Government,DCLG,07/03/2016,Work In Progress Pre-Cert 40373 Spend,Decentralisation and Local Growth,UNIVERSITY OF BIRMINGHAM,,Large,,,7600015221,,Revenue Grant To Be Paid,B15 2TT,"103,938.63",Yes
Communities & Local Government,DCLG,07/03/2016,Work In Progress Pre-Cert 40373 Spend,Decentralisation and Local Growth,UNIVERSITY OF BIRMINGHAM,,Large,,,7600015233,,Revenue Grant Clawback Offset,B15 2TT,"-20,793.81",Yes
Communities & Local Government,DCLG,07/03/2016,Work In Progress Pre-Cert 40373 Spend,Decentralisation and Local Growth,UNIVERSITY OF BIRMINGHAM,,Large,,,7600015233,,Revenue Grant To Be Paid,B15 2TT,"65,499.01",Yes
Communities & Local Government,DCLG,07/03/2016,Work In Progress Pre-Cert 40373 Spend,Decentralisation and Local Growth,UNIVERSITY OF WOLVERHAMPTON,,Large,,,7600015232,,Revenue Grant Clawback Offset,WV1 1SB,"-21,746.46",Yes
Communities & Local Government,DCLG,07/03/2016,Work In Progress Pre-Cert 40373 Spend,Decentralisation and Local Growth,UNIVERSITY OF WOLVERHAMPTON,,Large,,,7600015232,,Revenue Grant To Be Paid,WV1 1SB,"345,797.62",Yes
Communities & Local Government,DCLG,07/03/2016,Work In Progress Pre-Cert 40373 Spend,Decentralisation and Local Growth,UNIVERSITY OF WOLVERHAMPTON,,Large,,,7600015236,,Revenue Grant Clawback Offset,WV1 1SB,-285.85,Yes
Communities & Local Government,DCLG,07/03/2016,Work In Progress Pre-Cert 40373 Spend,Decentralisation and Local Growth,UNIVERSITY OF WOLVERHAMPTON,,Large,,,7600015236,,Revenue Grant To Be Paid,WV1 1SB,"175,958.85",Yes
Communities & Local Government,DCLG,07/03/2016,Work In Progress Pre-Cert 40373 Spend,Decentralisation and Local Growth,WORCESTERSHIRE COUNTY COUNCIL,,Public Bodies,,,7600015234,,Revenue Grant To Be Paid,WR5 2NP,"21,137.01",Yes
Communities & Local Government,DCLG,07/03/2016,Work In Progress Pre-Cert 40467 Spend,Decentralisation and Local Growth,BIRMINGHAM CITY COUNCIL (NOT RATES),,Large,,,7600015217,,Capital Grant To Be Paid,B1 1BB,"494,735.28",Yes
Communities & Local Government,DCLG,07/03/2016,Work In Progress Pre-Cert 40467 Spend,Decentralisation and Local Growth,CAMBRIDGESHIRE COUNTY COUNCIL,,,,,7600015238,,Capital Grant Clawback Offset,CB3 0AP,"-4,191.19",Yes
Communities & Local Government,DCLG,07/03/2016,Work In Progress Pre-Cert 40467 Spend,Decentralisation and Local Growth,CAMBRIDGESHIRE COUNTY COUNCIL,,,,,7600015238,,Capital Grant To Be Paid,CB3 0AP,"217,312.43",Yes
Communities & Local Government,DCLG,07/03/2016,Work In Progress Pre-Cert 40467 Spend,Decentralisation and Local Growth,DERBYSHIRE COUNTY COUNCIL,,Large,,,7600015212,,Capital Grant To Be Paid,DE4 3AG,"34,885.34",Yes
Communities & Local Government,DCLG,07/03/2016,Work In Progress Pre-Cert 40467 Spend,Decentralisation and Local Growth,FRAMEWORK HOUSING ASSOCIATION,,Medium,,,2300002294,,National Procurement Checks execise - Procurement,NG7 7LS,"-123,809.52",Yes
Communities & Local Government,DCLG,07/03/2016,Work In Progress Pre-Cert 40467 Spend,Decentralisation and Local Growth,JACTIN HOUSE LIMITED,,Small,,,7600015214,,Capital Grant To Be Paid,M4 6AD,"279,288.97",Yes
Communities & Local Government,DCLG,07/03/2016,Work In Progress Pre-Cert 40467 Spend,Decentralisation and Local Growth,LANGTREE DARESBURY LIMITED,,Medium,,,7600015235,,Capital Grant To Be Paid,WA4 6PS,"796,730.23",Yes
Communities & Local Government,DCLG,07/03/2016,Work In Progress Pre-Cert 40467 Spend,Decentralisation and Local Growth,LIGHTHOUSE GROUP UK LTD,Yes,Small,,,7600015215,,Capital Grant To Be Paid,BD5 8HH,"59,076.93",Yes
Communities & Local Government,DCLG,07/03/2016,Work In Progress Pre-Cert 40467 Spend,Decentralisation and Local Growth,LOWTHER CASTLE & GARDENS TRUST,,,,,7600015219,,Capital Grant To Be Paid,CA10 2HG,"24,325.33",Yes
Communities & Local Government,DCLG,07/03/2016,Work In Progress Pre-Cert 40467 Spend,Decentralisation and Local Growth,UNIVERSITY OF BIRMINGHAM,,Large,,,7600015221,,Capital Grant To Be Paid,B15 2TT,0.07,Yes
Communities & Local Government,DCLG,07/03/2016,Work In Progress Pre-Cert 40467 Spend,Decentralisation and Local Growth,UNIVERSITY OF BIRMINGHAM,,Large,,,7600015233,,Capital Grant Clawback Offset,B15 2TT,"-4,574.13",Yes
Communities & Local Government,DCLG,07/03/2016,Work In Progress Pre-Cert 40467 Spend,Decentralisation and Local Growth,UNIVERSITY OF BIRMINGHAM,,Large,,,7600015233,,Capital Grant To Be Paid,B15 2TT,"161,483.94",Yes
Communities & Local Government,DCLG,08/03/2016,Cap Grants to Local Authorities (DEL),Housing & Planning,CENTRAL BEDFORDSHIRE COUNCIL,,Public Bodies,,,2100262561,,Right to Buy Social Mobility Fund (CIS),MK42 9BD,"20,000.00",Yes
Communities & Local Government,DCLG,08/03/2016,Cap Grants to Local Authorities (DEL),Housing & Planning,CHESTERFIELD BC,,Large,,232102301,2100262562,,Right to Buy Social Mobility Fund (CIS),S40 1LP,"40,000.00",Yes
Communities & Local Government,DCLG,08/03/2016,Cap Grants to Local Authorities (DEL),Housing & Planning,CITY OF LONDON,,Large,,217471460,2100262568,,Right to Buy Social Mobility Fund (CIS),EC2P 2EJ,"150,000.00",Yes
Communities & Local Government,DCLG,08/03/2016,Cap Grants to Local Authorities (DEL),Housing & Planning,LB WANDSWORTH,,Public Bodies,,,2100262574,,Right to Buy Social Mobility Fund (CIS),SW18 2PU,"150,000.00",Yes
Communities & Local Government,DCLG,08/03/2016,Cap Grants to Local Authorities (DEL),Housing & Planning,LONDON BOROUGH BARKING & DAGENHAM,,,,230359650,2100262559,,Right to Buy Social Mobility Fund (CIS),RM10 7BY,"180,000.00",Yes
Communities & Local Government,DCLG,08/03/2016,Cap Grants to Local Authorities (DEL),Housing & Planning,LONDON BOROUGH GREENWICH,,,,233026868,2100262564,,Right to Buy Social Mobility Fund (CIS),SE18 6EU,"120,000.00",Yes
Communities & Local Government,DCLG,08/03/2016,Cap Grants to Local Authorities (DEL),Housing & Planning,LONDON BOROUGH OF CAMDEN,,Public Bodies,,211651836,2100262560,,Right to Buy Social Mobility Fund (CIS),WC1H 8NG,"30,000.00",Yes
Communities & Local Government,DCLG,08/03/2016,Cap Grants to Local Authorities (DEL),Housing & Planning,LONDON BOROUGH OF ENFIELD,,,,227475613,2100262563,,Right to Buy Social Mobility Fund (CIS),EN1 3XE,"210,000.00",Yes
Communities & Local Government,DCLG,08/03/2016,Cap Grants to Local Authorities (DEL),Housing & Planning,SOUTHWARK COUNCIL,,Public Bodies,,211004957,2100262565,,Right to Buy Social Mobility Fund (CIS),SE15 6AA,"450,000.00",Yes
Communities & Local Government,DCLG,08/03/2016,Cap Grants to Local Authorities (DEL),Housing & Planning,STOKE ON TRENT CITY COUNCIL,,,,232789425,2100262566,,Right to Buy Social Mobility Fund (CIS),ST4 1RF,"100,000.00",Yes
Communities & Local Government,DCLG,08/03/2016,Cap Grants to Local Authorities (DEL),Housing & Planning,WEST LANCASHIRE BC,,,,232240978,2100262567,,Right to Buy Social Mobility Fund (CIS),L39 2DF,"40,000.00",Yes
Communities & Local Government,DCLG,08/03/2016,Current (non AEF) Grants to Local Authorities,Local Government & Public Services,NOTTINGHAMSHIRE COUNTY CNCL,,,,,5000301505,,Overpayment of Grant recovered by Exchequer,NG1 4BU,"-6,700.00",Yes
Communities & Local Government,DCLG,08/03/2016,Current (non AEF) Grants to Local Authorities,Local Government & Public Services,NOTTINGHAMSHIRE COUNTY CNCL,,,,,5000301506,,Overpayment of Grant recovered by Exchequer,NG1 4BU,"-1,700.00",Yes
Communities & Local Government,DCLG,08/03/2016,Current Grants to Non Profit Bodies,Housing & Planning,SOURCE PARTNERSHIP CONSULTING LIMIT,,Micro,,,5000325825,,Right to Manage,SE22 9PF,"12,000.00",Yes
Communities & Local Government,DCLG,08/03/2016,Grant in Aid to NDPBs (non budget),Finance,COMMISSION LOCAL ADMINISTRATION,,,,215271508,2100262470,,DCLG DEL Budget Contribution for CLAE 15/16,SW1P 4QP,"986,000.00",Yes
Communities & Local Government,DCLG,08/03/2016,Grant in Aid to NDPBs (non budget),Finance,COMMISSION LOCAL ADMINISTRATION,,,,215271508,2100262570,,CLAE Budget contribution,SW1P 4QP,"1,520,000.00",Yes
Communities & Local Government,DCLG,08/03/2016,Grant in Aid to NDPBs (non budget),Housing & Planning,EBBSFLEET DEVELOPMENT CORPORATION,,,,,2100262577,,Budget contribution for Ebbsfleet DC for 2015/16,DA11 8DB,"1,164,840.00",Yes
Communities & Local Government,DCLG,08/03/2016,Professional services,Local Government & Public Services,VALUATION OFFICE AGENCY,,Public Bodies,,215253886,2100262688,Environmental Services,VOA,W1D 5BU,"13,308,333.00",
Communities & Local Government,DCLG,09/03/2016,Work In Progress Pre-Cert 40373 Spend,Decentralisation and Local Growth,BOURNVILLE COLLEGE FURTHER EDUCATIO,,Large,,,2300002387,,Accelerating Local Growth,B31 2TS,"-667,478.27",Yes
Communities & Local Government,DCLG,10/03/2016,Capital Grants to People Non Profit,Local Government & Public Services,EDGWARE AND DISTRICT REFORM SYNAGOG,,,,,2100262801,,Integration & Faith-Holocaust Memorial Garden,HA8 8AB,"11,000.00",Yes
Communities & Local Government,DCLG,10/03/2016,Current Grant Private Sector,Housing & Planning,RENAISI LTD,,Medium,,,2100262799,,Neighbourhood Planning Mobilisation,EC2A 3EQ,"12,000.00",
Communities & Local Government,DCLG,10/03/2016,Current Grants to Non Profit Bodies,Housing & Planning,D'EYNSFORD TENANT MANAGEMENT ORG,,,,,5000322610,,Overpayment of Grant recovered by Exchequer,SE5 7AX,"-1,175.00",Yes
Communities & Local Government,DCLG,10/03/2016,Current Grants to Non Profit Bodies,Local Government & Public Services,NAT ASSOC LOCAL COUNCILS,,,,580214963,2100262798,,Sector Led Body Grant,WC1B 3LD,"88,843.89",Yes
Communities & Local Government,DCLG,10/03/2016,Current Grants to Non Profit Bodies,Local Government & Public Services,STREETS ALIVE LTD,,Micro,,,2100262689,,Street Party Support,BS1 5BB,"2,500.00",Yes
Communities & Local Government,DCLG,10/03/2016,Grant in Aid to NDPBs (non budget),Housing & Planning,HOMES & COMMUNITIES AGENCY,,Public Bodies,,215576860,2100262797,,HCA Contingency Fund Payment,NE11 0NA,"294,579,886.00",Yes
Communities & Local Government,DCLG,10/03/2016,Work In Progress Pre-Cert 40373 Spend,Decentralisation and Local Growth,LINCONSHIRE COUNTY COUNCIL,,Large,,,7600015244,,Revenue Grant Clawback Offset,LN1 1YT,-5.74,Yes
Communities & Local Government,DCLG,10/03/2016,Work In Progress Pre-Cert 40373 Spend,Decentralisation and Local Growth,LINCONSHIRE COUNTY COUNCIL,,Large,,,7600015244,,Revenue Grant To Be Paid,LN1 1YT,"27,143.83",Yes
Communities & Local Government,DCLG,10/03/2016,Work In Progress Pre-Cert 40373 Spend,Decentralisation and Local Growth,NOTTINGHAM CITY COUNCIL,,Large,,,7600015248,,Revenue Grant To Be Paid,NG2 3NG,"44,541.84",Yes
Communities & Local Government,DCLG,10/03/2016,Work In Progress Pre-Cert 40373 Spend,Decentralisation and Local Growth,OLDHAM COUNCIL,,Public Bodies,,,7600015243,,Revenue Grant To Be Paid,OL1 1UG,"2,121.04",Yes
Communities & Local Government,DCLG,10/03/2016,Work In Progress Pre-Cert 40373 Spend,Decentralisation and Local Growth,OLDHAM COUNCIL,,Public Bodies,,,7600015246,,Revenue Grant To Be Paid,OL1 1UG,"12,448.01",Yes
Communities & Local Government,DCLG,10/03/2016,Work In Progress Pre-Cert 40373 Spend,Decentralisation and Local Growth,OLDHAM COUNCIL,,Public Bodies,,,7600015247,,Revenue Grant To Be Paid,OL1 1UG,"5,677.18",Yes
Communities & Local Government,DCLG,10/03/2016,Work In Progress Pre-Cert 40373 Spend,Decentralisation and Local Growth,SUFFOLK COUNTY COUNCIL,,,,,7600015249,,Revenue Grant Clawback Offset,IP1 2BX,"-11,161.72",Yes
Communities & Local Government,DCLG,10/03/2016,Work In Progress Pre-Cert 40373 Spend,Decentralisation and Local Growth,SUFFOLK COUNTY COUNCIL,,,,,7600015249,,Revenue Grant To Be Paid,IP1 2BX,"18,761.20",Yes
Communities & Local Government,DCLG,10/03/2016,Work In Progress Pre-Cert 40373 Spend,Decentralisation and Local Growth,SUFFOLK COUNTY COUNCIL,,,,,7600015250,,Revenue Grant To Be Paid,IP1 2BX,"15,125.17",Yes
Communities & Local Government,DCLG,10/03/2016,Work In Progress Pre-Cert 40373 Spend,Decentralisation and Local Growth,SUFFOLK COUNTY COUNCIL,,,,,7600015251,,Revenue Grant To Be Paid,IP1 2BX,"7,841.92",Yes
Communities & Local Government,DCLG,10/03/2016,Work In Progress Pre-Cert 40373 Spend,Decentralisation and Local Growth,SUFFOLK COUNTY COUNCIL,,,,,7600015252,,Revenue Grant To Be Paid,IP1 2BX,"6,016.72",Yes
Communities & Local Government,DCLG,10/03/2016,Work In Progress Pre-Cert 40373 Spend,Decentralisation and Local Growth,SUFFOLK COUNTY COUNCIL,,,,,7600015253,,Revenue Grant To Be Paid,IP1 2BX,"97,870.26",Yes
Communities & Local Government,DCLG,10/03/2016,Work In Progress Pre-Cert 40467 Spend,Decentralisation and Local Growth,LINCONSHIRE COUNTY COUNCIL,,Large,,,7600015244,,Capital Grant To Be Paid,LN1 1YT,-0.04,Yes
Communities & Local Government,DCLG,10/03/2016,Work In Progress Pre-Cert 40467 Spend,Decentralisation and Local Growth,MANCHESTER CITY COUNCIL,,,,,7600015245,,Capital Grant Clawback Offset,M60 2JR,"-29,056.32",Yes
Communities & Local Government,DCLG,10/03/2016,Work In Progress Pre-Cert 40467 Spend,Decentralisation and Local Growth,MANCHESTER CITY COUNCIL,,,,,7600015245,,Capital Grant To Be Paid,M60 2JR,"1,013,952.88",Yes
Communities & Local Government,DCLG,10/03/2016,Work In Progress Pre-Cert 40467 Spend,Decentralisation and Local Growth,NOTTINGHAM CITY COUNCIL,,Large,,,7600015248,,Capital Grant To Be Paid,NG2 3NG,"1,269.38",Yes
Communities & Local Government,DCLG,10/03/2016,Work In Progress Pre-Cert 40467 Spend,Decentralisation and Local Growth,OLDHAM COUNCIL,,Public Bodies,,,7600015243,,Capital Grant Clawback Offset,OL1 1UG,"-128,055.37",Yes
Communities & Local Government,DCLG,10/03/2016,Work In Progress Pre-Cert 40467 Spend,Decentralisation and Local Growth,OLDHAM COUNCIL,,Public Bodies,,,7600015243,,Capital Grant To Be Paid,OL1 1UG,"162,714.93",Yes
Communities & Local Government,DCLG,10/03/2016,Work In Progress Pre-Cert 40467 Spend,Decentralisation and Local Growth,OLDHAM COUNCIL,,Public Bodies,,,7600015246,,Capital Grant To Be Paid,OL1 1UG,"50,644.65",Yes
Communities & Local Government,DCLG,11/03/2016,Catering,Decentralisation and Local Growth,BOUYGUES E&S FM UK LTD (CATERING),,Large,,,2100262855,Business Support,Consolidated monthly catering Feb 2016,SE1 7NQ,47.25,
Communities & Local Government,DCLG,11/03/2016,Catering,Housing & Planning,BOUYGUES E&S FM UK LTD (CATERING),,Large,,,2100262855,Business Support,ACES/DCLG working Group Meeting,SE1 7NQ,13.5,
Communities & Local Government,DCLG,11/03/2016,Catering,Housing & Planning,BOUYGUES E&S FM UK LTD (CATERING),,Large,,,2100262855,Business Support,Building Regulations Advisory Committee Meeting ,SE1 7NQ,173.65,
Communities & Local Government,DCLG,11/03/2016,Catering,Housing & Planning,BOUYGUES E&S FM UK LTD (CATERING),,Large,,,2100262855,Business Support,Competents Persons Forum Meeting,SE1 7NQ,31.5,
Communities & Local Government,DCLG,11/03/2016,Catering,Local Government & Public Services,BOUYGUES E&S FM UK LTD (CATERING),,Large,,,2100262855,Business Support,Consolidated monthly catering Feb 2016,SE1 7NQ,21,
Communities & Local Government,DCLG,11/03/2016,Catering,Local Government & Public Services,BOUYGUES E&S FM UK LTD (CATERING),,Large,,,2100262855,Business Support,Consolidated monthly catering Feb 2016,SE1 7NQ,31.6,
Communities & Local Government,DCLG,11/03/2016,Catering,Local Government & Public Services,BOUYGUES E&S FM UK LTD (CATERING),,Large,,,2100262855,Business Support,Consolidated monthly catering Feb 2016,SE1 7NQ,80.4,
Communities & Local Government,DCLG,11/03/2016,Catering,Local Government & Public Services,BOUYGUES E&S FM UK LTD (CATERING),,Large,,,2100262855,Business Support,Consolidated monthly catering Feb 2016,SE1 7NQ,15.9,
Communities & Local Government,DCLG,11/03/2016,Catering,"Strategy, Communications and Private Office",BOUYGUES E&S FM UK LTD (CATERING),,Large,,,2100262855,Business Support,Consolidated monthly catering Feb 2016,SE1 7NQ,380.5,
Communities & Local Government,DCLG,11/03/2016,Current Grants to Non Profit Bodies,Local Government & Public Services,MANCHESTER CITY COUNCIL,,,,211241393,2100262803,,Talk English,M60 2JR,"32,965.20",Yes
Communities & Local Government,DCLG,11/03/2016,Current Grants to Non Profit Bodies,Local Government & Public Services,MINISTRY OF JUSTICE,,,,211860841,2100262800,,Tackling Hate Crime and Extremism,NP10 8ZF,"50,000.00",Yes
Communities & Local Government,DCLG,11/03/2016,Work In Progress Pre-Cert 40467 Spend,Decentralisation and Local Growth,NOTTINGHAM CITY COUNCIL,,Large,,,7600015256,,Capital Grant To Be Paid,NG2 3NG,"215,793.90",Yes
Communities & Local Government,DCLG,14/03/2016,Current (non AEF) Grants to Local Authorities,Local Government & Public Services,CHORLEY BC,,,,236415576,2100260930,,Storm Eva Tranche 2,PR7 1DP,"141,631.00",Yes
Communities & Local Government,DCLG,14/03/2016,Work In Progress Pre-Cert 40373 Spend,Decentralisation and Local Growth,COVENTRY CITY COUNCIL,,Large,,,7600015264,,Revenue Grant To Be Paid,CV1 5RR,"4,781.40",Yes
Communities & Local Government,DCLG,14/03/2016,Work In Progress Pre-Cert 40373 Spend,Decentralisation and Local Growth,COVENTRY CITY COUNCIL,,Large,,,7600015265,,Revenue Grant Clawback Offset,CV1 5RR,"-19,219.51",Yes
Communities & Local Government,DCLG,14/03/2016,Work In Progress Pre-Cert 40373 Spend,Decentralisation and Local Growth,COVENTRY CITY COUNCIL,,Large,,,7600015265,,Revenue Grant To Be Paid,CV1 5RR,"26,791.90",Yes
Communities & Local Government,DCLG,14/03/2016,Work In Progress Pre-Cert 40373 Spend,Decentralisation and Local Growth,SHROPSHIRE COUNCIL,,Public Bodies,,,7600015262,,Revenue Grant To Be Paid,SY2 6ND,"31,556.53",Yes
Communities & Local Government,DCLG,14/03/2016,Work In Progress Pre-Cert 40373 Spend,Decentralisation and Local Growth,UNIVERSITY OF BIRMINGHAM,,Large,,,7600015259,,Revenue Grant Clawback Offset,B15 2TT,-0.53,Yes
Communities & Local Government,DCLG,14/03/2016,Work In Progress Pre-Cert 40373 Spend,Decentralisation and Local Growth,UNIVERSITY OF BIRMINGHAM,,Large,,,7600015259,,Revenue Grant To Be Paid,B15 2TT,"16,037.72",Yes
Communities & Local Government,DCLG,14/03/2016,Work In Progress Pre-Cert 40373 Spend,Decentralisation and Local Growth,UNIVERSITY OF TEESIDE,,,,,2300002342,,Recovery of payment,TS1 3BA,"-77,900.18",Yes
Communities & Local Government,DCLG,14/03/2016,Work In Progress Pre-Cert 40467 Spend,Decentralisation and Local Growth,CALDERDALE METROPOLITAN BOROUGH COU,,Large,,,7600015263,,Capital Grant Clawback Offset,HX1 1UN,"-334,859.95",Yes
Communities & Local Government,DCLG,14/03/2016,Work In Progress Pre-Cert 40467 Spend,Decentralisation and Local Growth,CALDERDALE METROPOLITAN BOROUGH COU,,Large,,,7600015263,,Capital Grant To Be Paid,HX1 1UN,"981,450.94",Yes
Communities & Local Government,DCLG,14/03/2016,Work In Progress Pre-Cert 40467 Spend,Decentralisation and Local Growth,COVENTRY CITY COUNCIL,,Large,,,7600015264,,Capital Grant To Be Paid,CV1 5RR,"64,148.80",Yes
Communities & Local Government,DCLG,14/03/2016,Work In Progress Pre-Cert 40467 Spend,Decentralisation and Local Growth,COVENTRY CITY COUNCIL,,Large,,,7600015265,,Capital Grant To Be Paid,CV1 5RR,"257,793.42",Yes
Communities & Local Government,DCLG,14/03/2016,Work In Progress Pre-Cert 40467 Spend,Decentralisation and Local Growth,COVENTRY CITY COUNCIL,,Large,,,7600015266,,Capital Grant To Be Paid,CV1 5RR,"352,401.87",Yes
Communities & Local Government,DCLG,14/03/2016,Work In Progress Pre-Cert 40467 Spend,Decentralisation and Local Growth,DUDLEY METROPOLITAN BC,,Public Bodies,,,7600015267,,Capital Grant To Be Paid,DY8 2AA,"643,130.83",Yes
Communities & Local Government,DCLG,14/03/2016,Work In Progress Pre-Cert 40467 Spend,Decentralisation and Local Growth,UNIVERSITY OF BIRMINGHAM,,Large,,,7600015259,,Capital Grant To Be Paid,B15 2TT,-321.49,Yes
Communities & Local Government,DCLG,15/03/2016,Cap Grants to Private Sector Companies,Decentralisation and Local Growth,JAGUAR LAND ROVER,,,,,2100262847,,Regional Growth Fund,CV35 0RR,"5,096,358.15",Yes
Communities & Local Government,DCLG,15/03/2016,Cap Grants to Private Sector Companies,Decentralisation and Local Growth,LAKELAND ARTS TRUST,,,,,2100262854,,Regional Growth Fund,LA23 3JT,"428,613.10",Yes
Communities & Local Government,DCLG,15/03/2016,Cap Grants to Private Sector Companies,Decentralisation and Local Growth,TATA CHEMICALS EUROPE LTD,,Large,,,2100262852,,Regional Growth Fund,CW8 4DT,"81,105.76",Yes
Communities & Local Government,DCLG,15/03/2016,Capital Grant to LA Replace Loan Nonbud,Decentralisation and Local Growth,CAMBRIDGESHIRE COUNTY COUNCIL,,Large,,214973153,2100262851,,Regional Growth Fund,PE29 3AD,"484,340.00",Yes
Communities & Local Government,DCLG,15/03/2016,Capital Grant to LA Replace Loan Nonbud,Decentralisation and Local Growth,SHEFFIELD UNIVERSITY,,,,,2100262849,,Regional Growth Fund,S1 2LX,"503,233.00",Yes
Communities & Local Government,DCLG,15/03/2016,Capital Grant to LA Replace Loan Nonbud,Decentralisation and Local Growth,SUNDERLAND CITY COUNCIL,,,,215599312,2100262850,,Regional Growth Fund,SR2 7DN,"343,950.61",Yes
Communities & Local Government,DCLG,15/03/2016,Current (non AEF) Grants to Local Authorities,Local Government & Public Services,ADUR DC,,,,227472891,5000326843,,Doubling of Small Business Rates Relief,BN11 1HA,"21,294.00",Yes
Communities & Local Government,DCLG,15/03/2016,Current (non AEF) Grants to Local Authorities,Local Government & Public Services,ADUR DC,,,,227472891,5000326846,,Retail Relief,BN11 1HA,"9,309.00",Yes
Communities & Local Government,DCLG,15/03/2016,Current (non AEF) Grants to Local Authorities,Local Government & Public Services,ADUR DC,,,,227472891,5000326848,,Business Rates 2% Inflation Cap,BN11 1HA,"2,193.00",Yes
Communities & Local Government,DCLG,15/03/2016,Current (non AEF) Grants to Local Authorities,Local Government & Public Services,ALLERDALE BOROUGH COUNCIL,,,,218146780,5000326851,,Retail Relief,CA14 3YJ,"23,544.00",Yes
Communities & Local Government,DCLG,15/03/2016,Current (non AEF) Grants to Local Authorities,Local Government & Public Services,ALLERDALE BOROUGH COUNCIL,,,,218146780,5000326853,,Small Business Rates Relief on Second Properties,CA14 3YJ,338,Yes
Communities & Local Government,DCLG,15/03/2016,Current (non AEF) Grants to Local Authorities,Local Government & Public Services,ALLERDALE BOROUGH COUNCIL,,,,218146780,5000326856,,Doubling of Small Business Rates Relief,CA14 3YJ,"55,776.00",Yes
Communities & Local Government,DCLG,15/03/2016,Current (non AEF) Grants to Local Authorities,Local Government & Public Services,ALLERDALE BOROUGH COUNCIL,,,,218146780,5000326858,,Reoccupation Relief,CA14 3YJ,887,Yes
Communities & Local Government,DCLG,15/03/2016,Current (non AEF) Grants to Local Authorities,Local Government & Public Services,ALLERDALE BOROUGH COUNCIL,,,,218146780,5000326861,,Business Rates 2% Inflation Cap,CA14 3YJ,"4,942.00",Yes
Communities & Local Government,DCLG,15/03/2016,Current (non AEF) Grants to Local Authorities,Local Government & Public Services,AMBER VALLEY BC,,,,,5000326864,,Business Rates 2% Inflation Cap,DE5 3BT,"3,422.00",Yes
Communities & Local Government,DCLG,15/03/2016,Current (non AEF) Grants to Local Authorities,Local Government & Public Services,AMBER VALLEY BC,,,,,5000326867,,Doubling of Small Business Rates Relief,DE5 3BT,"44,318.00",Yes
Communities & Local Government,DCLG,15/03/2016,Current (non AEF) Grants to Local Authorities,Local Government & Public Services,AMBER VALLEY BC,,,,,5000326870,,Retail Relief,DE5 3BT,"23,506.00",Yes
Communities & Local Government,DCLG,15/03/2016,Current (non AEF) Grants to Local Authorities,Local Government & Public Services,AMBER VALLEY BC,,,,,5000326872,,Reoccupation Relief,DE5 3BT,406,Yes
Communities & Local Government,DCLG,15/03/2016,Current (non AEF) Grants to Local Authorities,Local Government & Public Services,AMBER VALLEY BC,,,,,5000326875,,Small Business Rates Relief on Second Properties,DE5 3BT,338,Yes
Communities & Local Government,DCLG,15/03/2016,Current (non AEF) Grants to Local Authorities,Local Government & Public Services,ARUN DC,,,,211217668,5000326030,,Small Business Rates Relief on Second Properties,BN17 5LF,341,Yes
Communities & Local Government,DCLG,15/03/2016,Current (non AEF) Grants to Local Authorities,Local Government & Public Services,ARUN DC,,,,211217668,5000326036,,Business Rates 2% Inflation Cap,BN17 5LF,"5,864.00",Yes
Communities & Local Government,DCLG,15/03/2016,Current (non AEF) Grants to Local Authorities,Local Government & Public Services,ARUN DC,,,,211217668,5000326040,,Doubling of Small Business Rates Relief,BN17 5LF,"54,210.00",Yes
Communities & Local Government,DCLG,15/03/2016,Current (non AEF) Grants to Local Authorities,Local Government & Public Services,ARUN DC,,,,211217668,5000326048,,Reoccupation Relief,BN17 5LF,271,Yes
Communities & Local Government,DCLG,15/03/2016,Current (non AEF) Grants to Local Authorities,Local Government & Public Services,ARUN DC,,,,211217668,5000326052,,Retail Relief,BN17 5LF,"35,882.00",Yes
Communities & Local Government,DCLG,15/03/2016,Current (non AEF) Grants to Local Authorities,Local Government & Public Services,ASHFIELD DC,,,,235415296,5000326877,,Empty New Build Relief,NG17 8DA,"1,184.00",Yes
Communities & Local Government,DCLG,15/03/2016,Current (non AEF) Grants to Local Authorities,Local Government & Public Services,ASHFIELD DC,,,,235415296,5000326880,,Reoccupation Relief,NG17 8DA,507,Yes
Communities & Local Government,DCLG,15/03/2016,Current (non AEF) Grants to Local Authorities,Local Government & Public Services,ASHFIELD DC,,,,235415296,5000326883,,Retail Relief,NG17 8DA,"6,764.00",Yes
Communities & Local Government,DCLG,15/03/2016,Current (non AEF) Grants to Local Authorities,Local Government & Public Services,ASHFIELD DC,,,,235415296,5000326888,,Doubling of Small Business Rates Relief,NG17 8DA,"30,985.00",Yes
Communities & Local Government,DCLG,15/03/2016,Current (non AEF) Grants to Local Authorities,Local Government & Public Services,ASHFIELD DC,,,,235415296,5000326891,,Business Rates 2% Inflation Cap,NG17 8DA,"5,443.00",Yes
Communities & Local Government,DCLG,15/03/2016,Current (non AEF) Grants to Local Authorities,Local Government & Public Services,ASHFORD BC,,,,229467071,5000326056,,Business Rates 2% Inflation Cap,TN23 1PL,"3,788.00",Yes
Communities & Local Government,DCLG,15/03/2016,Current (non AEF) Grants to Local Authorities,Local Government & Public Services,ASHFORD BC,,,,229467071,5000326060,,Doubling of Small Business Rates Relief,TN23 1PL,"42,524.00",Yes
Communities & Local Government,DCLG,15/03/2016,Current (non AEF) Grants to Local Authorities,Local Government & Public Services,ASHFORD BC,,,,229467071,5000326065,,Reoccupation Relief,TN23 1PL,846,Yes
Communities & Local Government,DCLG,15/03/2016,Current (non AEF) Grants to Local Authorities,Local Government & Public Services,ASHFORD BC,,,,229467071,5000326068,,Small Business Rates Relief on Second Properties,TN23 1PL,299,Yes
Communities & Local Government,DCLG,15/03/2016,Current (non AEF) Grants to Local Authorities,Local Government & Public Services,ASHFORD BC,,,,229467071,5000326078,,Retail Relief,TN23 1PL,"26,381.00",Yes
Communities & Local Government,DCLG,15/03/2016,Current (non AEF) Grants to Local Authorities,Local Government & Public Services,AVON FIRE AUTHORITY,,Large,,424872570,5000328280,,Doubling of Small Business Rates Relief,BS1 6EU,"7,158.00",Yes
Communities & Local Government,DCLG,15/03/2016,Current (non AEF) Grants to Local Authorities,Local Government & Public Services,AVON FIRE AUTHORITY,,Large,,424872570,5000328284,,Reoccupation Relief,BS1 6EU,"1,116.00",Yes
Communities & Local Government,DCLG,15/03/2016,Current (non AEF) Grants to Local Authorities,Local Government & Public Services,AVON FIRE AUTHORITY,,Large,,424872570,5000328286,,Retail Relief,BS1 6EU,"2,793.00",Yes
Communities & Local Government,DCLG,15/03/2016,Current (non AEF) Grants to Local Authorities,Local Government & Public Services,AVON FIRE AUTHORITY,,Large,,424872570,5000328290,,Business Rates 2% Inflation Cap,BS1 6EU,"12,054.00",Yes
Communities & Local Government,DCLG,15/03/2016,Current (non AEF) Grants to Local Authorities,Local Government & Public Services,AYLESBURY VALE DC(HSG),,,,396710709,5000326081,,Empty New Build Relief,HP19 8FF,"2,816.00",Yes
Communities & Local Government,DCLG,15/03/2016,Current (non AEF) Grants to Local Authorities,Local Government & Public Services,AYLESBURY VALE DC(HSG),,,,396710709,5000326086,,Retail Relief,HP19 8FF,"27,770.00",Yes
Communities & Local Government,DCLG,15/03/2016,Current (non AEF) Grants to Local Authorities,Local Government & Public Services,AYLESBURY VALE DC(HSG),,,,396710709,5000326094,,Business Rates 2% Inflation Cap,HP19 8FF,"4,651.00",Yes
Communities & Local Government,DCLG,15/03/2016,Current (non AEF) Grants to Local Authorities,Local Government & Public Services,AYLESBURY VALE DC(HSG),,,,396710709,5000326099,,Doubling of Small Business Rates Relief,HP19 8FF,"56,222.00",Yes
Communities & Local Government,DCLG,15/03/2016,Current (non AEF) Grants to Local Authorities,Local Government & Public Services,BABERGH DC,,,,232618405,5000326102,,Retail Relief,IP7 6SJ,"13,506.00",Yes
Communities & Local Government,DCLG,15/03/2016,Current (non AEF) Grants to Local Authorities,Local Government & Public Services,BABERGH DC,,,,232618405,5000326106,,Business Rates 2% Inflation Cap,IP7 6SJ,"2,477.00",Yes
Communities & Local Government,DCLG,15/03/2016,Current (non AEF) Grants to Local Authorities,Local Government & Public Services,BABERGH DC,,,,232618405,5000326110,,Doubling of Small Business Rates Relief,IP7 6SJ,"36,712.00",Yes
Communities & Local Government,DCLG,15/03/2016,Current (non AEF) Grants to Local Authorities,Local Government & Public Services,BABERGH DC,,,,232618405,5000326114,,Reoccupation Relief,IP7 6SJ,264,Yes
Communities & Local Government,DCLG,15/03/2016,Current (non AEF) Grants to Local Authorities,Local Government & Public Services,BARKING & DAGENHAM LB (HSG),,,,217142293,5000326122,,Business Rates 2% Inflation Cap,RM10 7BY,"61,483.00",Yes
Communities & Local Government,DCLG,15/03/2016,Current (non AEF) Grants to Local Authorities,Local Government & Public Services,BARKING & DAGENHAM LB (HSG),,,,217142293,5000326125,,Doubling of Small Business Rates Relief,RM10 7BY,"31,668.00",Yes
Communities & Local Government,DCLG,15/03/2016,Current (non AEF) Grants to Local Authorities,Local Government & Public Services,BARKING & DAGENHAM LB (HSG),,,,217142293,5000326129,,Empty New Build Relief,RM10 7BY,"1,501.00",Yes
Communities & Local Government,DCLG,15/03/2016,Current (non AEF) Grants to Local Authorities,Local Government & Public Services,BARKING & DAGENHAM LB (HSG),,,,217142293,5000326134,,Retail Relief,RM10 7BY,"23,702.00",Yes
Communities & Local Government,DCLG,15/03/2016,Current (non AEF) Grants to Local Authorities,Local Government & Public Services,BARKING & DAGENHAM LB (HSG),,,,217142293,5000326137,,Reoccupation Relief,RM10 7BY,"2,475.00",Yes
Communities & Local Government,DCLG,15/03/2016,Current (non AEF) Grants to Local Authorities,Local Government & Public Services,BARNSLEY MBC,,,,211178595,5000326907,,Retail Relief,S70 2AQ,"43,650.00",Yes
Communities & Local Government,DCLG,15/03/2016,Current (non AEF) Grants to Local Authorities,Local Government & Public Services,BARNSLEY MBC,,,,211178595,5000326909,,Business Rates 2% Inflation Cap,S70 2AQ,"62,640.00",Yes
Communities & Local Government,DCLG,15/03/2016,Current (non AEF) Grants to Local Authorities,Local Government & Public Services,BARNSLEY MBC,,,,211178595,5000326912,,Doubling of Small Business Rates Relief,S70 2AQ,"100,223.00",Yes
Communities & Local Government,DCLG,15/03/2016,Current (non AEF) Grants to Local Authorities,Local Government & Public Services,BARROW BC,,,,295632913,5000326914,,Doubling of Small Business Rates Relief,LA14 2LD,"22,619.00",Yes
Communities & Local Government,DCLG,15/03/2016,Current (non AEF) Grants to Local Authorities,Local Government & Public Services,BARROW BC,,,,295632913,5000326919,,Reoccupation Relief,LA14 2LD,277,Yes
Communities & Local Government,DCLG,15/03/2016,Current (non AEF) Grants to Local Authorities,Local Government & Public Services,BARROW BC,,,,295632913,5000326922,,Retail Relief,LA14 2LD,"10,367.00",Yes
Communities & Local Government,DCLG,15/03/2016,Current (non AEF) Grants to Local Authorities,Local Government & Public Services,BARROW BC,,,,295632913,5000326927,,Business Rates 2% Inflation Cap,LA14 2LD,"4,153.00",Yes
Communities & Local Government,DCLG,15/03/2016,Current (non AEF) Grants to Local Authorities,Local Government & Public Services,BASILDON BOROUGH COUNCIL,,,,,5000326930,,Business Rates 2% Inflation Cap,SS14 0DF,"7,964.00",Yes
Communities & Local Government,DCLG,15/03/2016,Current (non AEF) Grants to Local Authorities,Local Government & Public Services,BASILDON BOROUGH COUNCIL,,,,,5000326932,,Doubling of Small Business Rates Relief,SS14 0DF,"41,328.00",Yes
Communities & Local Government,DCLG,15/03/2016,Current (non AEF) Grants to Local Authorities,Local Government & Public Services,BASILDON BOROUGH COUNCIL,,,,,5000326935,,Retail Relief,SS14 0DF,"24,488.00",Yes
Communities & Local Government,DCLG,15/03/2016,Current (non AEF) Grants to Local Authorities,Local Government & Public Services,BASINGSTOKE & DEANE BC,,,,228328506,5000326937,,Reoccupation Relief,RG21 2AJ,839,Yes
Communities & Local Government,DCLG,15/03/2016,Current (non AEF) Grants to Local Authorities,Local Government & Public Services,BASINGSTOKE & DEANE BC,,,,228328506,5000326940,,Business Rates 2% Inflation Cap,RG21 2AJ,"3,653.00",Yes
Communities & Local Government,DCLG,15/03/2016,Current (non AEF) Grants to Local Authorities,Local Government & Public Services,BASINGSTOKE & DEANE BC,,,,228328506,5000326943,,Doubling of Small Business Rates Relief,RG21 2AJ,"28,222.00",Yes
Communities & Local Government,DCLG,15/03/2016,Current (non AEF) Grants to Local Authorities,Local Government & Public Services,BASINGSTOKE & DEANE BC,,,,228328506,5000326945,,Retail Relief,RG21 2AJ,"12,814.00",Yes
Communities & Local Government,DCLG,15/03/2016,Current (non AEF) Grants to Local Authorities,Local Government & Public Services,BASSETLAW DC (HSG),,,,,5000326141,,Doubling of Small Business Rates Relief,S80 2AH,"41,744.00",Yes
Communities & Local Government,DCLG,15/03/2016,Current (non AEF) Grants to Local Authorities,Local Government & Public Services,BASSETLAW DC (HSG),,,,,5000326145,,Empty New Build Relief,S80 2AH,"1,368.00",Yes
Communities & Local Government,DCLG,15/03/2016,Current (non AEF) Grants to Local Authorities,Local Government & Public Services,BASSETLAW DC (HSG),,,,,5000326148,,Reoccupation Relief,S80 2AH,811,Yes
Communities & Local Government,DCLG,15/03/2016,Current (non AEF) Grants to Local Authorities,Local Government & Public Services,BASSETLAW DC (HSG),,,,,5000326152,,Retail Relief,S80 2AH,"15,212.00",Yes
Communities & Local Government,DCLG,15/03/2016,Current (non AEF) Grants to Local Authorities,Local Government & Public Services,BASSETLAW DC (HSG),,,,,5000326157,,Small Business Rates Relief on Second Properties,S80 2AH,526,Yes
Communities & Local Government,DCLG,15/03/2016,Current (non AEF) Grants to Local Authorities,Local Government & Public Services,BASSETLAW DC (HSG),,,,,5000326159,,Business Rates 2% Inflation Cap,S80 2AH,"4,868.00",Yes
Communities & Local Government,DCLG,15/03/2016,Current (non AEF) Grants to Local Authorities,Local Government & Public Services,BATH & NE SOMERSET DC (HSG),,,,214502499,5000326164,,Retail Relief,BA1 5AW,"54,013.00",Yes
Communities & Local Government,DCLG,15/03/2016,Current (non AEF) Grants to Local Authorities,Local Government & Public Services,BATH & NE SOMERSET DC (HSG),,,,214502499,5000326168,,Small Business Rates Relief on Second Properties,BA1 5AW,363,Yes
Communities & Local Government,DCLG,15/03/2016,Current (non AEF) Grants to Local Authorities,Local Government & Public Services,BATH & NE SOMERSET DC (HSG),,,,214502499,5000326172,,Doubling of Small Business Rates Relief,BA1 5AW,"77,258.00",Yes
Communities & Local Government,DCLG,15/03/2016,Current (non AEF) Grants to Local Authorities,Local Government & Public Services,BATH & NE SOMERSET DC (HSG),,,,214502499,5000326177,,Reoccupation Relief,BA1 5AW,427,Yes
Communities & Local Government,DCLG,15/03/2016,Current (non AEF) Grants to Local Authorities,Local Government & Public Services,BATH & NE SOMERSET DC (HSG),,,,214502499,5000326180,,Business Rates 2% Inflation Cap,BA1 5AW,"27,360.00",Yes
Communities & Local Government,DCLG,15/03/2016,Current (non AEF) Grants to Local Authorities,Local Government & Public Services,BEDFORD UNITARY AUTHORITY,,,,225682160,5000326009,,Doubling of Small Business Rates Relief,MK40 1SJ,"64,439.00",Yes
Communities & Local Government,DCLG,15/03/2016,Current (non AEF) Grants to Local Authorities,Local Government & Public Services,BEDFORD UNITARY AUTHORITY,,,,225682160,5000326011,,Empty New Build Relief,MK40 1SJ,414,Yes
Communities & Local Government,DCLG,15/03/2016,Current (non AEF) Grants to Local Authorities,Local Government & Public Services,BEDFORD UNITARY AUTHORITY,,,,225682160,5000326012,,Reoccupation Relief,MK40 1SJ,621,Yes
Communities & Local Government,DCLG,15/03/2016,Current (non AEF) Grants to Local Authorities,Local Government & Public Services,BEDFORD UNITARY AUTHORITY,,,,225682160,5000326015,,Retail Relief,MK40 1SJ,"29,168.00",Yes
Communities & Local Government,DCLG,15/03/2016,Current (non AEF) Grants to Local Authorities,Local Government & Public Services,BEDFORD UNITARY AUTHORITY,,,,225682160,5000326020,,Business Rates 2% Inflation Cap,MK40 1SJ,"36,010.00",Yes
Communities & Local Government,DCLG,15/03/2016,Current (non AEF) Grants to Local Authorities,Local Government & Public Services,BEDS & LUTON FIRE & RESCUE SERVICE,,Medium,,387821283,5000328138,,Retail Relief,MK42 7NR,"2,668.00",Yes
Communities & Local Government,DCLG,15/03/2016,Current (non AEF) Grants to Local Authorities,Local Government & Public Services,BEDS & LUTON FIRE & RESCUE SERVICE,,Medium,,387821283,5000328140,,Small Business Rates Relief on Second Properties,MK42 7NR,"1,421.00",Yes
Communities & Local Government,DCLG,15/03/2016,Current (non AEF) Grants to Local Authorities,Local Government & Public Services,BEDS & LUTON FIRE & RESCUE SERVICE,,Medium,,387821283,5000328142,,Business Rates 2% Inflation Cap,MK42 7NR,"6,566.00",Yes
Communities & Local Government,DCLG,15/03/2016,Current (non AEF) Grants to Local Authorities,Local Government & Public Services,BEDS & LUTON FIRE & RESCUE SERVICE,,Medium,,387821283,5000328144,,Doubling of Small Business Rates Relief,MK42 7NR,"4,213.00",Yes
Communities & Local Government,DCLG,15/03/2016,Current (non AEF) Grants to Local Authorities,Local Government & Public Services,BEXLEY LB (RSG),,,,,5000327910,,Business Rates 2% Inflation Cap,DA8 1TL,"42,229.00",Yes
Communities & Local Government,DCLG,15/03/2016,Current (non AEF) Grants to Local Authorities,Local Government & Public Services,BEXLEY LB (RSG),,,,,5000327912,,Doubling of Small Business Rates Relief,DA8 1TL,"50,187.00",Yes
Communities & Local Government,DCLG,15/03/2016,Current (non AEF) Grants to Local Authorities,Local Government & Public Services,BEXLEY LB (RSG),,,,,5000327914,,Retail Relief,DA8 1TL,"29,135.00",Yes
Communities & Local Government,DCLG,15/03/2016,Current (non AEF) Grants to Local Authorities,Local Government & Public Services,BIRMINGHAM CITY CNCL,,,,213780559,5000326948,,Business Rates 2% Inflation Cap,B2 2AJ,"400,960.00",Yes
Communities & Local Government,DCLG,15/03/2016,Current (non AEF) Grants to Local Authorities,Local Government & Public Services,BIRMINGHAM CITY CNCL,,,,213780559,5000326950,,Doubling of Small Business Rates Relief,B2 2AJ,"472,716.00",Yes
Communities & Local Government,DCLG,15/03/2016,Current (non AEF) Grants to Local Authorities,Local Government & Public Services,BIRMINGHAM CITY CNCL,,,,213780559,5000326955,,Retail Relief,B2 2AJ,"319,634.00",Yes
Communities & Local Government,DCLG,15/03/2016,Current (non AEF) Grants to Local Authorities,Local Government & Public Services,BLABY DC (HSG),,,,,5000326184,,Business Rates 2% Inflation Cap,LE9 5EP,"3,989.00",Yes
Communities & Local Government,DCLG,15/03/2016,Current (non AEF) Grants to Local Authorities,Local Government & Public Services,BLABY DC (HSG),,,,,5000326187,,Retail Relief,LE9 5EP,"3,445.00",Yes
Communities & Local Government,DCLG,15/03/2016,Current (non AEF) Grants to Local Authorities,Local Government & Public Services,BLABY DC (HSG),,,,,5000326190,,Doubling of Small Business Rates Relief,LE9 5EP,"20,366.00",Yes
Communities & Local Government,DCLG,15/03/2016,Current (non AEF) Grants to Local Authorities,Local Government & Public Services,BLACKBURN WITH DARWEN BC,,,,,5000326958,,Doubling of Small Business Rates Relief,BB1 7DY,"105,030.00",Yes
Communities & Local Government,DCLG,15/03/2016,Current (non AEF) Grants to Local Authorities,Local Government & Public Services,BLACKBURN WITH DARWEN BC,,,,,5000326961,,Reoccupation Relief,BB1 7DY,"4,143.00",Yes
Communities & Local Government,DCLG,15/03/2016,Current (non AEF) Grants to Local Authorities,Local Government & Public Services,BLACKBURN WITH DARWEN BC,,,,,5000326964,,Retail Relief,BB1 7DY,"30,453.00",Yes
Communities & Local Government,DCLG,15/03/2016,Current (non AEF) Grants to Local Authorities,Local Government & Public Services,BLACKBURN WITH DARWEN BC,,,,,5000326967,,Business Rates 2% Inflation Cap,BB1 7DY,"49,349.00",Yes
Communities & Local Government,DCLG,15/03/2016,Current (non AEF) Grants to Local Authorities,Local Government & Public Services,BLACKBURN WITH DARWEN BC,,,,,5000326969,,Small Business Rates Relief on Second Properties,BB1 7DY,"1,243.00",Yes
Communities & Local Government,DCLG,15/03/2016,Current (non AEF) Grants to Local Authorities,Local Government & Public Services,BLACKPOOL BC,,,,,5000326972,,Business Rates 2% Inflation Cap,FY1 1NA,"52,455.00",Yes
Communities & Local Government,DCLG,15/03/2016,Current (non AEF) Grants to Local Authorities,Local Government & Public Services,BLACKPOOL BC,,,,,5000326975,,Doubling of Small Business Rates Relief,FY1 1NA,"127,915.00",Yes
Communities & Local Government,DCLG,15/03/2016,Current (non AEF) Grants to Local Authorities,Local Government & Public Services,BLACKPOOL BC,,,,,5000326977,,Empty New Build Relief,FY1 1NA,286,Yes
Communities & Local Government,DCLG,15/03/2016,Current (non AEF) Grants to Local Authorities,Local Government & Public Services,BLACKPOOL BC,,,,,5000326980,,Retail Relief,FY1 1NA,"35,061.00",Yes
Communities & Local Government,DCLG,15/03/2016,Current (non AEF) Grants to Local Authorities,Local Government & Public Services,BLACKPOOL BC,,,,,5000326982,,Reoccupation Relief,FY1 1NA,"4,758.00",Yes
Communities & Local Government,DCLG,15/03/2016,Current (non AEF) Grants to Local Authorities,Local Government & Public Services,BOLSOVER DC,,,,235516523,5000326987,,Business Rates 2% Inflation Cap,S43 4JY,"4,895.00",Yes
Communities & Local Government,DCLG,15/03/2016,Current (non AEF) Grants to Local Authorities,Local Government & Public Services,BOLSOVER DC,,,,235516523,5000326990,,Doubling of Small Business Rates Relief,S43 4JY,"21,518.00",Yes
Communities & Local Government,DCLG,15/03/2016,Current (non AEF) Grants to Local Authorities,Local Government & Public Services,BOLSOVER DC,,,,235516523,5000326992,,Retail Relief,S43 4JY,"6,906.00",Yes
Communities & Local Government,DCLG,15/03/2016,Current (non AEF) Grants to Local Authorities,Local Government & Public Services,BOLTON MBC,,,,,5000326995,,Reoccupation Relief,BL1 1RU,"4,558.00",Yes
Communities & Local Government,DCLG,15/03/2016,Current (non AEF) Grants to Local Authorities,Local Government & Public Services,BOLTON MBC,,,,,5000326998,,Business Rates 2% Inflation Cap,BL1 1RU,"75,317.00",Yes
Communities & Local Government,DCLG,15/03/2016,Current (non AEF) Grants to Local Authorities,Local Government & Public Services,BOLTON MBC,,,,,5000327000,,Doubling of Small Business Rates Relief,BL1 1RU,"155,371.00",Yes
Communities & Local Government,DCLG,15/03/2016,Current (non AEF) Grants to Local Authorities,Local Government & Public Services,BOLTON MBC,,,,,5000327003,,Empty New Build Relief,BL1 1RU,414,Yes
Communities & Local Government,DCLG,15/03/2016,Current (non AEF) Grants to Local Authorities,Local Government & Public Services,BOLTON MBC,,,,,5000327006,,Retail Relief,BL1 1RU,"50,547.00",Yes
Communities & Local Government,DCLG,15/03/2016,Current (non AEF) Grants to Local Authorities,Local Government & Public Services,BOSTON BC,,,,236417713,5000326195,,Business Rates 2% Inflation Cap,PE21 8QR,"3,068.00",Yes
Communities & Local Government,DCLG,15/03/2016,Current (non AEF) Grants to Local Authorities,Local Government & Public Services,BOSTON BC,,,,236417713,5000326199,,Empty New Build Relief,PE21 8QR,265,Yes
Communities & Local Government,DCLG,15/03/2016,Current (non AEF) Grants to Local Authorities,Local Government & Public Services,BOSTON BC,,,,236417713,5000326204,,Retail Relief,PE21 8QR,"9,301.00",Yes
Communities & Local Government,DCLG,15/03/2016,Current (non AEF) Grants to Local Authorities,Local Government & Public Services,BOSTON BC,,,,236417713,5000326207,,Doubling of Small Business Rates Relief,PE21 8QR,"23,957.00",Yes
Communities & Local Government,DCLG,15/03/2016,Current (non AEF) Grants to Local Authorities,Local Government & Public Services,BOURNEMOUTH DC,,,,,5000327007,,Retail Relief,BH2 6EB,"56,894.00",Yes
Communities & Local Government,DCLG,15/03/2016,Current (non AEF) Grants to Local Authorities,Local Government & Public Services,BOURNEMOUTH DC,,,,,5000327010,,Doubling of Small Business Rates Relief,BH2 6EB,"93,485.00",Yes
Communities & Local Government,DCLG,15/03/2016,Current (non AEF) Grants to Local Authorities,Local Government & Public Services,BOURNEMOUTH DC,,,,,5000327013,,Reoccupation Relief,BH2 6EB,"3,107.00",Yes
Communities & Local Government,DCLG,15/03/2016,Current (non AEF) Grants to Local Authorities,Local Government & Public Services,BOURNEMOUTH DC,,,,,5000327015,,Business Rates 2% Inflation Cap,BH2 6EB,"34,080.00",Yes
Communities & Local Government,DCLG,15/03/2016,Current (non AEF) Grants to Local Authorities,Local Government & Public Services,BRACKNELL FOREST DC,,,,236184867,5000327021,,Business Rates 2% Inflation Cap,RG12 1AQ,"29,288.00",Yes
Communities & Local Government,DCLG,15/03/2016,Current (non AEF) Grants to Local Authorities,Local Government & Public Services,BRACKNELL FOREST DC,,,,236184867,5000327024,,Reoccupation Relief,RG12 1AQ,"2,072.00",Yes
Communities & Local Government,DCLG,15/03/2016,Current (non AEF) Grants to Local Authorities,Local Government & Public Services,BRACKNELL FOREST DC,,,,236184867,5000327026,,Retail Relief,RG12 1AQ,"14,501.00",Yes
Communities & Local Government,DCLG,15/03/2016,Current (non AEF) Grants to Local Authorities,Local Government & Public Services,BRACKNELL FOREST DC,,,,236184867,5000327029,,Small Business Rates Relief on Second Properties,RG12 1AQ,829,Yes
Communities & Local Government,DCLG,15/03/2016,Current (non AEF) Grants to Local Authorities,Local Government & Public Services,BRACKNELL FOREST DC,,,,236184867,5000327031,,Doubling of Small Business Rates Relief,RG12 1AQ,"20,076.00",Yes
Communities & Local Government,DCLG,15/03/2016,Current (non AEF) Grants to Local Authorities,Local Government & Public Services,BRADFORD MBC,,,,,5000327034,,Doubling of Small Business Rates Relief,BD1 1HX,"327,314.00",Yes
Communities & Local Government,DCLG,15/03/2016,Current (non AEF) Grants to Local Authorities,Local Government & Public Services,BRADFORD MBC,,,,,5000327036,,Empty New Build Relief,BD1 1HX,"1,864.00",Yes
Communities & Local Government,DCLG,15/03/2016,Current (non AEF) Grants to Local Authorities,Local Government & Public Services,BRADFORD MBC,,,,,5000327039,,Retail Relief,BD1 1HX,"134,448.00",Yes
Communities & Local Government,DCLG,15/03/2016,Current (non AEF) Grants to Local Authorities,Local Government & Public Services,BRADFORD MBC,,,,,5000327042,,Business Rates 2% Inflation Cap,BD1 1HX,"152,027.00",Yes
Communities & Local Government,DCLG,15/03/2016,Current (non AEF) Grants to Local Authorities,Local Government & Public Services,BRADFORD MBC,,,,,5000327044,,Reoccupation Relief,BD1 1HX,829,Yes
Communities & Local Government,DCLG,15/03/2016,Current (non AEF) Grants to Local Authorities,Local Government & Public Services,BRAINTREE DC,,,,226941730,5000326211,,Business Rates 2% Inflation Cap,CM7 6HB,"4,051.00",Yes
Communities & Local Government,DCLG,15/03/2016,Current (non AEF) Grants to Local Authorities,Local Government & Public Services,BRAINTREE DC,,,,226941730,5000326218,,Retail Relief,CM7 6HB,"18,642.00",Yes
Communities & Local Government,DCLG,15/03/2016,Current (non AEF) Grants to Local Authorities,Local Government & Public Services,BRAINTREE DC,,,,226941730,5000326223,,Doubling of Small Business Rates Relief,CM7 6HB,"53,728.00",Yes
Communities & Local Government,DCLG,15/03/2016,Current (non AEF) Grants to Local Authorities,Local Government & Public Services,BRECKLAND DC,,,,232611384,5000326226,,Small Business Rates Relief on Second Properties,NR19 1EE,423,Yes
Communities & Local Government,DCLG,15/03/2016,Current (non AEF) Grants to Local Authorities,Local Government & Public Services,BRECKLAND DC,,,,232611384,5000326230,,Business Rates 2% Inflation Cap,NR19 1EE,"5,294.00",Yes
Communities & Local Government,DCLG,15/03/2016,Current (non AEF) Grants to Local Authorities,Local Government & Public Services,BRECKLAND DC,,,,232611384,5000326235,,Doubling of Small Business Rates Relief,NR19 1EE,"49,132.00",Yes
Communities & Local Government,DCLG,15/03/2016,Current (non AEF) Grants to Local Authorities,Local Government & Public Services,BRECKLAND DC,,,,232611384,5000326243,,Retail Relief,NR19 1EE,"21,428.00",Yes
Communities & Local Government,DCLG,15/03/2016,Current (non AEF) Grants to Local Authorities,Local Government & Public Services,BRENT LB (HSG),,,,,5000326248,,Business Rates 2% Inflation Cap,HA9 9HD,"100,502.00",Yes
Communities & Local Government,DCLG,15/03/2016,Current (non AEF) Grants to Local Authorities,Local Government & Public Services,BRENT LB (HSG),,,,,5000326252,,Doubling of Small Business Rates Relief,HA9 9HD,"55,872.00",Yes
Communities & Local Government,DCLG,15/03/2016,Current (non AEF) Grants to Local Authorities,Local Government & Public Services,BRENT LB (HSG),,,,,5000326254,,Empty New Build Relief,HA9 9HD,"2,537.00",Yes
Communities & Local Government,DCLG,15/03/2016,Current (non AEF) Grants to Local Authorities,Local Government & Public Services,BRENT LB (HSG),,,,,5000326260,,Reoccupation Relief,HA9 9HD,"1,902.00",Yes
Communities & Local Government,DCLG,15/03/2016,Current (non AEF) Grants to Local Authorities,Local Government & Public Services,BRENT LB (HSG),,,,,5000326265,,Retail Relief,HA9 9HD,"55,375.00",Yes
Communities & Local Government,DCLG,15/03/2016,Current (non AEF) Grants to Local Authorities,Local Government & Public Services,BRENTWOOD BC,,,,227473188,5000327047,,Retail Relief,CM15 8AY,"18,050.00",Yes
Communities & Local Government,DCLG,15/03/2016,Current (non AEF) Grants to Local Authorities,Local Government & Public Services,BRENTWOOD BC,,,,227473188,5000327049,,Doubling of Small Business Rates Relief,CM15 8AY,"19,265.00",Yes
Communities & Local Government,DCLG,15/03/2016,Current (non AEF) Grants to Local Authorities,Local Government & Public Services,BRENTWOOD BC,,,,227473188,5000327052,,Business Rates 2% Inflation Cap,CM15 8AY,"1,826.00",Yes
Communities & Local Government,DCLG,15/03/2016,Current (non AEF) Grants to Local Authorities,Local Government & Public Services,BRIGHTON & HOVE CITY COUNCIL,,Large,,228455218,5000327057,,Reoccupation Relief,BN3 2LS,"2,279.00",Yes
Communities & Local Government,DCLG,15/03/2016,Current (non AEF) Grants to Local Authorities,Local Government & Public Services,BRIGHTON & HOVE CITY COUNCIL,,Large,,228455218,5000327059,,Business Rates 2% Inflation Cap,BN3 2LS,"65,657.00",Yes
Communities & Local Government,DCLG,15/03/2016,Current (non AEF) Grants to Local Authorities,Local Government & Public Services,BRIGHTON & HOVE CITY COUNCIL,,Large,,228455218,5000327062,,Doubling of Small Business Rates Relief,BN3 2LS,"130,641.00",Yes
Communities & Local Government,DCLG,15/03/2016,Current (non AEF) Grants to Local Authorities,Local Government & Public Services,BRIGHTON & HOVE CITY COUNCIL,,Large,,228455218,5000327064,,Small Business Rates Relief on Second Properties,BN3 2LS,414,Yes
Communities & Local Government,DCLG,15/03/2016,Current (non AEF) Grants to Local Authorities,Local Government & Public Services,BRIGHTON & HOVE CITY COUNCIL,,Large,,228455218,5000327067,,Empty New Build Relief,BN3 2LS,"3,315.00",Yes
Communities & Local Government,DCLG,15/03/2016,Current (non AEF) Grants to Local Authorities,Local Government & Public Services,BRIGHTON & HOVE CITY COUNCIL,,Large,,228455218,5000327069,,Retail Relief,BN3 2LS,"146,706.00",Yes
Communities & Local Government,DCLG,15/03/2016,Current (non AEF) Grants to Local Authorities,Local Government & Public Services,BRISTOL CITY CNCL (HSG),,,,211103882,5000326267,,Doubling of Small Business Rates Relief,BS99 7BL,"117,873.00",Yes
Communities & Local Government,DCLG,15/03/2016,Current (non AEF) Grants to Local Authorities,Local Government & Public Services,BRISTOL CITY CNCL (HSG),,,,211103882,5000326272,,Retail Relief,BS99 7BL,"25,776.00",Yes
Communities & Local Government,DCLG,15/03/2016,Current (non AEF) Grants to Local Authorities,Local Government & Public Services,BRISTOL CITY CNCL (HSG),,,,211103882,5000326275,,Reoccupation Relief,BS99 7BL,"52,971.00",Yes
Communities & Local Government,DCLG,15/03/2016,Current (non AEF) Grants to Local Authorities,Local Government & Public Services,BRISTOL CITY CNCL (HSG),,,,211103882,5000326282,,Business Rates 2% Inflation Cap,BS99 7BL,"119,315.00",Yes
Communities & Local Government,DCLG,15/03/2016,Current (non AEF) Grants to Local Authorities,Local Government & Public Services,BROADLAND DC,,Large,,219737785,5000326286,,Retail Relief,NR7 0DU,"11,157.00",Yes
Communities & Local Government,DCLG,15/03/2016,Current (non AEF) Grants to Local Authorities,Local Government & Public Services,BROADLAND DC,,Large,,219737785,5000326294,,Doubling of Small Business Rates Relief,NR7 0DU,"43,479.00",Yes
Communities & Local Government,DCLG,15/03/2016,Current (non AEF) Grants to Local Authorities,Local Government & Public Services,BROADLAND DC,,Large,,219737785,5000326297,,Reoccupation Relief,NR7 0DU,507,Yes
Communities & Local Government,DCLG,15/03/2016,Current (non AEF) Grants to Local Authorities,Local Government & Public Services,BROADLAND DC,,Large,,219737785,5000326302,,Business Rates 2% Inflation Cap,NR7 0DU,"4,016.00",Yes
Communities & Local Government,DCLG,15/03/2016,Current (non AEF) Grants to Local Authorities,Local Government & Public Services,BROMLEY LB,,,,211331954,5000327072,,Retail Relief,BR1 3UH,"53,707.00",Yes
Communities & Local Government,DCLG,15/03/2016,Current (non AEF) Grants to Local Authorities,Local Government & Public Services,BROMLEY LB,,,,211331954,5000327075,,Business Rates 2% Inflation Cap,BR1 3UH,"42,398.00",Yes
Communities & Local Government,DCLG,15/03/2016,Current (non AEF) Grants to Local Authorities,Local Government & Public Services,BROMLEY LB,,,,211331954,5000327077,,Doubling of Small Business Rates Relief,BR1 3UH,"55,281.00",Yes
Communities & Local Government,DCLG,15/03/2016,Current (non AEF) Grants to Local Authorities,Local Government & Public Services,BROMLEY LB,,,,211331954,5000327080,,Reoccupation Relief,BR1 3UH,457,Yes
Communities & Local Government,DCLG,15/03/2016,Current (non AEF) Grants to Local Authorities,Local Government & Public Services,BROMSGROVE DC,,,,236654745,5000326309,,Doubling of Small Business Rates Relief,B60 1AA,"35,149.00",Yes
Communities & Local Government,DCLG,15/03/2016,Current (non AEF) Grants to Local Authorities,Local Government & Public Services,BROMSGROVE DC,,,,236654745,5000326313,,Retail Relief,B60 1AA,"19,076.00",Yes
Communities & Local Government,DCLG,15/03/2016,Current (non AEF) Grants to Local Authorities,Local Government & Public Services,BROMSGROVE DC,,,,236654745,5000326317,,Business Rates 2% Inflation Cap,B60 1AA,"2,319.00",Yes
Communities & Local Government,DCLG,15/03/2016,Current (non AEF) Grants to Local Authorities,Local Government & Public Services,BROXBOURNE BC,,Public Bodies,,239931918,5000327082,,Reoccupation Relief,EN8 9XG,"8,456.00",Yes
Communities & Local Government,DCLG,15/03/2016,Current (non AEF) Grants to Local Authorities,Local Government & Public Services,BROXBOURNE BC,,Public Bodies,,239931918,5000327085,,Retail Relief,EN8 9XG,"18,955.00",Yes
Communities & Local Government,DCLG,15/03/2016,Current (non AEF) Grants to Local Authorities,Local Government & Public Services,BROXBOURNE BC,,Public Bodies,,239931918,5000327088,,Doubling of Small Business Rates Relief,EN8 9XG,"23,762.00",Yes
Communities & Local Government,DCLG,15/03/2016,Current (non AEF) Grants to Local Authorities,Local Government & Public Services,BROXBOURNE BC,,Public Bodies,,239931918,5000327090,,Business Rates 2% Inflation Cap,EN8 9XG,"3,569.00",Yes
Communities & Local Government,DCLG,15/03/2016,Current (non AEF) Grants to Local Authorities,Local Government & Public Services,BROXTOWE BC,,,,239877640,5000327093,,Empty New Build Relief,NG9 1AB,"1,426.00",Yes
Communities & Local Government,DCLG,15/03/2016,Current (non AEF) Grants to Local Authorities,Local Government & Public Services,BROXTOWE BC,,,,239877640,5000327096,,Retail Relief,NG9 1AB,"5,378.00",Yes
Communities & Local Government,DCLG,15/03/2016,Current (non AEF) Grants to Local Authorities,Local Government & Public Services,BROXTOWE BC,,,,239877640,5000327098,,Business Rates 2% Inflation Cap,NG9 1AB,"3,301.00",Yes
Communities & Local Government,DCLG,15/03/2016,Current (non AEF) Grants to Local Authorities,Local Government & Public Services,BROXTOWE BC,,,,239877640,5000327101,,Doubling of Small Business Rates Relief,NG9 1AB,"27,489.00",Yes
Communities & Local Government,DCLG,15/03/2016,Current (non AEF) Grants to Local Authorities,Local Government & Public Services,BUCKINGHAMSHIRE CC,,,,293750923,5000327105,,Empty New Build Relief,HP20 1UD,634,Yes
Communities & Local Government,DCLG,15/03/2016,Current (non AEF) Grants to Local Authorities,Local Government & Public Services,BUCKINGHAMSHIRE CC,,,,293750923,5000327107,,Retail Relief,HP20 1UD,"13,553.00",Yes
Communities & Local Government,DCLG,15/03/2016,Current (non AEF) Grants to Local Authorities,Local Government & Public Services,BUCKINGHAMSHIRE CC,,,,293750923,5000327110,,Business Rates 2% Inflation Cap,HP20 1UD,"49,671.00",Yes
Communities & Local Government,DCLG,15/03/2016,Current (non AEF) Grants to Local Authorities,Local Government & Public Services,BUCKINGHAMSHIRE CC,,,,293750923,5000327113,,Doubling of Small Business Rates Relief,HP20 1UD,"30,453.00",Yes
Communities & Local Government,DCLG,15/03/2016,Current (non AEF) Grants to Local Authorities,Local Government & Public Services,BUCKS & MILTON KEYNES FIRE AUTH,,Public Bodies,,423679463,5000328007,,Business Rates 2% Inflation Cap,HP20 1BD,"5,894.00",Yes
Communities & Local Government,DCLG,15/03/2016,Current (non AEF) Grants to Local Authorities,Local Government & Public Services,BUCKS & MILTON KEYNES FIRE AUTH,,Public Bodies,,423679463,5000328013,,Retail Relief,HP20 1BD,"2,430.00",Yes
Communities & Local Government,DCLG,15/03/2016,Current (non AEF) Grants to Local Authorities,Local Government & Public Services,BUCKS & MILTON KEYNES FIRE AUTH,,Public Bodies,,423679463,5000328017,,Doubling of Small Business Rates Relief,HP20 1BD,"4,928.00",Yes
Communities & Local Government,DCLG,15/03/2016,Current (non AEF) Grants to Local Authorities,Local Government & Public Services,BURNLEY BC,,,,229413281,5000327118,,Business Rates 2% Inflation Cap,BB11 1JA,"5,254.00",Yes
Communities & Local Government,DCLG,15/03/2016,Current (non AEF) Grants to Local Authorities,Local Government & Public Services,BURNLEY BC,,,,229413281,5000327121,,Doubling of Small Business Rates Relief,BB11 1JA,"44,056.00",Yes
Communities & Local Government,DCLG,15/03/2016,Current (non AEF) Grants to Local Authorities,Local Government & Public Services,BURNLEY BC,,,,229413281,5000327123,,Reoccupation Relief,BB11 1JA,650,Yes
Communities & Local Government,DCLG,15/03/2016,Current (non AEF) Grants to Local Authorities,Local Government & Public Services,BURNLEY BC,,,,229413281,5000327126,,Retail Relief,BB11 1JA,"16,109.00",Yes
Communities & Local Government,DCLG,15/03/2016,Current (non AEF) Grants to Local Authorities,Local Government & Public Services,BURY MBC,,,,,5000327134,,Business Rates 2% Inflation Cap,BL9 0SW,"38,606.00",Yes
Communities & Local Government,DCLG,15/03/2016,Current (non AEF) Grants to Local Authorities,Local Government & Public Services,BURY MBC,,,,,5000327136,,Doubling of Small Business Rates Relief,BL9 0SW,"96,615.00",Yes
Communities & Local Government,DCLG,15/03/2016,Current (non AEF) Grants to Local Authorities,Local Government & Public Services,BURY MBC,,,,,5000327139,,Retail Relief,BL9 0SW,"46,919.00",Yes
Communities & Local Government,DCLG,15/03/2016,Current (non AEF) Grants to Local Authorities,Local Government & Public Services,CALDERDALE MBC,,,,,5000327141,,Small Business Rates Relief on Second Properties,HX1 1YP,"2,072.00",Yes
Communities & Local Government,DCLG,15/03/2016,Current (non AEF) Grants to Local Authorities,Local Government & Public Services,CALDERDALE MBC,,,,,5000327143,,Business Rates 2% Inflation Cap,HX1 1YP,"46,586.00",Yes
Communities & Local Government,DCLG,15/03/2016,Current (non AEF) Grants to Local Authorities,Local Government & Public Services,CALDERDALE MBC,,,,,5000327146,,Doubling of Small Business Rates Relief,HX1 1YP,"128,279.00",Yes
Communities & Local Government,DCLG,15/03/2016,Current (non AEF) Grants to Local Authorities,Local Government & Public Services,CALDERDALE MBC,,,,,5000327148,,Retail Relief,HX1 1YP,"34,394.00",Yes
Communities & Local Government,DCLG,15/03/2016,Current (non AEF) Grants to Local Authorities,Local Government & Public Services,CAMBRIDGE CITY COUNCIL,,,,210357534,5000327151,,Retail Relief,CB2 3NA,"37,427.00",Yes
Communities & Local Government,DCLG,15/03/2016,Current (non AEF) Grants to Local Authorities,Local Government & Public Services,CAMBRIDGE CITY COUNCIL,,,,210357534,5000327153,,Business Rates 2% Inflation Cap,CB2 3NA,"6,222.00",Yes
Communities & Local Government,DCLG,15/03/2016,Current (non AEF) Grants to Local Authorities,Local Government & Public Services,CAMBRIDGE CITY COUNCIL,,,,210357534,5000327156,,Doubling of Small Business Rates Relief,CB2 3NA,"23,610.00",Yes
Communities & Local Government,DCLG,15/03/2016,Current (non AEF) Grants to Local Authorities,Local Government & Public Services,CAMBRIDGE CITY COUNCIL,,,,210357534,5000327159,,Empty New Build Relief,CB2 3NA,"1,691.00",Yes
Communities & Local Government,DCLG,15/03/2016,Current (non AEF) Grants to Local Authorities,Local Government & Public Services,CAMBRIDGESHIRE COUNTY CNCL,,,,219047347,5000327164,,Business Rates 2% Inflation Cap,CB3 0AP,"73,172.00",Yes
Communities & Local Government,DCLG,15/03/2016,Current (non AEF) Grants to Local Authorities,Local Government & Public Services,CAMBRIDGESHIRE COUNTY CNCL,,,,219047347,5000327166,,Empty New Build Relief,CB3 0AP,457,Yes
Communities & Local Government,DCLG,15/03/2016,Current (non AEF) Grants to Local Authorities,Local Government & Public Services,CAMBRIDGESHIRE COUNTY CNCL,,,,219047347,5000327171,,Retail Relief,CB3 0AP,"22,835.00",Yes
Communities & Local Government,DCLG,15/03/2016,Current (non AEF) Grants to Local Authorities,Local Government & Public Services,CAMBRIDGESHIRE COUNTY CNCL,,,,219047347,5000327174,,Small Business Rates Relief on Second Properties,CB3 0AP,907,Yes
Communities & Local Government,DCLG,15/03/2016,Current (non AEF) Grants to Local Authorities,Local Government & Public Services,CAMBRIDGESHIRE COUNTY CNCL,,,,219047347,5000327176,,Doubling of Small Business Rates Relief,CB3 0AP,"40,112.00",Yes
Communities & Local Government,DCLG,15/03/2016,Current (non AEF) Grants to Local Authorities,Local Government & Public Services,CAMBS & PETERBOROUGH FIRE AUTHORITY,,,,235999737,5000328089,,Retail Relief,PE29 2NA,"3,362.00",Yes
Communities & Local Government,DCLG,15/03/2016,Current (non AEF) Grants to Local Authorities,Local Government & Public Services,CAMBS & PETERBOROUGH FIRE AUTHORITY,,,,235999737,5000328093,,Doubling of Small Business Rates Relief,PE29 2NA,"5,750.00",Yes
Communities & Local Government,DCLG,15/03/2016,Current (non AEF) Grants to Local Authorities,Local Government & Public Services,CAMBS & PETERBOROUGH FIRE AUTHORITY,,,,235999737,5000328097,,Business Rates 2% Inflation Cap,PE29 2NA,"6,919.00",Yes
Communities & Local Government,DCLG,15/03/2016,Current (non AEF) Grants to Local Authorities,Local Government & Public Services,CAMDEN LB,,,,211651836,5000327178,,Business Rates 2% Inflation Cap,WC1H 8NG,"114,125.00",Yes
Communities & Local Government,DCLG,15/03/2016,Current (non AEF) Grants to Local Authorities,Local Government & Public Services,CAMDEN LB,,,,211651836,5000327180,,Retail Relief,WC1H 8NG,"92,891.00",Yes
Communities & Local Government,DCLG,15/03/2016,Current (non AEF) Grants to Local Authorities,Local Government & Public Services,CAMDEN LB,,,,211651836,5000327182,,Doubling of Small Business Rates Relief,WC1H 8NG,"36,073.00",Yes
Communities & Local Government,DCLG,15/03/2016,Current (non AEF) Grants to Local Authorities,Local Government & Public Services,CANNOCK CHASE DC,,,,215064770,5000327184,,Doubling of Small Business Rates Relief,WS11 1BG,"41,328.00",Yes
Communities & Local Government,DCLG,15/03/2016,Current (non AEF) Grants to Local Authorities,Local Government & Public Services,CANNOCK CHASE DC,,,,215064770,5000327186,,Retail Relief,WS11 1BG,"13,651.00",Yes
Communities & Local Government,DCLG,15/03/2016,Current (non AEF) Grants to Local Authorities,Local Government & Public Services,CANNOCK CHASE DC,,,,215064770,5000327188,,Business Rates 2% Inflation Cap,WS11 1BG,"4,879.00",Yes
Communities & Local Government,DCLG,15/03/2016,Current (non AEF) Grants to Local Authorities,Local Government & Public Services,CANTERBURY CITY CNCL,,,,,5000326326,,Business Rates 2% Inflation Cap,CT1 1YW,"5,603.00",Yes
Communities & Local Government,DCLG,15/03/2016,Current (non AEF) Grants to Local Authorities,Local Government & Public Services,CANTERBURY CITY CNCL,,,,,5000326330,,Doubling of Small Business Rates Relief,CT1 1YW,"56,603.00",Yes
Communities & Local Government,DCLG,15/03/2016,Current (non AEF) Grants to Local Authorities,Local Government & Public Services,CANTERBURY CITY CNCL,,,,,5000326334,,Retail Relief,CT1 1YW,"28,410.00",Yes
Communities & Local Government,DCLG,15/03/2016,Current (non AEF) Grants to Local Authorities,Local Government & Public Services,CARLISLE CITY CNCL,,,,227471059,5000326339,,Reoccupation Relief,CA3 8QG,"1,691.00",Yes
Communities & Local Government,DCLG,15/03/2016,Current (non AEF) Grants to Local Authorities,Local Government & Public Services,CARLISLE CITY CNCL,,,,227471059,5000326344,,Doubling of Small Business Rates Relief,CA3 8QG,"42,407.00",Yes
Communities & Local Government,DCLG,15/03/2016,Current (non AEF) Grants to Local Authorities,Local Government & Public Services,CARLISLE CITY CNCL,,,,227471059,5000326349,,Small Business Rates Relief on Second Properties,CA3 8QG,338,Yes
Communities & Local Government,DCLG,15/03/2016,Current (non AEF) Grants to Local Authorities,Local Government & Public Services,CARLISLE CITY CNCL,,,,227471059,5000326352,,Business Rates 2% Inflation Cap,CA3 8QG,"4,303.00",Yes
Communities & Local Government,DCLG,15/03/2016,Current (non AEF) Grants to Local Authorities,Local Government & Public Services,CARLISLE CITY CNCL,,,,227471059,5000326360,,Retail Relief,CA3 8QG,"24,122.00",Yes
Communities & Local Government,DCLG,15/03/2016,Current (non AEF) Grants to Local Authorities,Local Government & Public Services,CASTLE POINT BC,,Public Bodies,,228217931,5000327194,,Retail Relief,SS7 1TF,"16,510.00",Yes
Communities & Local Government,DCLG,15/03/2016,Current (non AEF) Grants to Local Authorities,Local Government & Public Services,CASTLE POINT BC,,Public Bodies,,228217931,5000327196,,Business Rates 2% Inflation Cap,SS7 1TF,"2,502.00",Yes
Communities & Local Government,DCLG,15/03/2016,Current (non AEF) Grants to Local Authorities,Local Government & Public Services,CASTLE POINT BC,,Public Bodies,,228217931,5000327200,,Doubling of Small Business Rates Relief,SS7 1TF,"29,844.00",Yes
Communities & Local Government,DCLG,15/03/2016,Current (non AEF) Grants to Local Authorities,Local Government & Public Services,CENTRAL BEDFORDSHIRE COUNCIL,,,,232624882,5000325978,,Doubling of Small Business Rates Relief,SG17 5TQ,"93,152.00",Yes
Communities & Local Government,DCLG,15/03/2016,Current (non AEF) Grants to Local Authorities,Local Government & Public Services,CENTRAL BEDFORDSHIRE COUNCIL,,,,232624882,5000325979,,Reoccupation Relief,SG17 5TQ,930,Yes
Communities & Local Government,DCLG,15/03/2016,Current (non AEF) Grants to Local Authorities,Local Government & Public Services,CENTRAL BEDFORDSHIRE COUNCIL,,,,232624882,5000325980,,Retail Relief,SG17 5TQ,"42,684.00",Yes
Communities & Local Government,DCLG,15/03/2016,Current (non AEF) Grants to Local Authorities,Local Government & Public Services,CENTRAL BEDFORDSHIRE COUNCIL,,,,232624882,5000325981,,Small Business Rates Relief on Second Properties,SG17 5TQ,"2,983.00",Yes
Communities & Local Government,DCLG,15/03/2016,Current (non AEF) Grants to Local Authorities,Local Government & Public Services,CENTRAL BEDFORDSHIRE COUNCIL,,,,232624882,5000325982,,Business Rates 2% Inflation Cap,SG17 5TQ,"36,989.00",Yes
Communities & Local Government,DCLG,15/03/2016,Current (non AEF) Grants to Local Authorities,Local Government & Public Services,CENTRAL BEDFORDSHIRE COUNCIL,,,,232624882,5000325984,,Empty New Build Relief,SG17 5TQ,428,Yes
Communities & Local Government,DCLG,15/03/2016,Current (non AEF) Grants to Local Authorities,Local Government & Public Services,CHARNWOOD BC,,,,,5000327202,,Business Rates 2% Inflation Cap,LE11 2TU,"4,208.00",Yes
Communities & Local Government,DCLG,15/03/2016,Current (non AEF) Grants to Local Authorities,Local Government & Public Services,CHARNWOOD BC,,,,,5000327204,,Empty New Build Relief,LE11 2TU,"1,638.00",Yes
Communities & Local Government,DCLG,15/03/2016,Current (non AEF) Grants to Local Authorities,Local Government & Public Services,CHARNWOOD BC,,,,,5000327205,,Reoccupation Relief,LE11 2TU,581,Yes
Communities & Local Government,DCLG,15/03/2016,Current (non AEF) Grants to Local Authorities,Local Government & Public Services,CHARNWOOD BC,,,,,5000327207,,Retail Relief,LE11 2TU,"23,230.00",Yes
Communities & Local Government,DCLG,15/03/2016,Current (non AEF) Grants to Local Authorities,Local Government & Public Services,CHARNWOOD BC,,,,,5000327211,,Doubling of Small Business Rates Relief,LE11 2TU,"54,047.00",Yes
Communities & Local Government,DCLG,15/03/2016,Current (non AEF) Grants to Local Authorities,Local Government & Public Services,CHELMSFORD BC,,,,,5000327213,,Doubling of Small Business Rates Relief,CM1 1JE,"43,967.00",Yes
Communities & Local Government,DCLG,15/03/2016,Current (non AEF) Grants to Local Authorities,Local Government & Public Services,CHELMSFORD BC,,,,,5000327215,,Retail Relief,CM1 1JE,"32,760.00",Yes
Communities & Local Government,DCLG,15/03/2016,Current (non AEF) Grants to Local Authorities,Local Government & Public Services,CHELMSFORD BC,,,,,5000327217,,Business Rates 2% Inflation Cap,CM1 1JE,"4,080.00",Yes
Communities & Local Government,DCLG,15/03/2016,Current (non AEF) Grants to Local Authorities,Local Government & Public Services,CHELTENHAM BC,,,,,5000327219,,Doubling of Small Business Rates Relief,GL50 1PW,"37,911.00",Yes
Communities & Local Government,DCLG,15/03/2016,Current (non AEF) Grants to Local Authorities,Local Government & Public Services,CHELTENHAM BC,,,,,5000327221,,Empty New Build Relief,GL50 1PW,338,Yes
Communities & Local Government,DCLG,15/03/2016,Current (non AEF) Grants to Local Authorities,Local Government & Public Services,CHELTENHAM BC,,,,,5000327223,,Reoccupation Relief,GL50 1PW,338,Yes
Communities & Local Government,DCLG,15/03/2016,Current (non AEF) Grants to Local Authorities,Local Government & Public Services,CHELTENHAM BC,,,,,5000327225,,Retail Relief,GL50 1PW,"20,189.00",Yes
Communities & Local Government,DCLG,15/03/2016,Current (non AEF) Grants to Local Authorities,Local Government & Public Services,CHELTENHAM BC,,,,,5000327227,,Business Rates 2% Inflation Cap,GL50 1PW,"3,831.00",Yes
Communities & Local Government,DCLG,15/03/2016,Current (non AEF) Grants to Local Authorities,Local Government & Public Services,CHERWELL DC,,,,,5000326365,,Retail Relief,OX15 4AA,"29,106.00",Yes
Communities & Local Government,DCLG,15/03/2016,Current (non AEF) Grants to Local Authorities,Local Government & Public Services,CHERWELL DC,,,,,5000326369,,Business Rates 2% Inflation Cap,OX15 4AA,"6,899.00",Yes
Communities & Local Government,DCLG,15/03/2016,Current (non AEF) Grants to Local Authorities,Local Government & Public Services,CHERWELL DC,,,,,5000326374,,Doubling of Small Business Rates Relief,OX15 4AA,"35,830.00",Yes
Communities & Local Government,DCLG,15/03/2016,Current (non AEF) Grants to Local Authorities,Local Government & Public Services,CHESHIRE EAST COUNCIL,,Large,,,5000325985,,Doubling of Small Business Rates Relief,CW11 1HZ,"182,218.00",Yes
Communities & Local Government,DCLG,15/03/2016,Current (non AEF) Grants to Local Authorities,Local Government & Public Services,CHESHIRE EAST COUNCIL,,Large,,,5000325986,,Reoccupation Relief,CW11 1HZ,"1,005.00",Yes
Communities & Local Government,DCLG,15/03/2016,Current (non AEF) Grants to Local Authorities,Local Government & Public Services,CHESHIRE EAST COUNCIL,,Large,,,5000325988,,Retail Relief,CW11 1HZ,"95,087.00",Yes
Communities & Local Government,DCLG,15/03/2016,Current (non AEF) Grants to Local Authorities,Local Government & Public Services,CHESHIRE EAST COUNCIL,,Large,,,5000325990,,Small Business Rates Relief on Second Properties,CW11 1HZ,800,Yes
Communities & Local Government,DCLG,15/03/2016,Current (non AEF) Grants to Local Authorities,Local Government & Public Services,CHESHIRE EAST COUNCIL,,Large,,,5000325993,,Business Rates 2% Inflation Cap,CW11 1HZ,"48,026.00",Yes
Communities & Local Government,DCLG,15/03/2016,Current (non AEF) Grants to Local Authorities,Local Government & Public Services,CHESHIRE FIRE AUTHORITY,,,,424872737,5000328075,,Reoccupation Relief,CW7 2FQ,274,Yes
Communities & Local Government,DCLG,15/03/2016,Current (non AEF) Grants to Local Authorities,Local Government & Public Services,CHESHIRE FIRE AUTHORITY,,,,424872737,5000328077,,Retail Relief,CW7 2FQ,"4,693.00",Yes
Communities & Local Government,DCLG,15/03/2016,Current (non AEF) Grants to Local Authorities,Local Government & Public Services,CHESHIRE FIRE AUTHORITY,,,,424872737,5000328079,,Business Rates 2% Inflation Cap,CW7 2FQ,"10,575.00",Yes
Communities & Local Government,DCLG,15/03/2016,Current (non AEF) Grants to Local Authorities,Local Government & Public Services,CHESHIRE FIRE AUTHORITY,,,,424872737,5000328085,,Doubling of Small Business Rates Relief,CW7 2FQ,"8,399.00",Yes
Communities & Local Government,DCLG,15/03/2016,Current (non AEF) Grants to Local Authorities,Local Government & Public Services,CHESHIRE WEST & CHESTER UA,,Large,,215584383,5000325995,,Retail Relief,CH1 2NP,"82,864.00",Yes
Communities & Local Government,DCLG,15/03/2016,Current (non AEF) Grants to Local Authorities,Local Government & Public Services,CHESHIRE WEST & CHESTER UA,,Large,,215584383,5000325997,,Business Rates 2% Inflation Cap,CH1 2NP,"59,219.00",Yes
Communities & Local Government,DCLG,15/03/2016,Current (non AEF) Grants to Local Authorities,Local Government & Public Services,CHESHIRE WEST & CHESTER UA,,Large,,215584383,5000325999,,Doubling of Small Business Rates Relief,CH1 2NP,"129,372.00",Yes
Communities & Local Government,DCLG,15/03/2016,Current (non AEF) Grants to Local Authorities,Local Government & Public Services,CHESHIRE WEST & CHESTER UA,,Large,,215584383,5000326001,,Empty New Build Relief,CH1 2NP,"1,657.00",Yes
Communities & Local Government,DCLG,15/03/2016,Current (non AEF) Grants to Local Authorities,Local Government & Public Services,CHESHIRE WEST & CHESTER UA,,Large,,215584383,5000326003,,Reoccupation Relief,CH1 2NP,"12,430.00",Yes
Communities & Local Government,DCLG,15/03/2016,Current (non AEF) Grants to Local Authorities,Local Government & Public Services,CHESTERFIELD BC,,,,232102301,5000327231,,Retail Relief,S40 1LP,"25,106.00",Yes
Communities & Local Government,DCLG,15/03/2016,Current (non AEF) Grants to Local Authorities,Local Government & Public Services,CHESTERFIELD BC,,,,232102301,5000327233,,Business Rates 2% Inflation Cap,S40 1LP,"4,666.00",Yes
Communities & Local Government,DCLG,15/03/2016,Current (non AEF) Grants to Local Authorities,Local Government & Public Services,CHESTERFIELD BC,,,,232102301,5000327237,,Doubling of Small Business Rates Relief,S40 1LP,"45,711.00",Yes
Communities & Local Government,DCLG,15/03/2016,Current (non AEF) Grants to Local Authorities,Local Government & Public Services,CHICHESTER DC,,,,739800998,5000326383,,Doubling of Small Business Rates Relief,PO19 1TY,"52,796.00",Yes
Communities & Local Government,DCLG,15/03/2016,Current (non AEF) Grants to Local Authorities,Local Government & Public Services,CHICHESTER DC,,,,739800998,5000326387,,Empty New Build Relief,PO19 1TY,338,Yes
Communities & Local Government,DCLG,15/03/2016,Current (non AEF) Grants to Local Authorities,Local Government & Public Services,CHICHESTER DC,,,,739800998,5000326391,,Reoccupation Relief,PO19 1TY,"1,691.00",Yes
Communities & Local Government,DCLG,15/03/2016,Current (non AEF) Grants to Local Authorities,Local Government & Public Services,CHICHESTER DC,,,,739800998,5000326396,,Retail Relief,PO19 1TY,"24,352.00",Yes
Communities & Local Government,DCLG,15/03/2016,Current (non AEF) Grants to Local Authorities,Local Government & Public Services,CHICHESTER DC,,,,739800998,5000326401,,Small Business Rates Relief on Second Properties,PO19 1TY,576,Yes
Communities & Local Government,DCLG,15/03/2016,Current (non AEF) Grants to Local Authorities,Local Government & Public Services,CHICHESTER DC,,,,739800998,5000326404,,Business Rates 2% Inflation Cap,PO19 1TY,"2,694.00",Yes
Communities & Local Government,DCLG,15/03/2016,Current (non AEF) Grants to Local Authorities,Local Government & Public Services,CHILTERN DC (HSG),,,,,5000326409,,Doubling of Small Business Rates Relief,HP6 5AW,"24,724.00",Yes
Communities & Local Government,DCLG,15/03/2016,Current (non AEF) Grants to Local Authorities,Local Government & Public Services,CHILTERN DC (HSG),,,,,5000326412,,Retail Relief,HP6 5AW,"17,664.00",Yes
Communities & Local Government,DCLG,15/03/2016,Current (non AEF) Grants to Local Authorities,Local Government & Public Services,CHILTERN DC (HSG),,,,,5000326417,,Business Rates 2% Inflation Cap,HP6 5AW,"1,939.00",Yes
Communities & Local Government,DCLG,15/03/2016,Current (non AEF) Grants to Local Authorities,Local Government & Public Services,CHORLEY BOROUGH COUNCIL,,,,236415576,5000327239,,Reoccupation Relief,PR7 1DP,753,Yes
Communities & Local Government,DCLG,15/03/2016,Current (non AEF) Grants to Local Authorities,Local Government & Public Services,CHORLEY BOROUGH COUNCIL,,,,236415576,5000327243,,Business Rates 2% Inflation Cap,PR7 1DP,"4,327.00",Yes
Communities & Local Government,DCLG,15/03/2016,Current (non AEF) Grants to Local Authorities,Local Government & Public Services,CHORLEY BOROUGH COUNCIL,,,,236415576,5000327245,,Doubling of Small Business Rates Relief,PR7 1DP,"41,254.00",Yes
Communities & Local Government,DCLG,15/03/2016,Current (non AEF) Grants to Local Authorities,Local Government & Public Services,CHORLEY BOROUGH COUNCIL,,,,236415576,5000327247,,Empty New Build Relief,PR7 1DP,275,Yes
Communities & Local Government,DCLG,15/03/2016,Current (non AEF) Grants to Local Authorities,Local Government & Public Services,CHORLEY BOROUGH COUNCIL,,,,236415576,5000327249,,Retail Relief,PR7 1DP,"17,491.00",Yes
Communities & Local Government,DCLG,15/03/2016,Current (non AEF) Grants to Local Authorities,Local Government & Public Services,CHRISTCHURCH BC (HSG),,,,227415213,5000326421,,Retail Relief,BH23 1AZ,"12,728.00",Yes
Communities & Local Government,DCLG,15/03/2016,Current (non AEF) Grants to Local Authorities,Local Government & Public Services,CHRISTCHURCH BC (HSG),,,,227415213,5000326426,,Business Rates 2% Inflation Cap,BH23 1AZ,"1,287.00",Yes
Communities & Local Government,DCLG,15/03/2016,Current (non AEF) Grants to Local Authorities,Local Government & Public Services,CHRISTCHURCH BC (HSG),,,,227415213,5000326430,,Doubling of Small Business Rates Relief,BH23 1AZ,"20,134.00",Yes
Communities & Local Government,DCLG,15/03/2016,Current (non AEF) Grants to Local Authorities,Local Government & Public Services,CITY OF LINCOLN COUNCIL,,,,,5000327838,,Business Rates 2% Inflation Cap,LN1 1DB,"4,988.00",Yes
Communities & Local Government,DCLG,15/03/2016,Current (non AEF) Grants to Local Authorities,Local Government & Public Services,CITY OF LINCOLN COUNCIL,,,,,5000327840,,Doubling of Small Business Rates Relief,LN1 1DB,"31,148.00",Yes
Communities & Local Government,DCLG,15/03/2016,Current (non AEF) Grants to Local Authorities,Local Government & Public Services,CITY OF LINCOLN COUNCIL,,,,,5000327842,,Reoccupation Relief,LN1 1DB,"9,035.00",Yes
Communities & Local Government,DCLG,15/03/2016,Current (non AEF) Grants to Local Authorities,Local Government & Public Services,CITY OF LINCOLN COUNCIL,,,,,5000327846,,Empty New Build Relief,LN1 1DB,"1,122.00",Yes
Communities & Local Government,DCLG,15/03/2016,Current (non AEF) Grants to Local Authorities,Local Government & Public Services,CITY OF LINCOLN COUNCIL,,,,,5000327848,,Retail Relief,LN1 1DB,"20,328.00",Yes
Communities & Local Government,DCLG,15/03/2016,Current (non AEF) Grants to Local Authorities,Local Government & Public Services,CITY OF LONDON (HSG),,,,217471460,5000326439,,Business Rates 2% Inflation Cap,EC2P 2EJ,"18,708.00",Yes
Communities & Local Government,DCLG,15/03/2016,Current (non AEF) Grants to Local Authorities,Local Government & Public Services,CITY OF LONDON (HSG),,,,217471460,5000326443,,Doubling of Small Business Rates Relief,EC2P 2EJ,"5,495.00",Yes
Communities & Local Government,DCLG,15/03/2016,Current (non AEF) Grants to Local Authorities,Local Government & Public Services,CITY OF LONDON (HSG),,,,217471460,5000326447,,Empty New Build Relief,EC2P 2EJ,"3,171.00",Yes
Communities & Local Government,DCLG,15/03/2016,Current (non AEF) Grants to Local Authorities,Local Government & Public Services,CITY OF LONDON (HSG),,,,217471460,5000326453,,Retail Relief,EC2P 2EJ,"15,220.00",Yes
Communities & Local Government,DCLG,15/03/2016,Current (non AEF) Grants to Local Authorities,Local Government & Public Services,CITY OF LONDON (HSG),,,,217471460,5000326457,,Reoccupation Relief,EC2P 2EJ,"2,283.00",Yes
Communities & Local Government,DCLG,15/03/2016,Current (non AEF) Grants to Local Authorities,Local Government & Public Services,CITY OF SUNDERLAND (HSG),,,,215599312,5000326461,,Business Rates 2% Inflation Cap,SR2 7DN,"96,402.00",Yes
Communities & Local Government,DCLG,15/03/2016,Current (non AEF) Grants to Local Authorities,Local Government & Public Services,CITY OF SUNDERLAND (HSG),,,,215599312,5000326465,,Small Business Rates Relief on Second Properties,SR2 7DN,539,Yes
Communities & Local Government,DCLG,15/03/2016,Current (non AEF) Grants to Local Authorities,Local Government & Public Services,CITY OF SUNDERLAND (HSG),,,,215599312,5000326469,,Doubling of Small Business Rates Relief,SR2 7DN,"92,755.00",Yes
Communities & Local Government,DCLG,15/03/2016,Current (non AEF) Grants to Local Authorities,Local Government & Public Services,CITY OF SUNDERLAND (HSG),,,,215599312,5000326474,,Reoccupation Relief,SR2 7DN,492,Yes
Communities & Local Government,DCLG,15/03/2016,Current (non AEF) Grants to Local Authorities,Local Government & Public Services,CITY OF SUNDERLAND (HSG),,,,215599312,5000326478,,Retail Relief,SR2 7DN,"47,278.00",Yes
Communities & Local Government,DCLG,15/03/2016,Current (non AEF) Grants to Local Authorities,Local Government & Public Services,CITY OF WAKEFIELD MDC,,,,,5000327679,,Reoccupation Relief,WF1 2QW,"4,089.00",Yes
Communities & Local Government,DCLG,15/03/2016,Current (non AEF) Grants to Local Authorities,Local Government & Public Services,CITY OF WAKEFIELD MDC,,,,,5000327681,,Retail Relief,WF1 2QW,"72,506.00",Yes
Communities & Local Government,DCLG,15/03/2016,Current (non AEF) Grants to Local Authorities,Local Government & Public Services,CITY OF WAKEFIELD MDC,,,,,5000327683,,Small Business Rates Relief on Second Properties,WF1 2QW,414,Yes
Communities & Local Government,DCLG,15/03/2016,Current (non AEF) Grants to Local Authorities,Local Government & Public Services,CITY OF WAKEFIELD MDC,,,,,5000327685,,Business Rates 2% Inflation Cap,WF1 2QW,"80,332.00",Yes
Communities & Local Government,DCLG,15/03/2016,Current (non AEF) Grants to Local Authorities,Local Government & Public Services,CITY OF WAKEFIELD MDC,,,,,5000327689,,Doubling of Small Business Rates Relief,WF1 2QW,"157,235.00",Yes
Communities & Local Government,DCLG,15/03/2016,Current (non AEF) Grants to Local Authorities,Local Government & Public Services,CLEVELAND FIRE AUTHORITY,,Medium,,424872778,5000328043,,Retail Relief,TS25 5TB,"1,754.00",Yes
Communities & Local Government,DCLG,15/03/2016,Current (non AEF) Grants to Local Authorities,Local Government & Public Services,CLEVELAND FIRE AUTHORITY,,Medium,,424872778,5000328045,,Business Rates 2% Inflation Cap,TS25 5TB,"10,369.00",Yes
Communities & Local Government,DCLG,15/03/2016,Current (non AEF) Grants to Local Authorities,Local Government & Public Services,CLEVELAND FIRE AUTHORITY,,Medium,,424872778,5000328047,,Doubling of Small Business Rates Relief,TS25 5TB,"4,115.00",Yes
Communities & Local Government,DCLG,15/03/2016,Current (non AEF) Grants to Local Authorities,Local Government & Public Services,CLEVELAND FIRE AUTHORITY,,Medium,,424872778,5000328049,,Reoccupation Relief,TS25 5TB,763,Yes
Communities & Local Government,DCLG,15/03/2016,Current (non AEF) Grants to Local Authorities,Local Government & Public Services,CO DURHAM & DARLINGTON FIRE & RESCU,,,,424872851,5000328187,,Business Rates 2% Inflation Cap,DH1 1TW,"7,861.00",Yes
Communities & Local Government,DCLG,15/03/2016,Current (non AEF) Grants to Local Authorities,Local Government & Public Services,CO DURHAM & DARLINGTON FIRE & RESCU,,,,424872851,5000328189,,Doubling of Small Business Rates Relief,DH1 1TW,"5,020.00",Yes
Communities & Local Government,DCLG,15/03/2016,Current (non AEF) Grants to Local Authorities,Local Government & Public Services,CO DURHAM & DARLINGTON FIRE & RESCU,,,,424872851,5000328193,,Retail Relief,DH1 1TW,"1,811.00",Yes
Communities & Local Government,DCLG,15/03/2016,Current (non AEF) Grants to Local Authorities,Local Government & Public Services,COLCHESTER BC,,,,,5000327251,,Reoccupation Relief,CO3 3WG,400,Yes
Communities & Local Government,DCLG,15/03/2016,Current (non AEF) Grants to Local Authorities,Local Government & Public Services,COLCHESTER BC,,,,,5000327253,,Business Rates 2% Inflation Cap,CO3 3WG,"6,019.00",Yes
Communities & Local Government,DCLG,15/03/2016,Current (non AEF) Grants to Local Authorities,Local Government & Public Services,COLCHESTER BC,,,,,5000327255,,Doubling of Small Business Rates Relief,CO3 3WG,"50,636.00",Yes
Communities & Local Government,DCLG,15/03/2016,Current (non AEF) Grants to Local Authorities,Local Government & Public Services,COLCHESTER BC,,,,,5000327257,,Empty New Build Relief,CO3 3WG,"3,382.00",Yes
Communities & Local Government,DCLG,15/03/2016,Current (non AEF) Grants to Local Authorities,Local Government & Public Services,COLCHESTER BC,,,,,5000327259,,Retail Relief,CO3 3WG,"37,621.00",Yes
Communities & Local Government,DCLG,15/03/2016,Current (non AEF) Grants to Local Authorities,Local Government & Public Services,COPELAND BC,,,,236414827,5000326491,,Business Rates 2% Inflation Cap,CA28 7NY,368,Yes
Communities & Local Government,DCLG,15/03/2016,Current (non AEF) Grants to Local Authorities,Local Government & Public Services,COPELAND BC,,,,236414827,5000326495,,Doubling of Small Business Rates Relief,CA28 7NY,"22,918.00",Yes
Communities & Local Government,DCLG,15/03/2016,Current (non AEF) Grants to Local Authorities,Local Government & Public Services,COPELAND BC,,,,236414827,5000326499,,Retail Relief,CA28 7NY,"11,545.00",Yes
Communities & Local Government,DCLG,15/03/2016,Current (non AEF) Grants to Local Authorities,Local Government & Public Services,CORBY BC,,,,,5000326505,,Business Rates 2% Inflation Cap,NN17 1GD,"4,134.00",Yes
Communities & Local Government,DCLG,15/03/2016,Current (non AEF) Grants to Local Authorities,Local Government & Public Services,CORBY BC,,,,,5000326508,,Retail Relief,NN17 1GD,"5,073.00",Yes
Communities & Local Government,DCLG,15/03/2016,Current (non AEF) Grants to Local Authorities,Local Government & Public Services,CORBY BC,,,,,5000326513,,Small Business Rates Relief on Second Properties,NN17 1GD,609,Yes
Communities & Local Government,DCLG,15/03/2016,Current (non AEF) Grants to Local Authorities,Local Government & Public Services,CORBY BC,,,,,5000326517,,Doubling of Small Business Rates Relief,NN17 1GD,"7,857.00",Yes
Communities & Local Government,DCLG,15/03/2016,Current (non AEF) Grants to Local Authorities,Local Government & Public Services,CORBY BC,,,,,5000326522,,Reoccupation Relief,NN17 1GD,"1,617.00",Yes
Communities & Local Government,DCLG,15/03/2016,Current (non AEF) Grants to Local Authorities,Local Government & Public Services,CORNWALL UNITARY AUTHORITY,,,,211334404,5000326046,,Doubling of Small Business Rates Relief,TR1 3AY,"480,580.00",Yes
Communities & Local Government,DCLG,15/03/2016,Current (non AEF) Grants to Local Authorities,Local Government & Public Services,CORNWALL UNITARY AUTHORITY,,,,211334404,5000326054,,Small Business Rates Relief on Second Properties,TR1 3AY,739,Yes
Communities & Local Government,DCLG,15/03/2016,Current (non AEF) Grants to Local Authorities,Local Government & Public Services,CORNWALL UNITARY AUTHORITY,,,,211334404,5000326058,,Business Rates 2% Inflation Cap,TR1 3AY,"114,831.00",Yes
Communities & Local Government,DCLG,15/03/2016,Current (non AEF) Grants to Local Authorities,Local Government & Public Services,CORNWALL UNITARY AUTHORITY,,,,211334404,5000326062,,Empty New Build Relief,TR1 3AY,"2,054.00",Yes
Communities & Local Government,DCLG,15/03/2016,Current (non AEF) Grants to Local Authorities,Local Government & Public Services,CORNWALL UNITARY AUTHORITY,,,,211334404,5000326067,,Retail Relief,TR1 3AY,"190,388.00",Yes
Communities & Local Government,DCLG,15/03/2016,Current (non AEF) Grants to Local Authorities,Local Government & Public Services,COTSWOLD DC,,,,232462085,5000326525,,Business Rates 2% Inflation Cap,GL7 1PX,"2,191.00",Yes
Communities & Local Government,DCLG,15/03/2016,Current (non AEF) Grants to Local Authorities,Local Government & Public Services,COTSWOLD DC,,,,232462085,5000326530,,Doubling of Small Business Rates Relief,GL7 1PX,"47,567.00",Yes
Communities & Local Government,DCLG,15/03/2016,Current (non AEF) Grants to Local Authorities,Local Government & Public Services,COTSWOLD DC,,,,232462085,5000326534,,Empty New Build Relief,GL7 1PX,947,Yes
Communities & Local Government,DCLG,15/03/2016,Current (non AEF) Grants to Local Authorities,Local Government & Public Services,COTSWOLD DC,,,,232462085,5000326538,,Retail Relief,GL7 1PX,"28,189.00",Yes
Communities & Local Government,DCLG,15/03/2016,Current (non AEF) Grants to Local Authorities,Local Government & Public Services,COVENTRY CITY CNCL,,,,210384802,5000327261,,Business Rates 2% Inflation Cap,CV1 2QL,"89,394.00",Yes
Communities & Local Government,DCLG,15/03/2016,Current (non AEF) Grants to Local Authorities,Local Government & Public Services,COVENTRY CITY CNCL,,,,210384802,5000327263,,Doubling of Small Business Rates Relief,CV1 2QL,"108,313.00",Yes
Communities & Local Government,DCLG,15/03/2016,Current (non AEF) Grants to Local Authorities,Local Government & Public Services,COVENTRY CITY CNCL,,,,210384802,5000327265,,Empty New Build Relief,CV1 2QL,"1,389.00",Yes
Communities & Local Government,DCLG,15/03/2016,Current (non AEF) Grants to Local Authorities,Local Government & Public Services,COVENTRY CITY CNCL,,,,210384802,5000327267,,Retail Relief,CV1 2QL,"45,305.00",Yes
Communities & Local Government,DCLG,15/03/2016,Current (non AEF) Grants to Local Authorities,Local Government & Public Services,CRAVEN DC (HSG),,,,,5000326543,,Business Rates 2% Inflation Cap,BD23 1FJ,"1,485.00",Yes
Communities & Local Government,DCLG,15/03/2016,Current (non AEF) Grants to Local Authorities,Local Government & Public Services,CRAVEN DC (HSG),,,,,5000326551,,Retail Relief,BD23 1FJ,"20,293.00",Yes
Communities & Local Government,DCLG,15/03/2016,Current (non AEF) Grants to Local Authorities,Local Government & Public Services,CRAVEN DC (HSG),,,,,5000326555,,Doubling of Small Business Rates Relief,BD23 1FJ,"38,811.00",Yes
Communities & Local Government,DCLG,15/03/2016,Current (non AEF) Grants to Local Authorities,Local Government & Public Services,CRAVEN DC (HSG),,,,,5000326559,,Reoccupation Relief,BD23 1FJ,"1,015.00",Yes
Communities & Local Government,DCLG,15/03/2016,Current (non AEF) Grants to Local Authorities,Local Government & Public Services,CRAWLEY BC,,,,211222500,5000326563,,Doubling of Small Business Rates Relief,RH10 1UZ,"12,508.00",Yes
Communities & Local Government,DCLG,15/03/2016,Current (non AEF) Grants to Local Authorities,Local Government & Public Services,CRAWLEY BC,,,,211222500,5000326568,,Reoccupation Relief,RH10 1UZ,385,Yes
Communities & Local Government,DCLG,15/03/2016,Current (non AEF) Grants to Local Authorities,Local Government & Public Services,CRAWLEY BC,,,,211222500,5000326576,,Business Rates 2% Inflation Cap,RH10 1UZ,"6,822.00",Yes
Communities & Local Government,DCLG,15/03/2016,Current (non AEF) Grants to Local Authorities,Local Government & Public Services,CRAWLEY BC,,,,211222500,5000326580,,Retail Relief,RH10 1UZ,"12,176.00",Yes
Communities & Local Government,DCLG,15/03/2016,Current (non AEF) Grants to Local Authorities,Local Government & Public Services,CROYDON LB,,,,212419973,5000327269,,Retail Relief,CR9 3JS,"17,538.00",Yes
Communities & Local Government,DCLG,15/03/2016,Current (non AEF) Grants to Local Authorities,Local Government & Public Services,CROYDON LB,,,,212419973,5000327271,,Business Rates 2% Inflation Cap,CR9 3JS,"81,948.00",Yes
Communities & Local Government,DCLG,15/03/2016,Current (non AEF) Grants to Local Authorities,Local Government & Public Services,CROYDON LB,,,,212419973,5000327273,,Doubling of Small Business Rates Relief,CR9 3JS,"76,405.00",Yes
Communities & Local Government,DCLG,15/03/2016,Current (non AEF) Grants to Local Authorities,Local Government & Public Services,CUMBRIA COUNTY CNCL,,,,211316542,5000327279,,Business Rates 2% Inflation Cap,CA3 8NA,"98,026.00",Yes
Communities & Local Government,DCLG,15/03/2016,Current (non AEF) Grants to Local Authorities,Local Government & Public Services,CUMBRIA COUNTY CNCL,,,,211316542,5000327283,,Reoccupation Relief,CA3 8NA,906,Yes
Communities & Local Government,DCLG,15/03/2016,Current (non AEF) Grants to Local Authorities,Local Government & Public Services,CUMBRIA COUNTY CNCL,,,,211316542,5000327285,,Retail Relief,CA3 8NA,"29,653.00",Yes
Communities & Local Government,DCLG,15/03/2016,Current (non AEF) Grants to Local Authorities,Local Government & Public Services,CUMBRIA COUNTY CNCL,,,,211316542,5000327287,,Small Business Rates Relief on Second Properties,CA3 8NA,373,Yes
Communities & Local Government,DCLG,15/03/2016,Current (non AEF) Grants to Local Authorities,Local Government & Public Services,CUMBRIA COUNTY CNCL,,,,211316542,5000327289,,Doubling of Small Business Rates Relief,CA3 8NA,"69,839.00",Yes
Communities & Local Government,DCLG,15/03/2016,Current (non AEF) Grants to Local Authorities,Local Government & Public Services,DACORUM BC,,,,236448643,5000327291,,Business Rates 2% Inflation Cap,HP1 1HH,"2,634.00",Yes
Communities & Local Government,DCLG,15/03/2016,Current (non AEF) Grants to Local Authorities,Local Government & Public Services,DACORUM BC,,,,236448643,5000327293,,Doubling of Small Business Rates Relief,HP1 1HH,"36,021.00",Yes
Communities & Local Government,DCLG,15/03/2016,Current (non AEF) Grants to Local Authorities,Local Government & Public Services,DACORUM BC,,,,236448643,5000327295,,Retail Relief,HP1 1HH,"25,037.00",Yes
Communities & Local Government,DCLG,15/03/2016,Current (non AEF) Grants to Local Authorities,Local Government & Public Services,DACORUM BC,,,,236448643,5000327297,,Reoccupation Relief,HP1 1HH,484,Yes
Communities & Local Government,DCLG,15/03/2016,Current (non AEF) Grants to Local Authorities,Local Government & Public Services,DACORUM BC,,,,236448643,5000327299,,Small Business Rates Relief on Second Properties,HP1 1HH,"1,847.00",Yes
Communities & Local Government,DCLG,15/03/2016,Current (non AEF) Grants to Local Authorities,Local Government & Public Services,DARLINGTON BC,,,,,5000327301,,Business Rates 2% Inflation Cap,TS19 1JA,"25,770.00",Yes
Communities & Local Government,DCLG,15/03/2016,Current (non AEF) Grants to Local Authorities,Local Government & Public Services,DARLINGTON BC,,,,,5000327303,,Doubling of Small Business Rates Relief,TS19 1JA,"46,137.00",Yes
Communities & Local Government,DCLG,15/03/2016,Current (non AEF) Grants to Local Authorities,Local Government & Public Services,DARLINGTON BC,,,,,5000327305,,Reoccupation Relief,TS19 1JA,804,Yes
Communities & Local Government,DCLG,15/03/2016,Current (non AEF) Grants to Local Authorities,Local Government & Public Services,DARLINGTON BC,,,,,5000327307,,Retail Relief,TS19 1JA,"20,258.00",Yes
Communities & Local Government,DCLG,15/03/2016,Current (non AEF) Grants to Local Authorities,Local Government & Public Services,DARTFORD BC,,,,225694942,5000326585,,Doubling of Small Business Rates Relief,DA1 1DR,"24,976.00",Yes
Communities & Local Government,DCLG,15/03/2016,Current (non AEF) Grants to Local Authorities,Local Government & Public Services,DARTFORD BC,,,,225694942,5000326589,,Business Rates 2% Inflation Cap,DA1 1DR,"4,458.00",Yes
Communities & Local Government,DCLG,15/03/2016,Current (non AEF) Grants to Local Authorities,Local Government & Public Services,DARTFORD BC,,,,225694942,5000326593,,Retail Relief,DA1 1DR,"8,056.00",Yes
Communities & Local Government,DCLG,15/03/2016,Current (non AEF) Grants to Local Authorities,Local Government & Public Services,DAVENTRY DC,,,,239859333,5000326603,,Business Rates 2% Inflation Cap,NN11 5AF,"4,607.00",Yes
Communities & Local Government,DCLG,15/03/2016,Current (non AEF) Grants to Local Authorities,Local Government & Public Services,DAVENTRY DC,,,,239859333,5000326608,,Doubling of Small Business Rates Relief,NN11 5AF,"26,531.00",Yes
Communities & Local Government,DCLG,15/03/2016,Current (non AEF) Grants to Local Authorities,Local Government & Public Services,DAVENTRY DC,,,,239859333,5000326612,,Retail Relief,NN11 5AF,"12,797.00",Yes
Communities & Local Government,DCLG,15/03/2016,Current (non AEF) Grants to Local Authorities,Local Government & Public Services,DERBY CITY CNCL,,,,229641378,5000327309,,Doubling of Small Business Rates Relief,DE1 2FS,"83,253.00",Yes
Communities & Local Government,DCLG,15/03/2016,Current (non AEF) Grants to Local Authorities,Local Government & Public Services,DERBY CITY CNCL,,,,229641378,5000327311,,Reoccupation Relief,DE1 2FS,581,Yes
Communities & Local Government,DCLG,15/03/2016,Current (non AEF) Grants to Local Authorities,Local Government & Public Services,DERBY CITY CNCL,,,,229641378,5000327313,,Retail Relief,DE1 2FS,"53,391.00",Yes
Communities & Local Government,DCLG,15/03/2016,Current (non AEF) Grants to Local Authorities,Local Government & Public Services,DERBY CITY CNCL,,,,229641378,5000327315,,Business Rates 2% Inflation Cap,DE1 2FS,"68,189.00",Yes
Communities & Local Government,DCLG,15/03/2016,Current (non AEF) Grants to Local Authorities,Local Government & Public Services,DERBYSHIRE COUNTYCOUNCIL,,,,232152967,5000327317,,Business Rates 2% Inflation Cap,DE4 3AG,"125,617.00",Yes
Communities & Local Government,DCLG,15/03/2016,Current (non AEF) Grants to Local Authorities,Local Government & Public Services,DERBYSHIRE COUNTYCOUNCIL,,,,232152967,5000327319,,Doubling of Small Business Rates Relief,DE4 3AG,"66,287.00",Yes
Communities & Local Government,DCLG,15/03/2016,Current (non AEF) Grants to Local Authorities,Local Government & Public Services,DERBYSHIRE COUNTYCOUNCIL,,,,232152967,5000327321,,Reoccupation Relief,DE4 3AG,368,Yes
Communities & Local Government,DCLG,15/03/2016,Current (non AEF) Grants to Local Authorities,Local Government & Public Services,DERBYSHIRE COUNTYCOUNCIL,,,,232152967,5000327328,,Retail Relief,DE4 3AG,"26,795.00",Yes
Communities & Local Government,DCLG,15/03/2016,Current (non AEF) Grants to Local Authorities,Local Government & Public Services,DERBYSHIRE DALES DC,,,,,5000326616,,Business Rates 2% Inflation Cap,DE4 3NN,"1,715.00",Yes
Communities & Local Government,DCLG,15/03/2016,Current (non AEF) Grants to Local Authorities,Local Government & Public Services,DERBYSHIRE DALES DC,,,,,5000326620,,Doubling of Small Business Rates Relief,DE4 3NN,"44,098.00",Yes
Communities & Local Government,DCLG,15/03/2016,Current (non AEF) Grants to Local Authorities,Local Government & Public Services,DERBYSHIRE DALES DC,,,,,5000326624,,Retail Relief,DE4 3NN,"25,615.00",Yes
Communities & Local Government,DCLG,15/03/2016,Current (non AEF) Grants to Local Authorities,Local Government & Public Services,DERBYSHIRE FIRE AND RESCUE SERVICE,,,,424872935,5000328195,,Business Rates 2% Inflation Cap,DE23 6EH,"10,105.00",Yes
Communities & Local Government,DCLG,15/03/2016,Current (non AEF) Grants to Local Authorities,Local Government & Public Services,DERBYSHIRE FIRE AND RESCUE SERVICE,,,,424872935,5000328197,,Retail Relief,DE23 6EH,"4,067.00",Yes
Communities & Local Government,DCLG,15/03/2016,Current (non AEF) Grants to Local Authorities,Local Government & Public Services,DERBYSHIRE FIRE AND RESCUE SERVICE,,,,424872935,5000328199,,Doubling of Small Business Rates Relief,DE23 6EH,"9,064.00",Yes
Communities & Local Government,DCLG,15/03/2016,Current (non AEF) Grants to Local Authorities,Local Government & Public Services,DEVON & SOMERSET FIRE & RESCUE SERV,,Large,,424872976,5000328124,,Doubling of Small Business Rates Relief,EX3 0NW,"19,891.00",Yes
Communities & Local Government,DCLG,15/03/2016,Current (non AEF) Grants to Local Authorities,Local Government & Public Services,DEVON & SOMERSET FIRE & RESCUE SERV,,Large,,424872976,5000328128,,Business Rates 2% Inflation Cap,EX3 0NW,"17,644.00",Yes
Communities & Local Government,DCLG,15/03/2016,Current (non AEF) Grants to Local Authorities,Local Government & Public Services,DEVON & SOMERSET FIRE & RESCUE SERV,,Large,,424872976,5000328130,,Small Business Rates Relief on Second Properties,EX3 0NW,262,Yes
Communities & Local Government,DCLG,15/03/2016,Current (non AEF) Grants to Local Authorities,Local Government & Public Services,DEVON & SOMERSET FIRE & RESCUE SERV,,Large,,424872976,5000328134,,Retail Relief,EX3 0NW,"8,011.00",Yes
Communities & Local Government,DCLG,15/03/2016,Current (non AEF) Grants to Local Authorities,Local Government & Public Services,DEVON COUNTY CNCL,,,,213754018,5000327330,,Business Rates 2% Inflation Cap,EX2 4QJ,"113,382.00",Yes
Communities & Local Government,DCLG,15/03/2016,Current (non AEF) Grants to Local Authorities,Local Government & Public Services,DEVON COUNTY CNCL,,,,213754018,5000327332,,Empty New Build Relief,EX2 4QJ,432,Yes
Communities & Local Government,DCLG,15/03/2016,Current (non AEF) Grants to Local Authorities,Local Government & Public Services,DEVON COUNTY CNCL,,,,213754018,5000327334,,Reoccupation Relief,EX2 4QJ,513,Yes
Communities & Local Government,DCLG,15/03/2016,Current (non AEF) Grants to Local Authorities,Local Government & Public Services,DEVON COUNTY CNCL,,,,213754018,5000327336,,Retail Relief,EX2 4QJ,"41,625.00",Yes
Communities & Local Government,DCLG,15/03/2016,Current (non AEF) Grants to Local Authorities,Local Government & Public Services,DEVON COUNTY CNCL,,,,213754018,5000327338,,Small Business Rates Relief on Second Properties,EX2 4QJ,505,Yes
Communities & Local Government,DCLG,15/03/2016,Current (non AEF) Grants to Local Authorities,Local Government & Public Services,DEVON COUNTY CNCL,,,,213754018,5000327340,,Doubling of Small Business Rates Relief,EX2 4QJ,"96,343.00",Yes
Communities & Local Government,DCLG,15/03/2016,Current (non AEF) Grants to Local Authorities,Local Government & Public Services,DONCASTER MBC,,,,,5000327342,,Reoccupation Relief,DN1 3QA,"7,095.00",Yes
Communities & Local Government,DCLG,15/03/2016,Current (non AEF) Grants to Local Authorities,Local Government & Public Services,DONCASTER MBC,,,,,5000327344,,Retail Relief,DN1 3QA,"43,071.00",Yes
Communities & Local Government,DCLG,15/03/2016,Current (non AEF) Grants to Local Authorities,Local Government & Public Services,DONCASTER MBC,,,,,5000327346,,Small Business Rates Relief on Second Properties,DN1 3QA,422,Yes
Communities & Local Government,DCLG,15/03/2016,Current (non AEF) Grants to Local Authorities,Local Government & Public Services,DONCASTER MBC,,,,,5000327348,,Business Rates 2% Inflation Cap,DN1 3QA,"88,705.00",Yes
Communities & Local Government,DCLG,15/03/2016,Current (non AEF) Grants to Local Authorities,Local Government & Public Services,DONCASTER MBC,,,,,5000327350,,Doubling of Small Business Rates Relief,DN1 3QA,"123,790.00",Yes
Communities & Local Government,DCLG,15/03/2016,Current (non AEF) Grants to Local Authorities,Local Government & Public Services,DORSET COUNTY CNCL,,,,225431279,5000327352,,Doubling of Small Business Rates Relief,DT1 1XJ,"46,179.00",Yes
Communities & Local Government,DCLG,15/03/2016,Current (non AEF) Grants to Local Authorities,Local Government & Public Services,DORSET COUNTY CNCL,,,,225431279,5000327356,,Retail Relief,DT1 1XJ,"24,758.00",Yes
Communities & Local Government,DCLG,15/03/2016,Current (non AEF) Grants to Local Authorities,Local Government & Public Services,DORSET COUNTY CNCL,,,,225431279,5000327360,,Business Rates 2% Inflation Cap,DT1 1XJ,"43,524.00",Yes
Communities & Local Government,DCLG,15/03/2016,Current (non AEF) Grants to Local Authorities,Local Government & Public Services,DORSET COUNTY CNCL,,,,225431279,5000327362,,Empty New Build Relief,DT1 1XJ,675,Yes
Communities & Local Government,DCLG,15/03/2016,Current (non AEF) Grants to Local Authorities,Local Government & Public Services,DORSET FIRE AUTHORITY,,Large,,,5000328207,,Doubling of Small Business Rates Relief,DT1 1FB,"8,311.00",Yes
Communities & Local Government,DCLG,15/03/2016,Current (non AEF) Grants to Local Authorities,Local Government & Public Services,DORSET FIRE AUTHORITY,,Large,,,5000328211,,Business Rates 2% Inflation Cap,DT1 1FB,"6,186.00",Yes
Communities & Local Government,DCLG,15/03/2016,Current (non AEF) Grants to Local Authorities,Local Government & Public Services,DORSET FIRE AUTHORITY,,Large,,,5000328217,,Retail Relief,DT1 1FB,"4,509.00",Yes
Communities & Local Government,DCLG,15/03/2016,Current (non AEF) Grants to Local Authorities,Local Government & Public Services,DOVER DC,,,,,5000326629,,Business Rates 2% Inflation Cap,CT16 3PD,"5,375.00",Yes
Communities & Local Government,DCLG,15/03/2016,Current (non AEF) Grants to Local Authorities,Local Government & Public Services,DOVER DC,,,,,5000326637,,Doubling of Small Business Rates Relief,CT16 3PD,"39,802.00",Yes
Communities & Local Government,DCLG,15/03/2016,Current (non AEF) Grants to Local Authorities,Local Government & Public Services,DOVER DC,,,,,5000326647,,Retail Relief,CT16 3PD,"23,675.00",Yes
Communities & Local Government,DCLG,15/03/2016,Current (non AEF) Grants to Local Authorities,Local Government & Public Services,DUDLEY MBC,,,,,5000327364,,Retail Relief,DY1 1HF,"68,355.00",Yes
Communities & Local Government,DCLG,15/03/2016,Current (non AEF) Grants to Local Authorities,Local Government & Public Services,DUDLEY MBC,,,,,5000327366,,Small Business Rates Relief on Second Properties,DY1 1HF,801,Yes
Communities & Local Government,DCLG,15/03/2016,Current (non AEF) Grants to Local Authorities,Local Government & Public Services,DUDLEY MBC,,,,,5000327368,,Business Rates 2% Inflation Cap,DY1 1HF,"73,248.00",Yes
Communities & Local Government,DCLG,15/03/2016,Current (non AEF) Grants to Local Authorities,Local Government & Public Services,DUDLEY MBC,,,,,5000327370,,Empty New Build Relief,DY1 1HF,"4,143.00",Yes
Communities & Local Government,DCLG,15/03/2016,Current (non AEF) Grants to Local Authorities,Local Government & Public Services,DUDLEY MBC,,,,,5000327372,,Doubling of Small Business Rates Relief,DY1 1HF,"144,612.00",Yes
Communities & Local Government,DCLG,15/03/2016,Current (non AEF) Grants to Local Authorities,Local Government & Public Services,DUDLEY MBC,,,,,5000327374,,Reoccupation Relief,DY1 1HF,"10,358.00",Yes
Communities & Local Government,DCLG,15/03/2016,Current (non AEF) Grants to Local Authorities,Local Government & Public Services,DURHAM COUNTY COUNCIL,,,,224004882,5000326071,,Empty New Build Relief,DH1 5UE,"7,429.00",Yes
Communities & Local Government,DCLG,15/03/2016,Current (non AEF) Grants to Local Authorities,Local Government & Public Services,DURHAM COUNTY COUNCIL,,,,224004882,5000326079,,Business Rates 2% Inflation Cap,DH1 5UE,"140,133.00",Yes
Communities & Local Government,DCLG,15/03/2016,Current (non AEF) Grants to Local Authorities,Local Government & Public Services,DURHAM COUNTY COUNCIL,,,,224004882,5000326082,,Retail Relief,DH1 5UE,"68,501.00",Yes
Communities & Local Government,DCLG,15/03/2016,Current (non AEF) Grants to Local Authorities,Local Government & Public Services,DURHAM COUNTY COUNCIL,,,,224004882,5000326087,,Small Business Rates Relief on Second Properties,DH1 5UE,383,Yes
Communities & Local Government,DCLG,15/03/2016,Current (non AEF) Grants to Local Authorities,Local Government & Public Services,DURHAM COUNTY COUNCIL,,,,224004882,5000326092,,Doubling of Small Business Rates Relief,DH1 5UE,"199,855.00",Yes
Communities & Local Government,DCLG,15/03/2016,Current (non AEF) Grants to Local Authorities,Local Government & Public Services,EALING LB,,,,,5000327376,,Reoccupation Relief,W5 2HL,"1,483.00",Yes
Communities & Local Government,DCLG,15/03/2016,Current (non AEF) Grants to Local Authorities,Local Government & Public Services,EALING LB,,,,,5000327378,,Retail Relief,W5 2HL,"58,617.00",Yes
Communities & Local Government,DCLG,15/03/2016,Current (non AEF) Grants to Local Authorities,Local Government & Public Services,EALING LB,,,,,5000327380,,Small Business Rates Relief on Second Properties,W5 2HL,396,Yes
Communities & Local Government,DCLG,15/03/2016,Current (non AEF) Grants to Local Authorities,Local Government & Public Services,EALING LB,,,,,5000327382,,Business Rates 2% Inflation Cap,W5 2HL,"83,691.00",Yes
Communities & Local Government,DCLG,15/03/2016,Current (non AEF) Grants to Local Authorities,Local Government & Public Services,EALING LB,,,,,5000327384,,Empty New Build Relief,W5 2HL,"5,768.00",Yes
Communities & Local Government,DCLG,15/03/2016,Current (non AEF) Grants to Local Authorities,Local Government & Public Services,EALING LB,,,,,5000327386,,Doubling of Small Business Rates Relief,W5 2HL,"58,097.00",Yes
Communities & Local Government,DCLG,15/03/2016,Current (non AEF) Grants to Local Authorities,Local Government & Public Services,EAST CAMBRIDGESHIRE DC,,,,236472023,5000326652,,Business Rates 2% Inflation Cap,CB7 4PL,"3,255.00",Yes
Communities & Local Government,DCLG,15/03/2016,Current (non AEF) Grants to Local Authorities,Local Government & Public Services,EAST CAMBRIDGESHIRE DC,,,,236472023,5000326655,,Retail Relief,CB7 4PL,"11,983.00",Yes
Communities & Local Government,DCLG,15/03/2016,Current (non AEF) Grants to Local Authorities,Local Government & Public Services,EAST CAMBRIDGESHIRE DC,,,,236472023,5000326660,,Small Business Rates Relief on Second Properties,CB7 4PL,361,Yes
Communities & Local Government,DCLG,15/03/2016,Current (non AEF) Grants to Local Authorities,Local Government & Public Services,EAST CAMBRIDGESHIRE DC,,,,236472023,5000326665,,Doubling of Small Business Rates Relief,CB7 4PL,"25,913.00",Yes
Communities & Local Government,DCLG,15/03/2016,Current (non AEF) Grants to Local Authorities,Local Government & Public Services,EAST DEVON DC,,,,,5000326669,,Retail Relief,EX10 8HL,"30,245.00",Yes
Communities & Local Government,DCLG,15/03/2016,Current (non AEF) Grants to Local Authorities,Local Government & Public Services,EAST DEVON DC,,,,,5000326673,,Business Rates 2% Inflation Cap,EX10 8HL,"3,366.00",Yes
Communities & Local Government,DCLG,15/03/2016,Current (non AEF) Grants to Local Authorities,Local Government & Public Services,EAST DEVON DC,,,,,5000326678,,Doubling of Small Business Rates Relief,EX10 8HL,"71,326.00",Yes
Communities & Local Government,DCLG,15/03/2016,Current (non AEF) Grants to Local Authorities,Local Government & Public Services,EAST DEVON DC,,,,,5000326687,,Small Business Rates Relief on Second Properties,EX10 8HL,306,Yes
Communities & Local Government,DCLG,15/03/2016,Current (non AEF) Grants to Local Authorities,Local Government & Public Services,EAST DORSET DC,,,,228470456,5000327388,,Retail Relief,BH21 4HN,"15,400.00",Yes
Communities & Local Government,DCLG,15/03/2016,Current (non AEF) Grants to Local Authorities,Local Government & Public Services,EAST DORSET DC,,,,228470456,5000327390,,Business Rates 2% Inflation Cap,BH21 4HN,"1,396.00",Yes
Communities & Local Government,DCLG,15/03/2016,Current (non AEF) Grants to Local Authorities,Local Government & Public Services,EAST DORSET DC,,,,228470456,5000327392,,Doubling of Small Business Rates Relief,BH21 4HN,"34,145.00",Yes
Communities & Local Government,DCLG,15/03/2016,Current (non AEF) Grants to Local Authorities,Local Government & Public Services,EAST HAMPSHIRE DC,,,,,5000326692,,Doubling of Small Business Rates Relief,GU31 4EX,"42,468.00",Yes
Communities & Local Government,DCLG,15/03/2016,Current (non AEF) Grants to Local Authorities,Local Government & Public Services,EAST HAMPSHIRE DC,,,,,5000326697,,Reoccupation Relief,GU31 4EX,526,Yes
Communities & Local Government,DCLG,15/03/2016,Current (non AEF) Grants to Local Authorities,Local Government & Public Services,EAST HAMPSHIRE DC,,,,,5000326701,,Empty New Build Relief,GU31 4EX,338,Yes
Communities & Local Government,DCLG,15/03/2016,Current (non AEF) Grants to Local Authorities,Local Government & Public Services,EAST HAMPSHIRE DC,,,,,5000326705,,Retail Relief,GU31 4EX,"24,961.00",Yes
Communities & Local Government,DCLG,15/03/2016,Current (non AEF) Grants to Local Authorities,Local Government & Public Services,EAST HAMPSHIRE DC,,,,,5000326710,,Business Rates 2% Inflation Cap,GU31 4EX,"2,148.00",Yes
Communities & Local Government,DCLG,15/03/2016,Current (non AEF) Grants to Local Authorities,Local Government & Public Services,EAST HAMPSHIRE DC,,,,,5000326714,,Small Business Rates Relief on Second Properties,GU31 4EX,676,Yes
Communities & Local Government,DCLG,15/03/2016,Current (non AEF) Grants to Local Authorities,Local Government & Public Services,EAST HERTFORDSHIRE DC,,,,236176954,5000326717,,Business Rates 2% Inflation Cap,SG13 8EQ,"2,993.00",Yes
Communities & Local Government,DCLG,15/03/2016,Current (non AEF) Grants to Local Authorities,Local Government & Public Services,EAST HERTFORDSHIRE DC,,,,236176954,5000326721,,Doubling of Small Business Rates Relief,SG13 8EQ,"43,436.00",Yes
Communities & Local Government,DCLG,15/03/2016,Current (non AEF) Grants to Local Authorities,Local Government & Public Services,EAST HERTFORDSHIRE DC,,,,236176954,5000326723,,Reoccupation Relief,SG13 8EQ,676,Yes
Communities & Local Government,DCLG,15/03/2016,Current (non AEF) Grants to Local Authorities,Local Government & Public Services,EAST HERTFORDSHIRE DC,,,,236176954,5000326727,,Empty New Build Relief,SG13 8EQ,"1,691.00",Yes
Communities & Local Government,DCLG,15/03/2016,Current (non AEF) Grants to Local Authorities,Local Government & Public Services,EAST HERTFORDSHIRE DC,,,,236176954,5000326729,,Retail Relief,SG13 8EQ,"19,548.00",Yes
Communities & Local Government,DCLG,15/03/2016,Current (non AEF) Grants to Local Authorities,Local Government & Public Services,EAST LINDSEY DC,,,,,5000326733,,Doubling of Small Business Rates Relief,LN11 8UP,"78,846.00",Yes
Communities & Local Government,DCLG,15/03/2016,Current (non AEF) Grants to Local Authorities,Local Government & Public Services,EAST LINDSEY DC,,,,,5000326737,,Retail Relief,LN11 8UP,"30,743.00",Yes
Communities & Local Government,DCLG,15/03/2016,Current (non AEF) Grants to Local Authorities,Local Government & Public Services,EAST LINDSEY DC,,,,,5000326740,,Business Rates 2% Inflation Cap,LN11 8UP,"7,332.00",Yes
Communities & Local Government,DCLG,15/03/2016,Current (non AEF) Grants to Local Authorities,Local Government & Public Services,EAST NORTHAMPTONSHIRE COUNCIL,,,,227475290,5000326743,,Doubling of Small Business Rates Relief,NN14 4LZ,"30,488.00",Yes
Communities & Local Government,DCLG,15/03/2016,Current (non AEF) Grants to Local Authorities,Local Government & Public Services,EAST NORTHAMPTONSHIRE COUNCIL,,,,227475290,5000326749,,Retail Relief,NN14 4LZ,"11,415.00",Yes
Communities & Local Government,DCLG,15/03/2016,Current (non AEF) Grants to Local Authorities,Local Government & Public Services,EAST NORTHAMPTONSHIRE COUNCIL,,,,227475290,5000326753,,Business Rates 2% Inflation Cap,NN14 4LZ,"4,260.00",Yes
Communities & Local Government,DCLG,15/03/2016,Current (non AEF) Grants to Local Authorities,Local Government & Public Services,EAST RIDING OF YORKS (HSG),,,,423159987,5000326759,,Doubling of Small Business Rates Relief,HU17 9BA,"157,321.00",Yes
Communities & Local Government,DCLG,15/03/2016,Current (non AEF) Grants to Local Authorities,Local Government & Public Services,EAST RIDING OF YORKS (HSG),,,,423159987,5000326763,,Retail Relief,HU17 9BA,"81,340.00",Yes
Communities & Local Government,DCLG,15/03/2016,Current (non AEF) Grants to Local Authorities,Local Government & Public Services,EAST RIDING OF YORKS (HSG),,,,423159987,5000326768,,Reoccupation Relief,HU17 9BA,583,Yes
Communities & Local Government,DCLG,15/03/2016,Current (non AEF) Grants to Local Authorities,Local Government & Public Services,EAST RIDING OF YORKS (HSG),,,,423159987,5000326771,,Business Rates 2% Inflation Cap,HU17 9BA,"68,416.00",Yes
Communities & Local Government,DCLG,15/03/2016,Current (non AEF) Grants to Local Authorities,Local Government & Public Services,EAST STAFFORDSHIRE BC,,,,226778033,5000326774,,Business Rates 2% Inflation Cap,DE14 2EB,"3,664.00",Yes
Communities & Local Government,DCLG,15/03/2016,Current (non AEF) Grants to Local Authorities,Local Government & Public Services,EAST STAFFORDSHIRE BC,,,,226778033,5000326776,,Doubling of Small Business Rates Relief,DE14 2EB,"42,591.00",Yes
Communities & Local Government,DCLG,15/03/2016,Current (non AEF) Grants to Local Authorities,Local Government & Public Services,EAST STAFFORDSHIRE BC,,,,226778033,5000326782,,Retail Relief,DE14 2EB,"15,033.00",Yes
Communities & Local Government,DCLG,15/03/2016,Current (non AEF) Grants to Local Authorities,Local Government & Public Services,EAST SUSSEX COUNTY CNCL,,,,,5000327396,,Business Rates 2% Inflation Cap,BN7 1SF,"82,920.00",Yes
Communities & Local Government,DCLG,15/03/2016,Current (non AEF) Grants to Local Authorities,Local Government & Public Services,EAST SUSSEX COUNTY CNCL,,,,,5000327397,,Empty New Build Relief,BN7 1SF,548,Yes
Communities & Local Government,DCLG,15/03/2016,Current (non AEF) Grants to Local Authorities,Local Government & Public Services,EAST SUSSEX COUNTY CNCL,,,,,5000327401,,Retail Relief,BN7 1SF,"22,777.00",Yes
Communities & Local Government,DCLG,15/03/2016,Current (non AEF) Grants to Local Authorities,Local Government & Public Services,EAST SUSSEX COUNTY CNCL,,,,,5000327405,,Doubling of Small Business Rates Relief,BN7 1SF,"54,119.00",Yes
Communities & Local Government,DCLG,15/03/2016,Current (non AEF) Grants to Local Authorities,Local Government & Public Services,EAST SUSSEX FIRE AUTHORITY,,Large,,,5000328256,,Retail Relief,BN21 1EU,"5,525.00",Yes
Communities & Local Government,DCLG,15/03/2016,Current (non AEF) Grants to Local Authorities,Local Government & Public Services,EAST SUSSEX FIRE AUTHORITY,,Large,,,5000328260,,Doubling of Small Business Rates Relief,BN21 1EU,"8,679.00",Yes
Communities & Local Government,DCLG,15/03/2016,Current (non AEF) Grants to Local Authorities,Local Government & Public Services,EAST SUSSEX FIRE AUTHORITY,,Large,,,5000328264,,Business Rates 2% Inflation Cap,BN21 1EU,"8,586.00",Yes
Communities & Local Government,DCLG,15/03/2016,Current (non AEF) Grants to Local Authorities,Local Government & Public Services,EASTBOURNE BC,,,,229896428,5000327407,,Retail Relief,BN21 4TW,"11,906.00",Yes
Communities & Local Government,DCLG,15/03/2016,Current (non AEF) Grants to Local Authorities,Local Government & Public Services,EASTBOURNE BC,,,,229896428,5000327409,,Doubling of Small Business Rates Relief,BN21 4TW,"34,107.00",Yes
Communities & Local Government,DCLG,15/03/2016,Current (non AEF) Grants to Local Authorities,Local Government & Public Services,EASTBOURNE BC,,,,229896428,5000327411,,Business Rates 2% Inflation Cap,BN21 4TW,"4,520.00",Yes
Communities & Local Government,DCLG,15/03/2016,Current (non AEF) Grants to Local Authorities,Local Government & Public Services,EASTLEIGH BOROUGH COUNCIL,,,,232669911,5000327413,,Retail Relief,SO5 9YN,"18,602.00",Yes
Communities & Local Government,DCLG,15/03/2016,Current (non AEF) Grants to Local Authorities,Local Government & Public Services,EASTLEIGH BOROUGH COUNCIL,,,,232669911,5000327415,,Business Rates 2% Inflation Cap,SO5 9YN,"2,949.00",Yes
Communities & Local Government,DCLG,15/03/2016,Current (non AEF) Grants to Local Authorities,Local Government & Public Services,EASTLEIGH BOROUGH COUNCIL,,,,232669911,5000327417,,Doubling of Small Business Rates Relief,SO5 9YN,"28,411.00",Yes
Communities & Local Government,DCLG,15/03/2016,Current (non AEF) Grants to Local Authorities,Local Government & Public Services,EDEN DC (HSG),,,,,5000326787,,Business Rates 2% Inflation Cap,CA11 7QF,"2,515.00",Yes
Communities & Local Government,DCLG,15/03/2016,Current (non AEF) Grants to Local Authorities,Local Government & Public Services,EDEN DC (HSG),,,,,5000326790,,Doubling of Small Business Rates Relief,CA11 7QF,"36,599.00",Yes
Communities & Local Government,DCLG,15/03/2016,Current (non AEF) Grants to Local Authorities,Local Government & Public Services,EDEN DC (HSG),,,,,5000326793,,Retail Relief,CA11 7QF,"11,071.00",Yes
Communities & Local Government,DCLG,15/03/2016,Current (non AEF) Grants to Local Authorities,Local Government & Public Services,ELMBRIDGE BC (HSG),,,,,5000326795,,Business Rates 2% Inflation Cap,KT10 9SD,"3,351.00",Yes
Communities & Local Government,DCLG,15/03/2016,Current (non AEF) Grants to Local Authorities,Local Government & Public Services,ELMBRIDGE BC (HSG),,,,,5000326798,,Empty New Build Relief,KT10 9SD,"3,235.00",Yes
Communities & Local Government,DCLG,15/03/2016,Current (non AEF) Grants to Local Authorities,Local Government & Public Services,ELMBRIDGE BC (HSG),,,,,5000326800,,Doubling of Small Business Rates Relief,KT10 9SD,"30,949.00",Yes
Communities & Local Government,DCLG,15/03/2016,Current (non AEF) Grants to Local Authorities,Local Government & Public Services,ELMBRIDGE BC (HSG),,,,,5000326805,,Retail Relief,KT10 9SD,"32,193.00",Yes
Communities & Local Government,DCLG,15/03/2016,Current (non AEF) Grants to Local Authorities,Local Government & Public Services,ENFIELD LB,,,,,5000327419,,Retail Relief,EN1 3XF,"78,383.00",Yes
Communities & Local Government,DCLG,15/03/2016,Current (non AEF) Grants to Local Authorities,Local Government & Public Services,ENFIELD LB,,,,,5000327421,,Business Rates 2% Inflation Cap,EN1 3XF,"81,183.00",Yes
Communities & Local Government,DCLG,15/03/2016,Current (non AEF) Grants to Local Authorities,Local Government & Public Services,ENFIELD LB,,,,,5000327423,,Doubling of Small Business Rates Relief,EN1 3XF,"49,447.00",Yes
Communities & Local Government,DCLG,15/03/2016,Current (non AEF) Grants to Local Authorities,Local Government & Public Services,EPPING FOREST DC,,,,775876360,5000327425,,Business Rates 2% Inflation Cap,CM16 4BZ,"4,394.00",Yes
Communities & Local Government,DCLG,15/03/2016,Current (non AEF) Grants to Local Authorities,Local Government & Public Services,EPPING FOREST DC,,,,775876360,5000327427,,Empty New Build Relief,CM16 4BZ,"3,808.00",Yes
Communities & Local Government,DCLG,15/03/2016,Current (non AEF) Grants to Local Authorities,Local Government & Public Services,EPPING FOREST DC,,,,775876360,5000327429,,Reoccupation Relief,CM16 4BZ,785,Yes
Communities & Local Government,DCLG,15/03/2016,Current (non AEF) Grants to Local Authorities,Local Government & Public Services,EPPING FOREST DC,,,,775876360,5000327431,,Retail Relief,CM16 4BZ,"15,851.00",Yes
Communities & Local Government,DCLG,15/03/2016,Current (non AEF) Grants to Local Authorities,Local Government & Public Services,EPPING FOREST DC,,,,775876360,5000327435,,Doubling of Small Business Rates Relief,CM16 4BZ,"41,485.00",Yes
Communities & Local Government,DCLG,15/03/2016,Current (non AEF) Grants to Local Authorities,Local Government & Public Services,EPSOM & EWELL BC,,,,225423094,5000327437,,Business Rates 2% Inflation Cap,KT18 5BY,"1,277.00",Yes
Communities & Local Government,DCLG,15/03/2016,Current (non AEF) Grants to Local Authorities,Local Government & Public Services,EPSOM & EWELL BC,,,,225423094,5000327439,,Retail Relief,KT18 5BY,"16,370.00",Yes
Communities & Local Government,DCLG,15/03/2016,Current (non AEF) Grants to Local Authorities,Local Government & Public Services,EPSOM & EWELL BC,,,,225423094,5000327441,,Doubling of Small Business Rates Relief,KT18 5BY,"17,724.00",Yes
Communities & Local Government,DCLG,15/03/2016,Current (non AEF) Grants to Local Authorities,Local Government & Public Services,EPSOM & EWELL BC,,,,225423094,5000327443,,Reoccupation Relief,KT18 5BY,348,Yes
Communities & Local Government,DCLG,15/03/2016,Current (non AEF) Grants to Local Authorities,Local Government & Public Services,EREWASH BC,,,,211209762,5000327445,,Retail Relief,DE7 5RP,"6,171.00",Yes
Communities & Local Government,DCLG,15/03/2016,Current (non AEF) Grants to Local Authorities,Local Government & Public Services,EREWASH BC,,,,211209762,5000327447,,Business Rates 2% Inflation Cap,DE7 5RP,"4,645.00",Yes
Communities & Local Government,DCLG,15/03/2016,Current (non AEF) Grants to Local Authorities,Local Government & Public Services,EREWASH BC,,,,211209762,5000327449,,Doubling of Small Business Rates Relief,DE7 5RP,"42,199.00",Yes
Communities & Local Government,DCLG,15/03/2016,Current (non AEF) Grants to Local Authorities,Local Government & Public Services,ESSEX COUNTY CNCL,,,,233572986,5000327453,,Doubling of Small Business Rates Relief,CM1 1JZ,"102,933.00",Yes
Communities & Local Government,DCLG,15/03/2016,Current (non AEF) Grants to Local Authorities,Local Government & Public Services,ESSEX COUNTY CNCL,,,,233572986,5000327455,,Reoccupation Relief,CM1 1JZ,578,Yes
Communities & Local Government,DCLG,15/03/2016,Current (non AEF) Grants to Local Authorities,Local Government & Public Services,ESSEX COUNTY CNCL,,,,233572986,5000327457,,Business Rates 2% Inflation Cap,CM1 1JZ,"195,894.00",Yes
Communities & Local Government,DCLG,15/03/2016,Current (non AEF) Grants to Local Authorities,Local Government & Public Services,ESSEX COUNTY CNCL,,,,233572986,5000327459,,Retail Relief,CM1 1JZ,"49,393.00",Yes
Communities & Local Government,DCLG,15/03/2016,Current (non AEF) Grants to Local Authorities,Local Government & Public Services,ESSEX COUNTY CNCL,,,,233572986,5000327463,,Empty New Build Relief,CM1 1JZ,"1,642.00",Yes
Communities & Local Government,DCLG,15/03/2016,Current (non AEF) Grants to Local Authorities,Local Government & Public Services,ESSEX FIRE AUTHORITY,,Large,,424873099,5000328021,,Retail Relief,CM8 3HB,"6,559.00",Yes
Communities & Local Government,DCLG,15/03/2016,Current (non AEF) Grants to Local Authorities,Local Government & Public Services,ESSEX FIRE AUTHORITY,,Large,,424873099,5000328025,,Doubling of Small Business Rates Relief,CM8 3HB,"14,353.00",Yes
Communities & Local Government,DCLG,15/03/2016,Current (non AEF) Grants to Local Authorities,Local Government & Public Services,ESSEX FIRE AUTHORITY,,Large,,424873099,5000328027,,Business Rates 2% Inflation Cap,CM8 3HB,"18,334.00",Yes
Communities & Local Government,DCLG,15/03/2016,Current (non AEF) Grants to Local Authorities,Local Government & Public Services,ESSEX FIRE AUTHORITY,,Large,,424873099,5000328029,,Empty New Build Relief,CM8 3HB,302,Yes
Communities & Local Government,DCLG,15/03/2016,Current (non AEF) Grants to Local Authorities,Local Government & Public Services,EXETER CITY COUNCIL,,,,,5000327464,,Retail Relief,EX1 1JW,"35,124.00",Yes
Communities & Local Government,DCLG,15/03/2016,Current (non AEF) Grants to Local Authorities,Local Government & Public Services,EXETER CITY COUNCIL,,,,,5000327466,,Business Rates 2% Inflation Cap,EX1 1JW,"6,242.00",Yes
Communities & Local Government,DCLG,15/03/2016,Current (non AEF) Grants to Local Authorities,Local Government & Public Services,EXETER CITY COUNCIL,,,,,5000327468,,Doubling of Small Business Rates Relief,EX1 1JW,"35,532.00",Yes
Communities & Local Government,DCLG,15/03/2016,Current (non AEF) Grants to Local Authorities,Local Government & Public Services,EXETER CITY COUNCIL,,,,,5000327472,,Small Business Rates Relief on Second Properties,EX1 1JW,250,Yes
Communities & Local Government,DCLG,15/03/2016,Current (non AEF) Grants to Local Authorities,Local Government & Public Services,FAREHAM BC,,,,228474144,5000326810,,Empty New Build Relief,PO16 7PU,338,Yes
Communities & Local Government,DCLG,15/03/2016,Current (non AEF) Grants to Local Authorities,Local Government & Public Services,FAREHAM BC,,,,228474144,5000326813,,Reoccupation Relief,PO16 7PU,689,Yes
Communities & Local Government,DCLG,15/03/2016,Current (non AEF) Grants to Local Authorities,Local Government & Public Services,FAREHAM BC,,,,228474144,5000326815,,Retail Relief,PO16 7PU,"16,972.00",Yes
Communities & Local Government,DCLG,15/03/2016,Current (non AEF) Grants to Local Authorities,Local Government & Public Services,FAREHAM BC,,,,228474144,5000326818,,Business Rates 2% Inflation Cap,PO16 7PU,"2,798.00",Yes
Communities & Local Government,DCLG,15/03/2016,Current (non AEF) Grants to Local Authorities,Local Government & Public Services,FAREHAM BC,,,,228474144,5000326821,,Doubling of Small Business Rates Relief,PO16 7PU,"28,125.00",Yes
Communities & Local Government,DCLG,15/03/2016,Current (non AEF) Grants to Local Authorities,Local Government & Public Services,FENLAND DC,,,,227476348,5000326823,,Retail Relief,PE15 8NQ,"15,516.00",Yes
Communities & Local Government,DCLG,15/03/2016,Current (non AEF) Grants to Local Authorities,Local Government & Public Services,FENLAND DC,,,,227476348,5000326826,,Business Rates 2% Inflation Cap,PE15 8NQ,"4,179.00",Yes
Communities & Local Government,DCLG,15/03/2016,Current (non AEF) Grants to Local Authorities,Local Government & Public Services,FENLAND DC,,,,227476348,5000326828,,Doubling of Small Business Rates Relief,PE15 8NQ,"38,421.00",Yes
Communities & Local Government,DCLG,15/03/2016,Current (non AEF) Grants to Local Authorities,Local Government & Public Services,FOREST HEATH DISTRICT COUNCIL,,,,236678116,5000326834,,Business Rates 2% Inflation Cap,IP28 7EY,"2,247.00",Yes
Communities & Local Government,DCLG,15/03/2016,Current (non AEF) Grants to Local Authorities,Local Government & Public Services,FOREST HEATH DISTRICT COUNCIL,,,,236678116,5000326837,,Retail Relief,IP28 7EY,"11,843.00",Yes
Communities & Local Government,DCLG,15/03/2016,Current (non AEF) Grants to Local Authorities,Local Government & Public Services,FOREST HEATH DISTRICT COUNCIL,,,,236678116,5000326839,,Doubling of Small Business Rates Relief,IP28 7EY,"22,668.00",Yes
Communities & Local Government,DCLG,15/03/2016,Current (non AEF) Grants to Local Authorities,Local Government & Public Services,FOREST OF DEAN DC,,,,211278890,5000326844,,Business Rates 2% Inflation Cap,GL16 8HG,"3,179.00",Yes
Communities & Local Government,DCLG,15/03/2016,Current (non AEF) Grants to Local Authorities,Local Government & Public Services,FOREST OF DEAN DC,,,,211278890,5000326847,,Doubling of Small Business Rates Relief,GL16 8HG,"37,791.00",Yes
Communities & Local Government,DCLG,15/03/2016,Current (non AEF) Grants to Local Authorities,Local Government & Public Services,FOREST OF DEAN DC,,,,211278890,5000326849,,Reoccupation Relief,GL16 8HG,252,Yes
Communities & Local Government,DCLG,15/03/2016,Current (non AEF) Grants to Local Authorities,Local Government & Public Services,FOREST OF DEAN DC,,,,211278890,5000326852,,Retail Relief,GL16 8HG,"8,250.00",Yes
Communities & Local Government,DCLG,15/03/2016,Current (non AEF) Grants to Local Authorities,Local Government & Public Services,FOREST OF DEAN DC,,,,211278890,5000326855,,Small Business Rates Relief on Second Properties,GL16 8HG,316,Yes
Communities & Local Government,DCLG,15/03/2016,Current (non AEF) Grants to Local Authorities,Local Government & Public Services,FYLDE BC,,,,227479912,5000327474,,Business Rates 2% Inflation Cap,FY8 1LW,"1,852.00",Yes
Communities & Local Government,DCLG,15/03/2016,Current (non AEF) Grants to Local Authorities,Local Government & Public Services,FYLDE BC,,,,227479912,5000327476,,Doubling of Small Business Rates Relief,FY8 1LW,"34,920.00",Yes
Communities & Local Government,DCLG,15/03/2016,Current (non AEF) Grants to Local Authorities,Local Government & Public Services,FYLDE BC,,,,227479912,5000327478,,Empty New Build Relief,FY8 1LW,472,Yes
Communities & Local Government,DCLG,15/03/2016,Current (non AEF) Grants to Local Authorities,Local Government & Public Services,FYLDE BC,,,,227479912,5000327480,,Reoccupation Relief,FY8 1LW,546,Yes
Communities & Local Government,DCLG,15/03/2016,Current (non AEF) Grants to Local Authorities,Local Government & Public Services,FYLDE BC,,,,227479912,5000327482,,Retail Relief,FY8 1LW,"16,193.00",Yes
Communities & Local Government,DCLG,15/03/2016,Current (non AEF) Grants to Local Authorities,Local Government & Public Services,GATESHEAD COUNCIL,,,,216116041,5000327484,,Retail Relief,NE8 1HH,"31,845.00",Yes
Communities & Local Government,DCLG,15/03/2016,Current (non AEF) Grants to Local Authorities,Local Government & Public Services,GATESHEAD COUNCIL,,,,216116041,5000327486,,Business Rates 2% Inflation Cap,NE8 1HH,"67,617.00",Yes
Communities & Local Government,DCLG,15/03/2016,Current (non AEF) Grants to Local Authorities,Local Government & Public Services,GATESHEAD COUNCIL,,,,216116041,5000327488,,Doubling of Small Business Rates Relief,NE8 1HH,"79,593.00",Yes
Communities & Local Government,DCLG,15/03/2016,Current (non AEF) Grants to Local Authorities,Local Government & Public Services,GEDLING BC,,,,236180337,5000327492,,Retail Relief,NG5 6LU,"13,850.00",Yes
Communities & Local Government,DCLG,15/03/2016,Current (non AEF) Grants to Local Authorities,Local Government & Public Services,GEDLING BC,,,,236180337,5000327494,,Doubling of Small Business Rates Relief,NG5 6LU,"27,800.00",Yes
Communities & Local Government,DCLG,15/03/2016,Current (non AEF) Grants to Local Authorities,Local Government & Public Services,GEDLING BC,,,,236180337,5000327496,,Reoccupation Relief,NG5 6LU,"1,167.00",Yes
Communities & Local Government,DCLG,15/03/2016,Current (non AEF) Grants to Local Authorities,Local Government & Public Services,GEDLING BC,,,,236180337,5000327498,,Business Rates 2% Inflation Cap,NG5 6LU,"3,821.00",Yes
Communities & Local Government,DCLG,15/03/2016,Current (non AEF) Grants to Local Authorities,Local Government & Public Services,GLOUCESTER CITY CNCL,,,,230841392,5000327500,,Retail Relief,GL1 2EQ,"26,173.00",Yes
Communities & Local Government,DCLG,15/03/2016,Current (non AEF) Grants to Local Authorities,Local Government & Public Services,GLOUCESTER CITY CNCL,,,,230841392,5000327502,,Business Rates 2% Inflation Cap,GL1 2EQ,"6,074.00",Yes
Communities & Local Government,DCLG,15/03/2016,Current (non AEF) Grants to Local Authorities,Local Government & Public Services,GLOUCESTER CITY CNCL,,,,230841392,5000327504,,Doubling of Small Business Rates Relief,GL1 2EQ,"26,405.00",Yes
Communities & Local Government,DCLG,15/03/2016,Current (non AEF) Grants to Local Authorities,Local Government & Public Services,GLOUCESTERSHIRE COUNTY CNCL,,,,211272067,5000327512,,Business Rates 2% Inflation Cap,GL1 2TG,"84,513.00",Yes
Communities & Local Government,DCLG,15/03/2016,Current (non AEF) Grants to Local Authorities,Local Government & Public Services,GLOUCESTERSHIRE COUNTY CNCL,,,,211272067,5000327514,,Empty New Build Relief,GL1 2TG,321,Yes
Communities & Local Government,DCLG,15/03/2016,Current (non AEF) Grants to Local Authorities,Local Government & Public Services,GLOUCESTERSHIRE COUNTY CNCL,,,,211272067,5000327516,,Retail Relief,GL1 2TG,"27,740.00",Yes
Communities & Local Government,DCLG,15/03/2016,Current (non AEF) Grants to Local Authorities,Local Government & Public Services,GLOUCESTERSHIRE COUNTY CNCL,,,,211272067,5000327517,,Doubling of Small Business Rates Relief,GL1 2TG,"55,527.00",Yes
Communities & Local Government,DCLG,15/03/2016,Current (non AEF) Grants to Local Authorities,Local Government & Public Services,GOSPORT BOROUGH COUNCIL,,,,239825078,5000327519,,Empty New Build Relief,PO12 1ED,"1,268.00",Yes
Communities & Local Government,DCLG,15/03/2016,Current (non AEF) Grants to Local Authorities,Local Government & Public Services,GOSPORT BOROUGH COUNCIL,,,,239825078,5000327521,,Reoccupation Relief,PO12 1ED,676,Yes
Communities & Local Government,DCLG,15/03/2016,Current (non AEF) Grants to Local Authorities,Local Government & Public Services,GOSPORT BOROUGH COUNCIL,,,,239825078,5000327524,,Retail Relief,PO12 1ED,"8,912.00",Yes
Communities & Local Government,DCLG,15/03/2016,Current (non AEF) Grants to Local Authorities,Local Government & Public Services,GOSPORT BOROUGH COUNCIL,,,,239825078,5000327527,,Business Rates 2% Inflation Cap,PO12 1ED,"3,078.00",Yes
Communities & Local Government,DCLG,15/03/2016,Current (non AEF) Grants to Local Authorities,Local Government & Public Services,GOSPORT BOROUGH COUNCIL,,,,239825078,5000327529,,Doubling of Small Business Rates Relief,PO12 1ED,"21,043.00",Yes
Communities & Local Government,DCLG,15/03/2016,Current (non AEF) Grants to Local Authorities,Local Government & Public Services,GRAVESHAM BC,,,,236178612,5000327531,,Reoccupation Relief,DA12 1AU,"1,132.00",Yes
Communities & Local Government,DCLG,15/03/2016,Current (non AEF) Grants to Local Authorities,Local Government & Public Services,GRAVESHAM BC,,,,236178612,5000327533,,Business Rates 2% Inflation Cap,DA12 1AU,"3,611.00",Yes
Communities & Local Government,DCLG,15/03/2016,Current (non AEF) Grants to Local Authorities,Local Government & Public Services,GRAVESHAM BC,,,,236178612,5000327535,,Doubling of Small Business Rates Relief,DA12 1AU,"27,066.00",Yes
Communities & Local Government,DCLG,15/03/2016,Current (non AEF) Grants to Local Authorities,Local Government & Public Services,GRAVESHAM BC,,,,236178612,5000327537,,Retail Relief,DA12 1AU,"17,949.00",Yes
Communities & Local Government,DCLG,15/03/2016,Current (non AEF) Grants to Local Authorities,Local Government & Public Services,GREAT YARMOUTH BC,,,,292697372,5000327539,,Retail Relief,NR30 2QG,"4,769.00",Yes
Communities & Local Government,DCLG,15/03/2016,Current (non AEF) Grants to Local Authorities,Local Government & Public Services,GREAT YARMOUTH BC,,,,292697372,5000327541,,Business Rates 2% Inflation Cap,NR30 2QG,"3,769.00",Yes
Communities & Local Government,DCLG,15/03/2016,Current (non AEF) Grants to Local Authorities,Local Government & Public Services,GREAT YARMOUTH BC,,,,292697372,5000327543,,Doubling of Small Business Rates Relief,NR30 2QG,"46,021.00",Yes
Communities & Local Government,DCLG,15/03/2016,Current (non AEF) Grants to Local Authorities,Local Government & Public Services,GREATER LONDON AUTHORITY,,,,,5000326096,,Doubling of Small Business Rates Relief,SE10 1AJ,"1,012,423.00",Yes
Communities & Local Government,DCLG,15/03/2016,Current (non AEF) Grants to Local Authorities,Local Government & Public Services,GREATER LONDON AUTHORITY,,,,,5000326100,,Retail Relief,SE10 1AJ,"987,828.00",Yes
Communities & Local Government,DCLG,15/03/2016,Current (non AEF) Grants to Local Authorities,Local Government & Public Services,GREATER LONDON AUTHORITY,,,,,5000326104,,Small Business Rates Relief on Second Properties,SE10 1AJ,"2,447.00",Yes
Communities & Local Government,DCLG,15/03/2016,Current (non AEF) Grants to Local Authorities,Local Government & Public Services,GREATER LONDON AUTHORITY,,,,,5000326109,,Reoccupation Relief,SE10 1AJ,"23,129.00",Yes
Communities & Local Government,DCLG,15/03/2016,Current (non AEF) Grants to Local Authorities,Local Government & Public Services,GREATER LONDON AUTHORITY,,,,,5000326113,,Business Rates 2% Inflation Cap,SE10 1AJ,"1,222,556.00",Yes
Communities & Local Government,DCLG,15/03/2016,Current (non AEF) Grants to Local Authorities,Local Government & Public Services,GREATER LONDON AUTHORITY,,,,,5000326117,,Empty New Build Relief,SE10 1AJ,"31,882.00",Yes
Communities & Local Government,DCLG,15/03/2016,Current (non AEF) Grants to Local Authorities,Local Government & Public Services,GREATER MANCHESTER FIRE (RSG),,,,,5000327916,,Business Rates 2% Inflation Cap,M2 8US,"35,594.00",Yes
Communities & Local Government,DCLG,15/03/2016,Current (non AEF) Grants to Local Authorities,Local Government & Public Services,GREATER MANCHESTER FIRE (RSG),,,,,5000327921,,Retail Relief,M2 8US,"10,619.00",Yes
Communities & Local Government,DCLG,15/03/2016,Current (non AEF) Grants to Local Authorities,Local Government & Public Services,GREATER MANCHESTER FIRE (RSG),,,,,5000327925,,Doubling of Small Business Rates Relief,M2 8US,"26,088.00",Yes
Communities & Local Government,DCLG,15/03/2016,Current (non AEF) Grants to Local Authorities,Local Government & Public Services,GREATER MANCHESTER FIRE (RSG),,,,,5000327927,,Reoccupation Relief,M2 8US,303,Yes
Communities & Local Government,DCLG,15/03/2016,Current (non AEF) Grants to Local Authorities,Local Government & Public Services,GREENWICH LB,,,,,5000327545,,Business Rates 2% Inflation Cap,SE18 6HQ,"94,713.00",Yes
Communities & Local Government,DCLG,15/03/2016,Current (non AEF) Grants to Local Authorities,Local Government & Public Services,GREENWICH LB,,,,,5000327547,,Doubling of Small Business Rates Relief,SE18 6HQ,"42,038.00",Yes
Communities & Local Government,DCLG,15/03/2016,Current (non AEF) Grants to Local Authorities,Local Government & Public Services,GREENWICH LB,,,,,5000327549,,Empty New Build Relief,SE18 6HQ,"1,649.00",Yes
Communities & Local Government,DCLG,15/03/2016,Current (non AEF) Grants to Local Authorities,Local Government & Public Services,GREENWICH LB,,,,,5000327551,,Reoccupation Relief,SE18 6HQ,"8,952.00",Yes
Communities & Local Government,DCLG,15/03/2016,Current (non AEF) Grants to Local Authorities,Local Government & Public Services,GREENWICH LB,,,,,5000327553,,Retail Relief,SE18 6HQ,"28,157.00",Yes
Communities & Local Government,DCLG,15/03/2016,Current (non AEF) Grants to Local Authorities,Local Government & Public Services,GUILDFORD BC,,,,236663720,5000326857,,Business Rates 2% Inflation Cap,GU2 5BB,"4,870.00",Yes
Communities & Local Government,DCLG,15/03/2016,Current (non AEF) Grants to Local Authorities,Local Government & Public Services,GUILDFORD BC,,,,236663720,5000326860,,Doubling of Small Business Rates Relief,GU2 5BB,"29,843.00",Yes
Communities & Local Government,DCLG,15/03/2016,Current (non AEF) Grants to Local Authorities,Local Government & Public Services,GUILDFORD BC,,,,236663720,5000326862,,Reoccupation Relief,GU2 5BB,"1,533.00",Yes
Communities & Local Government,DCLG,15/03/2016,Current (non AEF) Grants to Local Authorities,Local Government & Public Services,GUILDFORD BC,,,,236663720,5000326865,,Retail Relief,GU2 5BB,"16,307.00",Yes
Communities & Local Government,DCLG,15/03/2016,Current (non AEF) Grants to Local Authorities,Local Government & Public Services,GUILDFORD BC,,,,236663720,5000326868,,Small Business Rates Relief on Second Properties,GU2 5BB,603,Yes
Communities & Local Government,DCLG,15/03/2016,Current (non AEF) Grants to Local Authorities,Local Government & Public Services,HALTON BC (HSG),,,,,5000326871,,Business Rates 2% Inflation Cap,WA8 7QF,"40,541.00",Yes
Communities & Local Government,DCLG,15/03/2016,Current (non AEF) Grants to Local Authorities,Local Government & Public Services,HALTON BC (HSG),,,,,5000326873,,Doubling of Small Business Rates Relief,WA8 7QF,"39,038.00",Yes
Communities & Local Government,DCLG,15/03/2016,Current (non AEF) Grants to Local Authorities,Local Government & Public Services,HALTON BC (HSG),,,,,5000326876,,Retail Relief,WA8 7QF,"16,541.00",Yes
Communities & Local Government,DCLG,15/03/2016,Current (non AEF) Grants to Local Authorities,Local Government & Public Services,HAMBLETON DC (HSG),,,,503481319,5000326878,,Doubling of Small Business Rates Relief,DL6 2UU,"44,081.00",Yes
Communities & Local Government,DCLG,15/03/2016,Current (non AEF) Grants to Local Authorities,Local Government & Public Services,HAMBLETON DC (HSG),,,,503481319,5000326881,,Reoccupation Relief,DL6 2UU,676,Yes
Communities & Local Government,DCLG,15/03/2016,Current (non AEF) Grants to Local Authorities,Local Government & Public Services,HAMBLETON DC (HSG),,,,503481319,5000326884,,Empty New Build Relief,DL6 2UU,676,Yes
Communities & Local Government,DCLG,15/03/2016,Current (non AEF) Grants to Local Authorities,Local Government & Public Services,HAMBLETON DC (HSG),,,,503481319,5000326887,,Retail Relief,DL6 2UU,"16,911.00",Yes
Communities & Local Government,DCLG,15/03/2016,Current (non AEF) Grants to Local Authorities,Local Government & Public Services,HAMBLETON DC (HSG),,,,503481319,5000326889,,Business Rates 2% Inflation Cap,DL6 2UU,"2,333.00",Yes
Communities & Local Government,DCLG,15/03/2016,Current (non AEF) Grants to Local Authorities,Local Government & Public Services,HAMBLETON DC (HSG),,,,503481319,5000326892,,Small Business Rates Relief on Second Properties,DL6 2UU,565,Yes
Communities & Local Government,DCLG,15/03/2016,Current (non AEF) Grants to Local Authorities,Local Government & Public Services,HAMMERSMITH & FULHAM LB,,,,216929489,5000327561,,Doubling of Small Business Rates Relief,W6 9JU,"28,672.00",Yes
Communities & Local Government,DCLG,15/03/2016,Current (non AEF) Grants to Local Authorities,Local Government & Public Services,HAMMERSMITH & FULHAM LB,,,,216929489,5000327563,,Reoccupation Relief,W6 9JU,771,Yes
Communities & Local Government,DCLG,15/03/2016,Current (non AEF) Grants to Local Authorities,Local Government & Public Services,HAMMERSMITH & FULHAM LB,,,,216929489,5000327565,,Retail Relief,W6 9JU,"37,363.00",Yes
Communities & Local Government,DCLG,15/03/2016,Current (non AEF) Grants to Local Authorities,Local Government & Public Services,HAMMERSMITH & FULHAM LB,,,,216929489,5000327567,,Business Rates 2% Inflation Cap,W6 9JU,"64,998.00",Yes
Communities & Local Government,DCLG,15/03/2016,Current (non AEF) Grants to Local Authorities,Local Government & Public Services,HAMMERSMITH & FULHAM LB,,,,216929489,5000327569,,Empty New Build Relief,W6 9JU,"9,632.00",Yes
Communities & Local Government,DCLG,15/03/2016,Current (non AEF) Grants to Local Authorities,Local Government & Public Services,HAMPSHIRE COUNTY COUNCIL,,,,211325832,5000327571,,Small Business Rates Relief on Second Properties,SO23 8UB,355,Yes
Communities & Local Government,DCLG,15/03/2016,Current (non AEF) Grants to Local Authorities,Local Government & Public Services,HAMPSHIRE COUNTY COUNCIL,,,,211325832,5000327573,,Business Rates 2% Inflation Cap,SO23 8UB,"134,237.00",Yes
Communities & Local Government,DCLG,15/03/2016,Current (non AEF) Grants to Local Authorities,Local Government & Public Services,HAMPSHIRE COUNTY COUNCIL,,,,211325832,5000327575,,Doubling of Small Business Rates Relief,SO23 8UB,"84,515.00",Yes
Communities & Local Government,DCLG,15/03/2016,Current (non AEF) Grants to Local Authorities,Local Government & Public Services,HAMPSHIRE COUNTY COUNCIL,,,,211325832,5000327577,,Empty New Build Relief,SO23 8UB,590,Yes
Communities & Local Government,DCLG,15/03/2016,Current (non AEF) Grants to Local Authorities,Local Government & Public Services,HAMPSHIRE COUNTY COUNCIL,,,,211325832,5000327579,,Reoccupation Relief,SO23 8UB,"1,407.00",Yes
Communities & Local Government,DCLG,15/03/2016,Current (non AEF) Grants to Local Authorities,Local Government & Public Services,HAMPSHIRE COUNTY COUNCIL,,,,211325832,5000327581,,Retail Relief,SO23 8UB,"46,399.00",Yes
Communities & Local Government,DCLG,15/03/2016,Current (non AEF) Grants to Local Authorities,Local Government & Public Services,HAMPSHIRE FIRE & RESCUE AUTHORITY,,Large,,,5000328219,,Retail Relief,SO23 8UB,"6,875.00",Yes
Communities & Local Government,DCLG,15/03/2016,Current (non AEF) Grants to Local Authorities,Local Government & Public Services,HAMPSHIRE FIRE & RESCUE AUTHORITY,,Large,,,5000328223,,Doubling of Small Business Rates Relief,SO23 8UB,"12,326.00",Yes
Communities & Local Government,DCLG,15/03/2016,Current (non AEF) Grants to Local Authorities,Local Government & Public Services,HAMPSHIRE FIRE & RESCUE AUTHORITY,,Large,,,5000328227,,Business Rates 2% Inflation Cap,SO23 8UB,"16,162.00",Yes
Communities & Local Government,DCLG,15/03/2016,Current (non AEF) Grants to Local Authorities,Local Government & Public Services,HARBOROUGH DC (HSG),,,,212935774,5000326895,,Retail Relief,LE16 7AG,"11,743.00",Yes
Communities & Local Government,DCLG,15/03/2016,Current (non AEF) Grants to Local Authorities,Local Government & Public Services,HARBOROUGH DC (HSG),,,,212935774,5000326897,,Business Rates 2% Inflation Cap,LE16 7AG,"4,089.00",Yes
Communities & Local Government,DCLG,15/03/2016,Current (non AEF) Grants to Local Authorities,Local Government & Public Services,HARBOROUGH DC (HSG),,,,212935774,5000326900,,Doubling of Small Business Rates Relief,LE16 7AG,"29,400.00",Yes
Communities & Local Government,DCLG,15/03/2016,Current (non AEF) Grants to Local Authorities,Local Government & Public Services,HARBOROUGH DC (HSG),,,,212935774,5000326901,,Empty New Build Relief,LE16 7AG,"1,251.00",Yes
Communities & Local Government,DCLG,15/03/2016,Current (non AEF) Grants to Local Authorities,Local Government & Public Services,HARINGEY LB,,,,217471767,5000327583,,Business Rates 2% Inflation Cap,N22 4TR,"90,021.00",Yes
Communities & Local Government,DCLG,15/03/2016,Current (non AEF) Grants to Local Authorities,Local Government & Public Services,HARINGEY LB,,,,217471767,5000327585,,Doubling of Small Business Rates Relief,N22 4TR,"53,011.00",Yes
Communities & Local Government,DCLG,15/03/2016,Current (non AEF) Grants to Local Authorities,Local Government & Public Services,HARINGEY LB,,,,217471767,5000327587,,Empty New Build Relief,N22 4TR,"2,551.00",Yes
Communities & Local Government,DCLG,15/03/2016,Current (non AEF) Grants to Local Authorities,Local Government & Public Services,HARINGEY LB,,,,217471767,5000327589,,Retail Relief,N22 4TR,"77,459.00",Yes
Communities & Local Government,DCLG,15/03/2016,Current (non AEF) Grants to Local Authorities,Local Government & Public Services,HARLOW DISTRICT COUNCIL,,Large,,239999055,5000327591,,Business Rates 2% Inflation Cap,CM20 1WG,"2,907.00",Yes
Communities & Local Government,DCLG,15/03/2016,Current (non AEF) Grants to Local Authorities,Local Government & Public Services,HARLOW DISTRICT COUNCIL,,Large,,239999055,5000327593,,Retail Relief,CM20 1WG,"5,633.00",Yes
Communities & Local Government,DCLG,15/03/2016,Current (non AEF) Grants to Local Authorities,Local Government & Public Services,HARLOW DISTRICT COUNCIL,,Large,,239999055,5000327595,,Doubling of Small Business Rates Relief,CM20 1WG,"14,474.00",Yes
Communities & Local Government,DCLG,15/03/2016,Current (non AEF) Grants to Local Authorities,Local Government & Public Services,HARLOW DISTRICT COUNCIL,,Large,,239999055,5000327597,,Reoccupation Relief,CM20 1WG,421,Yes
Communities & Local Government,DCLG,15/03/2016,Current (non AEF) Grants to Local Authorities,Local Government & Public Services,HARROGATE BC,,,,236660031,5000326903,,Reoccupation Relief,HG1 2SG,"1,280.00",Yes
Communities & Local Government,DCLG,15/03/2016,Current (non AEF) Grants to Local Authorities,Local Government & Public Services,HARROGATE BC,,,,236660031,5000326906,,Small Business Rates Relief on Second Properties,HG1 2SG,338,Yes
Communities & Local Government,DCLG,15/03/2016,Current (non AEF) Grants to Local Authorities,Local Government & Public Services,HARROGATE BC,,,,236660031,5000326908,,Business Rates 2% Inflation Cap,HG1 2SG,"3,608.00",Yes
Communities & Local Government,DCLG,15/03/2016,Current (non AEF) Grants to Local Authorities,Local Government & Public Services,HARROGATE BC,,,,236660031,5000326911,,Doubling of Small Business Rates Relief,HG1 2SG,"81,325.00",Yes
Communities & Local Government,DCLG,15/03/2016,Current (non AEF) Grants to Local Authorities,Local Government & Public Services,HARROGATE BC,,,,236660031,5000326913,,Empty New Build Relief,HG1 2SG,"1,611.00",Yes
Communities & Local Government,DCLG,15/03/2016,Current (non AEF) Grants to Local Authorities,Local Government & Public Services,HARROGATE BC,,,,236660031,5000326916,,Retail Relief,HG1 2SG,"45,573.00",Yes
Communities & Local Government,DCLG,15/03/2016,Current (non AEF) Grants to Local Authorities,Local Government & Public Services,HARROW LB,,,,,5000327599,,Doubling of Small Business Rates Relief,HA1 2UZ,"40,269.00",Yes
Communities & Local Government,DCLG,15/03/2016,Current (non AEF) Grants to Local Authorities,Local Government & Public Services,HARROW LB,,,,,5000327601,,Reoccupation Relief,HA1 2UZ,"1,268.00",Yes
Communities & Local Government,DCLG,15/03/2016,Current (non AEF) Grants to Local Authorities,Local Government & Public Services,HARROW LB,,,,,5000327603,,Retail Relief,HA1 2UZ,"31,708.00",Yes
Communities & Local Government,DCLG,15/03/2016,Current (non AEF) Grants to Local Authorities,Local Government & Public Services,HARROW LB,,,,,5000327605,,Business Rates 2% Inflation Cap,HA1 2UZ,"42,380.00",Yes
Communities & Local Government,DCLG,15/03/2016,Current (non AEF) Grants to Local Authorities,Local Government & Public Services,HARROW LB,,,,,5000327607,,Empty New Build Relief,HA1 2UZ,"1,268.00",Yes
Communities & Local Government,DCLG,15/03/2016,Current (non AEF) Grants to Local Authorities,Local Government & Public Services,HART DC,,,,229723895,5000327609,,Doubling of Small Business Rates Relief,GU13 8AE,"17,952.00",Yes
Communities & Local Government,DCLG,15/03/2016,Current (non AEF) Grants to Local Authorities,Local Government & Public Services,HART DC,,,,229723895,5000327611,,Business Rates 2% Inflation Cap,GU13 8AE,"1,490.00",Yes
Communities & Local Government,DCLG,15/03/2016,Current (non AEF) Grants to Local Authorities,Local Government & Public Services,HART DC,,,,229723895,5000327615,,Retail Relief,GU13 8AE,"14,517.00",Yes
Communities & Local Government,DCLG,15/03/2016,Current (non AEF) Grants to Local Authorities,Local Government & Public Services,HARTLEPOOL BOROUGH COUNCIL,,,,424291797,5000327617,,Business Rates 2% Inflation Cap,TS24 8AY,"32,527.00",Yes
